Organisation Code,Organisation Label,Effective Date,Organisational Unit,Service Division Label,Category Internal Name,Purpose,Detailed Expenditure Code,Payment Date,Transaction Number,Irrecoverable VAT Amount,Amount,Capital Or Revenue,Benificiary Name,Procurement Card
Http://opendatacommunities.org/id/metropolitan-district-council/leeds,Leeds City Council,30/11/2019,Resources and Housing,Leeds Building Services,Supplies and Services,Operational Materials,205,22/11/2019,1911-00001,0.00,115.00,R,A & A Electrical Distributors Ltd,No
Http://opendatacommunities.org/id/metropolitan-district-council/leeds,Leeds City Council,30/11/2019,Resources and Housing,Leeds Building Services,Supplies and Services,Operational Materials,205,28/11/2019,1911-00002,0.00,27.10,R,A & A Electrical Distributors Ltd,No
Http://opendatacommunities.org/id/metropolitan-district-council/leeds,Leeds City Council,30/11/2019,Communities and Environment,Communities  ,Supplies and Services,Operational Materials,205,07/10/2019,1911-00003,0.00,125.00,R,A & H Bags And Bedding,Yes
Http://opendatacommunities.org/id/metropolitan-district-council/leeds,Leeds City Council,30/11/2019,City Development,Libraries  Arts & Heritage,Supplies and Services,Advertising,211,11/11/2019,1911-00004,0.00,2000.00,R,A & N Media Finance Services Ltd,No
Http://opendatacommunities.org/id/metropolitan-district-council/leeds,Leeds City Council,30/11/2019,City Development,Libraries  Arts & Heritage,Supplies and Services,Advertising,211,20/11/2019,1911-00005,0.00,425.00,R,A & N Media Finance Services Ltd,No
Http://opendatacommunities.org/id/metropolitan-district-council/leeds,Leeds City Council,30/11/2019,Adults and Health,Services For Older People Under 65 P/Dis,Third Party Payments,Sheltered Accommodation,569,13/11/2019,1911-00006,0.00,5400.00,R,A & V Transitional Homes,No
Http://opendatacommunities.org/id/metropolitan-district-council/leeds,Leeds City Council,30/11/2019,Resources and Housing,Leeds Building Services,Supplies and Services,Operational Materials,205,08/11/2019,1911-00007,0.00,55.73,R,A Andrews & Sons (Marbles & Tiles),No
Http://opendatacommunities.org/id/metropolitan-district-council/leeds,Leeds City Council,30/11/2019,Resources and Housing,Leeds Building Services,Supplies and Services,Operational Materials,205,08/11/2019,1911-00008,0.00,24.88,R,A Andrews & Sons (Marbles & Tiles),No
Http://opendatacommunities.org/id/metropolitan-district-council/leeds,Leeds City Council,30/11/2019,Resources and Housing,Leeds Building Services,Supplies and Services,Operational Materials,205,22/11/2019,1911-00009,0.00,18.33,R,A Andrews & Sons (Marbles & Tiles),No
Http://opendatacommunities.org/id/metropolitan-district-council/leeds,Leeds City Council,30/11/2019,Resources and Housing,Leeds Building Services,Supplies and Services,Operational Materials,205,22/11/2019,1911-00010,0.00,10.73,R,A Andrews & Sons (Marbles & Tiles),No
Http://opendatacommunities.org/id/metropolitan-district-council/leeds,Leeds City Council,30/11/2019,Resources and Housing,Leeds Building Services,Supplies and Services,Operational Materials,205,22/11/2019,1911-00011,0.00,66.34,R,A Andrews & Sons (Marbles & Tiles),No
Http://opendatacommunities.org/id/metropolitan-district-council/leeds,Leeds City Council,30/11/2019,Resources and Housing,Leeds Building Services,Supplies and Services,Operational Materials,205,22/11/2019,1911-00012,0.00,53.28,R,A Andrews & Sons (Marbles & Tiles),No
Http://opendatacommunities.org/id/metropolitan-district-council/leeds,Leeds City Council,30/11/2019,Resources and Housing,Leeds Building Services,Supplies and Services,Operational Materials,205,22/11/2019,1911-00013,0.00,37.42,R,A Andrews & Sons (Marbles & Tiles),No
Http://opendatacommunities.org/id/metropolitan-district-council/leeds,Leeds City Council,30/11/2019,Children and Families,Social Care,Third Party Payments,Services Rendered By Other Organisations,511,01/11/2019,1911-00014,0.00,225.75,R,REDACTED PERSONAL DATA,No
Http://opendatacommunities.org/id/metropolitan-district-council/leeds,Leeds City Council,30/11/2019,Children and Families,Social Care,Third Party Payments,Services Rendered By Other Organisations,511,22/11/2019,1911-00015,0.00,69.69,R,REDACTED PERSONAL DATA,No
Http://opendatacommunities.org/id/metropolitan-district-council/leeds,Leeds City Council,30/11/2019,Children and Families,Social Care,Third Party Payments,Services Rendered By Other Organisations,511,01/11/2019,1911-00016,0.00,501.67,R,REDACTED PERSONAL DATA,No
Http://opendatacommunities.org/id/metropolitan-district-council/leeds,Leeds City Council,30/11/2019,Children and Families,Social Care,Third Party Payments,Services Rendered By Other Organisations,511,01/11/2019,1911-00017,0.00,451.50,R,REDACTED PERSONAL DATA,No
Http://opendatacommunities.org/id/metropolitan-district-council/leeds,Leeds City Council,30/11/2019,Children and Families,Social Care,Third Party Payments,Services Rendered By Other Organisations,511,06/11/2019,1911-00018,0.00,273.00,R,REDACTED PERSONAL DATA,No
Http://opendatacommunities.org/id/metropolitan-district-council/leeds,Leeds City Council,30/11/2019,Resources and Housing,HRA Housing Leeds,Capital,Construction,3,15/11/2019,1911-00019,0.00,110972.66,C,A Connolly Limited,No
Http://opendatacommunities.org/id/metropolitan-district-council/leeds,Leeds City Council,30/11/2019,Resources and Housing,Leeds Building Services,Supplies and Services,Other Hired And Contracted Services,265,01/11/2019,1911-00020,0.00,4357.40,R,A Coole Electrical Ltd,No
Http://opendatacommunities.org/id/metropolitan-district-council/leeds,Leeds City Council,30/11/2019,Resources and Housing,Leeds Building Services,Supplies and Services,Other Hired And Contracted Services,265,01/11/2019,1911-00021,0.00,3418.19,R,A Coole Electrical Ltd,No
Http://opendatacommunities.org/id/metropolitan-district-council/leeds,Leeds City Council,30/11/2019,Resources and Housing,Leeds Building Services,Supplies and Services,Other Hired And Contracted Services,265,06/11/2019,1911-00022,0.00,85.00,R,A Coole Electrical Ltd,No
Http://opendatacommunities.org/id/metropolitan-district-council/leeds,Leeds City Council,30/11/2019,Resources and Housing,Leeds Building Services,Supplies and Services,Other Hired And Contracted Services,265,22/11/2019,1911-00023,0.00,85.00,R,A Coole Electrical Ltd,No
Http://opendatacommunities.org/id/metropolitan-district-council/leeds,Leeds City Council,30/11/2019,Resources and Housing,Leeds Building Services,Supplies and Services,Other Hired And Contracted Services,265,22/11/2019,1911-00024,0.00,85.00,R,A Coole Electrical Ltd,No
Http://opendatacommunities.org/id/metropolitan-district-council/leeds,Leeds City Council,30/11/2019,Resources and Housing,Leeds Building Services,Supplies and Services,Other Hired And Contracted Services,265,22/11/2019,1911-00025,0.00,85.00,R,A Coole Electrical Ltd,No
Http://opendatacommunities.org/id/metropolitan-district-council/leeds,Leeds City Council,30/11/2019,Resources and Housing,Leeds Building Services,Supplies and Services,Other Hired And Contracted Services,265,22/11/2019,1911-00026,0.00,85.00,R,A Coole Electrical Ltd,No
Http://opendatacommunities.org/id/metropolitan-district-council/leeds,Leeds City Council,30/11/2019,Resources and Housing,Leeds Building Services,Supplies and Services,Other Hired And Contracted Services,265,29/11/2019,1911-00027,0.00,160.00,R,A Coole Electrical Ltd,No
Http://opendatacommunities.org/id/metropolitan-district-council/leeds,Leeds City Council,30/11/2019,Children and Families,Learning,Supplies and Services,Bought In Professional Services,277,08/11/2019,1911-00028,0.00,300.00,R,A Craven-Griffiths,No
Http://opendatacommunities.org/id/metropolitan-district-council/leeds,Leeds City Council,30/11/2019,Communities and Environment,Customer Access,Supplies and Services,Bought In Professional Services,277,08/11/2019,1911-00029,0.00,18.00,R,A D Dumitru,No
Http://opendatacommunities.org/id/metropolitan-district-council/leeds,Leeds City Council,30/11/2019,Communities and Environment,Customer Access,Supplies and Services,Bought In Professional Services,277,08/11/2019,1911-00030,0.00,27.00,R,A D Dumitru,No
Http://opendatacommunities.org/id/metropolitan-district-council/leeds,Leeds City Council,30/11/2019,Communities and Environment,Customer Access,Supplies and Services,Bought In Professional Services,277,08/11/2019,1911-00031,0.00,31.50,R,A D Dumitru,No
Http://opendatacommunities.org/id/metropolitan-district-council/leeds,Leeds City Council,30/11/2019,Communities and Environment,Customer Access,Supplies and Services,Bought In Professional Services,277,08/11/2019,1911-00032,0.00,18.00,R,A D Dumitru,No
Http://opendatacommunities.org/id/metropolitan-district-council/leeds,Leeds City Council,30/11/2019,Communities and Environment,Customer Access,Supplies and Services,Bought In Professional Services,277,08/11/2019,1911-00033,0.00,18.00,R,A D Dumitru,No
Http://opendatacommunities.org/id/metropolitan-district-council/leeds,Leeds City Council,30/11/2019,Communities and Environment,Customer Access,Supplies and Services,Bought In Professional Services,277,15/11/2019,1911-00034,0.00,25.50,R,A D Dumitru,No
Http://opendatacommunities.org/id/metropolitan-district-council/leeds,Leeds City Council,30/11/2019,Communities and Environment,Customer Access,Supplies and Services,Bought In Professional Services,277,15/11/2019,1911-00035,0.00,27.00,R,A D Dumitru,No
Http://opendatacommunities.org/id/metropolitan-district-council/leeds,Leeds City Council,30/11/2019,Communities and Environment,Customer Access,Supplies and Services,Bought In Professional Services,277,15/11/2019,1911-00036,0.00,18.00,R,A D Dumitru,No
Http://opendatacommunities.org/id/metropolitan-district-council/leeds,Leeds City Council,30/11/2019,Communities and Environment,Customer Access,Supplies and Services,Bought In Professional Services,277,15/11/2019,1911-00037,0.00,67.50,R,A D Dumitru,No
Http://opendatacommunities.org/id/metropolitan-district-council/leeds,Leeds City Council,30/11/2019,Communities and Environment,Customer Access,Supplies and Services,Bought In Professional Services,277,15/11/2019,1911-00038,0.00,54.00,R,A D Dumitru,No
Http://opendatacommunities.org/id/metropolitan-district-council/leeds,Leeds City Council,30/11/2019,Communities and Environment,Customer Access,Supplies and Services,Bought In Professional Services,277,21/11/2019,1911-00039,0.00,18.00,R,A D Dumitru,No
Http://opendatacommunities.org/id/metropolitan-district-council/leeds,Leeds City Council,30/11/2019,Communities and Environment,Customer Access,Supplies and Services,Bought In Professional Services,277,21/11/2019,1911-00040,0.00,36.00,R,A D Dumitru,No
Http://opendatacommunities.org/id/metropolitan-district-council/leeds,Leeds City Council,30/11/2019,Communities and Environment,Customer Access,Supplies and Services,Bought In Professional Services,277,21/11/2019,1911-00041,0.00,25.50,R,A D Dumitru,No
Http://opendatacommunities.org/id/metropolitan-district-council/leeds,Leeds City Council,30/11/2019,Communities and Environment,Customer Access,Supplies and Services,Bought In Professional Services,277,29/11/2019,1911-00042,0.00,27.00,R,A D Dumitru,No
Http://opendatacommunities.org/id/metropolitan-district-council/leeds,Leeds City Council,30/11/2019,Communities and Environment,Customer Access,Supplies and Services,Bought In Professional Services,277,29/11/2019,1911-00043,0.00,18.00,R,A D Dumitru,No
Http://opendatacommunities.org/id/metropolitan-district-council/leeds,Leeds City Council,30/11/2019,Communities and Environment,Customer Access,Supplies and Services,Bought In Professional Services,277,29/11/2019,1911-00044,0.00,27.00,R,A D Dumitru,No
Http://opendatacommunities.org/id/metropolitan-district-council/leeds,Leeds City Council,30/11/2019,Children and Families,Social Care,Third Party Payments,Services Rendered By Voluntary Sector,505,01/11/2019,1911-00045,0.00,4515.00,R,REDACTED PERSONAL DATA,No
Http://opendatacommunities.org/id/metropolitan-district-council/leeds,Leeds City Council,30/11/2019,Children and Families,Social Care,Third Party Payments,Services Rendered By Voluntary Sector,505,06/11/2019,1911-00046,0.00,2675.40,R,REDACTED PERSONAL DATA,No
Http://opendatacommunities.org/id/metropolitan-district-council/leeds,Leeds City Council,30/11/2019,Children and Families,Social Care,Third Party Payments,Services Rendered By Voluntary Sector,505,22/11/2019,1911-00047,0.00,752.62,R,REDACTED PERSONAL DATA,No
Http://opendatacommunities.org/id/metropolitan-district-council/leeds,Leeds City Council,30/11/2019,Resources and Housing,HRA Housing Leeds,Capital,Other Costs,7,14/11/2019,1911-00048,0.00,80.00,C,REDACTED PERSONAL DATA,No
Http://opendatacommunities.org/id/metropolitan-district-council/leeds,Leeds City Council,30/11/2019,Children and Families,Social Care,Third Party Payments,Services Rendered By Other Organisations,511,01/11/2019,1911-00049,0.00,903.00,R,REDACTED PERSONAL DATA,No
Http://opendatacommunities.org/id/metropolitan-district-council/leeds,Leeds City Council,30/11/2019,Children and Families,Social Care,Third Party Payments,Services Rendered By Other Organisations,511,06/11/2019,1911-00050,0.00,273.00,R,REDACTED PERSONAL DATA,No
Http://opendatacommunities.org/id/metropolitan-district-council/leeds,Leeds City Council,30/11/2019,City Development,Libraries  Arts & Heritage,Supplies and Services,Operational Materials,205,20/11/2019,1911-00051,0.00,770.00,R,A G Design Studio,No
Http://opendatacommunities.org/id/metropolitan-district-council/leeds,Leeds City Council,30/11/2019,City Development,Libraries  Arts & Heritage,Supplies and Services,Other Hired And Contracted Services,265,27/11/2019,1911-00052,0.00,8050.00,R,A G Design Studio,No
Http://opendatacommunities.org/id/metropolitan-district-council/leeds,Leeds City Council,30/11/2019,City Development,Libraries  Arts & Heritage,Supplies and Services,Other Hired And Contracted Services,265,29/11/2019,1911-00053,0.00,2500.00,R,A G Design Studio,No
Http://opendatacommunities.org/id/metropolitan-district-council/leeds,Leeds City Council,30/11/2019,City Development,Libraries  Arts & Heritage,Supplies and Services,Publication And Promotion,267,29/11/2019,1911-00054,0.00,700.00,R,A G Design Studio,No
Http://opendatacommunities.org/id/metropolitan-district-council/leeds,Leeds City Council,30/11/2019,City Development,Libraries  Arts & Heritage  ,Supplies and Services,Operational Furniture And Equipment,203,30/10/2019,1911-00055,0.00,43.45,R,A G Woodcare Products,Yes
Http://opendatacommunities.org/id/metropolitan-district-council/leeds,Leeds City Council,30/11/2019,Children and Families,Social Care,Third Party Payments,Services Rendered By Other Organisations,511,01/11/2019,1911-00056,0.00,180.60,R,REDACTED PERSONAL DATA,No
Http://opendatacommunities.org/id/metropolitan-district-council/leeds,Leeds City Council,30/11/2019,Children and Families,Social Care,Third Party Payments,Services Rendered By Other Organisations,511,22/11/2019,1911-00057,0.00,418.12,R,REDACTED PERSONAL DATA,No
Http://opendatacommunities.org/id/metropolitan-district-council/leeds,Leeds City Council,30/11/2019,Resources and Housing,HRA Housing Leeds,Capital,Other Costs,7,20/11/2019,1911-00058,0.00,100.00,C,REDACTED PERSONAL DATA,No
Http://opendatacommunities.org/id/metropolitan-district-council/leeds,Leeds City Council,30/11/2019,Children and Families,Social Care,Third Party Payments,Services Rendered By Other Organisations,511,01/11/2019,1911-00059,0.00,216.62,R,REDACTED PERSONAL DATA,No
Http://opendatacommunities.org/id/metropolitan-district-council/leeds,Leeds City Council,30/11/2019,Resources and Housing,Strategic Housing Partnerships,Capital,Construction,3,28/11/2019,1911-00060,0.00,15000.00,C,A Hepworth Home Improvements,No
Http://opendatacommunities.org/id/metropolitan-district-council/leeds,Leeds City Council,30/11/2019,Children and Families,Social Care,Third Party Payments,Services Rendered By Other Organisations,511,22/11/2019,1911-00061,0.00,278.75,R,REDACTED PERSONAL DATA,No
Http://opendatacommunities.org/id/metropolitan-district-council/leeds,Leeds City Council,30/11/2019,City Development,Libraries  Arts & Heritage,Supplies and Services,Other Hired And Contracted Services,265,07/11/2019,1911-00062,0.00,445.00,R,REDACTED COMMERCIAL CONFIDENTIALITY,No
Http://opendatacommunities.org/id/metropolitan-district-council/leeds,Leeds City Council,30/11/2019,City Development,Libraries  Arts & Heritage,Supplies and Services,Other Hired And Contracted Services,265,28/11/2019,1911-00063,0.00,195.00,R,REDACTED COMMERCIAL CONFIDENTIALITY,No
Http://opendatacommunities.org/id/metropolitan-district-council/leeds,Leeds City Council,30/11/2019,Resources and Housing,Leeds Building Services,Supplies and Services,Operational Materials,205,14/11/2019,1911-00064,0.00,205.91,R,A J H  Pump Supply & Repair Ltd,No
Http://opendatacommunities.org/id/metropolitan-district-council/leeds,Leeds City Council,30/11/2019,Resources and Housing,Leeds Building Services,Supplies and Services,Operational Materials,205,14/11/2019,1911-00065,0.00,165.00,R,A J H  Pump Supply & Repair Ltd,No
Http://opendatacommunities.org/id/metropolitan-district-council/leeds,Leeds City Council,30/11/2019,Resources and Housing,Leeds Building Services,Supplies and Services,Operational Materials,205,14/11/2019,1911-00066,0.00,266.40,R,A J H  Pump Supply & Repair Ltd,No
Http://opendatacommunities.org/id/metropolitan-district-council/leeds,Leeds City Council,30/11/2019,Resources and Housing,Leeds Building Services,Supplies and Services,Operational Materials,205,14/11/2019,1911-00067,0.00,43.45,R,A J H  Pump Supply & Repair Ltd,No
Http://opendatacommunities.org/id/metropolitan-district-council/leeds,Leeds City Council,30/11/2019,Resources and Housing,Leeds Building Services,Supplies and Services,Operational Materials,205,14/11/2019,1911-00068,0.00,580.90,R,A J H  Pump Supply & Repair Ltd,No
Http://opendatacommunities.org/id/metropolitan-district-council/leeds,Leeds City Council,30/11/2019,Resources and Housing,Leeds Building Services,Supplies and Services,Operational Materials,205,14/11/2019,1911-00069,0.00,146.88,R,A J H  Pump Supply & Repair Ltd,No
Http://opendatacommunities.org/id/metropolitan-district-council/leeds,Leeds City Council,30/11/2019,Resources and Housing,Leeds Building Services,Supplies and Services,Operational Materials,205,14/11/2019,1911-00070,0.00,900.00,R,A J H  Pump Supply & Repair Ltd,No
Http://opendatacommunities.org/id/metropolitan-district-council/leeds,Leeds City Council,30/11/2019,Resources and Housing,Leeds Building Services,Supplies and Services,Operational Materials,205,14/11/2019,1911-00071,0.00,498.60,R,A J H  Pump Supply & Repair Ltd,No
Http://opendatacommunities.org/id/metropolitan-district-council/leeds,Leeds City Council,30/11/2019,Resources and Housing,Leeds Building Services,Supplies and Services,Operational Materials,205,14/11/2019,1911-00072,0.00,69.45,R,A J H  Pump Supply & Repair Ltd,No
Http://opendatacommunities.org/id/metropolitan-district-council/leeds,Leeds City Council,30/11/2019,Resources and Housing,Leeds Building Services,Supplies and Services,Other Hired And Contracted Services,265,14/11/2019,1911-00073,0.00,1350.00,R,A J H  Pump Supply & Repair Ltd,No
Http://opendatacommunities.org/id/metropolitan-district-council/leeds,Leeds City Council,30/11/2019,Resources and Housing,Leeds Building Services,Supplies and Services,Operational Materials,205,14/11/2019,1911-00074,0.00,611.35,R,A J H  Pump Supply & Repair Ltd,No
Http://opendatacommunities.org/id/metropolitan-district-council/leeds,Leeds City Council,30/11/2019,Resources and Housing,Leeds Building Services,Supplies and Services,Operational Materials,205,14/11/2019,1911-00075,0.00,125.95,R,A J H  Pump Supply & Repair Ltd,No
Http://opendatacommunities.org/id/metropolitan-district-council/leeds,Leeds City Council,30/11/2019,Resources and Housing,Leeds Building Services,Supplies and Services,Operational Materials,205,14/11/2019,1911-00076,0.00,7.95,R,A J H  Pump Supply & Repair Ltd,No
Http://opendatacommunities.org/id/metropolitan-district-council/leeds,Leeds City Council,30/11/2019,Resources and Housing,Leeds Building Services,Supplies and Services,Operational Materials,205,14/11/2019,1911-00077,0.00,123.97,R,A J H  Pump Supply & Repair Ltd,No
Http://opendatacommunities.org/id/metropolitan-district-council/leeds,Leeds City Council,30/11/2019,Resources and Housing,Leeds Building Services,Supplies and Services,Operational Materials,205,14/11/2019,1911-00078,0.00,46.99,R,A J H  Pump Supply & Repair Ltd,No
Http://opendatacommunities.org/id/metropolitan-district-council/leeds,Leeds City Council,30/11/2019,Resources and Housing,Leeds Building Services,Supplies and Services,Operational Materials,205,14/11/2019,1911-00079,0.00,661.54,R,A J H  Pump Supply & Repair Ltd,No
Http://opendatacommunities.org/id/metropolitan-district-council/leeds,Leeds City Council,30/11/2019,Resources and Housing,Leeds Building Services,Supplies and Services,Operational Materials,205,14/11/2019,1911-00080,0.00,152.63,R,A J H  Pump Supply & Repair Ltd,No
Http://opendatacommunities.org/id/metropolitan-district-council/leeds,Leeds City Council,30/11/2019,Resources and Housing,Leeds Building Services,Supplies and Services,Operational Materials,205,14/11/2019,1911-00081,0.00,128.10,R,A J H  Pump Supply & Repair Ltd,No
Http://opendatacommunities.org/id/metropolitan-district-council/leeds,Leeds City Council,30/11/2019,Resources and Housing,Leeds Building Services,Supplies and Services,Operational Materials,205,14/11/2019,1911-00082,0.00,220.75,R,A J H  Pump Supply & Repair Ltd,No
Http://opendatacommunities.org/id/metropolitan-district-council/leeds,Leeds City Council,30/11/2019,Resources and Housing,Leeds Building Services,Supplies and Services,Operational Materials,205,14/11/2019,1911-00083,0.00,174.54,R,A J H  Pump Supply & Repair Ltd,No
Http://opendatacommunities.org/id/metropolitan-district-council/leeds,Leeds City Council,30/11/2019,Resources and Housing,Leeds Building Services,Supplies and Services,Operational Materials,205,14/11/2019,1911-00084,0.00,140.00,R,A J H  Pump Supply & Repair Ltd,No
Http://opendatacommunities.org/id/metropolitan-district-council/leeds,Leeds City Council,30/11/2019,Resources and Housing,Leeds Building Services,Supplies and Services,Operational Materials,205,14/11/2019,1911-00085,0.00,128.69,R,A J H  Pump Supply & Repair Ltd,No
Http://opendatacommunities.org/id/metropolitan-district-council/leeds,Leeds City Council,30/11/2019,Resources and Housing,Leeds Building Services,Supplies and Services,Operational Materials,205,14/11/2019,1911-00086,0.00,25.43,R,A J H  Pump Supply & Repair Ltd,No
Http://opendatacommunities.org/id/metropolitan-district-council/leeds,Leeds City Council,30/11/2019,Resources and Housing,Leeds Building Services,Supplies and Services,Operational Materials,205,14/11/2019,1911-00087,0.00,495.00,R,A J H  Pump Supply & Repair Ltd,No
Http://opendatacommunities.org/id/metropolitan-district-council/leeds,Leeds City Council,30/11/2019,Resources and Housing,Leeds Building Services,Supplies and Services,Operational Materials,205,14/11/2019,1911-00088,0.00,129.75,R,A J H  Pump Supply & Repair Ltd,No
Http://opendatacommunities.org/id/metropolitan-district-council/leeds,Leeds City Council,30/11/2019,Resources and Housing,Leeds Building Services,Supplies and Services,Other Hired And Contracted Services,265,14/11/2019,1911-00089,0.00,850.00,R,A J H  Pump Supply & Repair Ltd,No
Http://opendatacommunities.org/id/metropolitan-district-council/leeds,Leeds City Council,30/11/2019,Resources and Housing,Leeds Building Services,Supplies and Services,Operational Materials,205,14/11/2019,1911-00090,0.00,33.95,R,A J H  Pump Supply & Repair Ltd,No
Http://opendatacommunities.org/id/metropolitan-district-council/leeds,Leeds City Council,30/11/2019,Resources and Housing,Leeds Building Services,Supplies and Services,Operational Materials,205,14/11/2019,1911-00091,0.00,29.88,R,A J H  Pump Supply & Repair Ltd,No
Http://opendatacommunities.org/id/metropolitan-district-council/leeds,Leeds City Council,30/11/2019,Resources and Housing,Leeds Building Services,Supplies and Services,Operational Materials,205,18/11/2019,1911-00092,0.00,250.83,R,A J H  Pump Supply & Repair Ltd,No
Http://opendatacommunities.org/id/metropolitan-district-council/leeds,Leeds City Council,30/11/2019,Resources and Housing,Leeds Building Services,Supplies and Services,Operational Materials,205,22/11/2019,1911-00093,0.00,18.50,R,A J H  Pump Supply & Repair Ltd,No
Http://opendatacommunities.org/id/metropolitan-district-council/leeds,Leeds City Council,30/11/2019,Resources and Housing,Leeds Building Services,Supplies and Services,Operational Materials,205,22/11/2019,1911-00094,0.00,403.50,R,A J H  Pump Supply & Repair Ltd,No
Http://opendatacommunities.org/id/metropolitan-district-council/leeds,Leeds City Council,30/11/2019,Resources and Housing,Leeds Building Services,Supplies and Services,Operational Materials,205,22/11/2019,1911-00095,0.00,423.00,R,A J H  Pump Supply & Repair Ltd,No
Http://opendatacommunities.org/id/metropolitan-district-council/leeds,Leeds City Council,30/11/2019,Resources and Housing,Leeds Building Services,Supplies and Services,Operational Materials,205,22/11/2019,1911-00096,0.00,124.95,R,A J H  Pump Supply & Repair Ltd,No
Http://opendatacommunities.org/id/metropolitan-district-council/leeds,Leeds City Council,30/11/2019,Resources and Housing,Leeds Building Services,Supplies and Services,Operational Materials,205,22/11/2019,1911-00097,0.00,595.00,R,A J H  Pump Supply & Repair Ltd,No
Http://opendatacommunities.org/id/metropolitan-district-council/leeds,Leeds City Council,30/11/2019,Resources and Housing,Leeds Building Services,Supplies and Services,Operational Materials,205,22/11/2019,1911-00098,0.00,12.50,R,A J H  Pump Supply & Repair Ltd,No
Http://opendatacommunities.org/id/metropolitan-district-council/leeds,Leeds City Council,30/11/2019,Resources and Housing,Leeds Building Services,Supplies and Services,Operational Materials,205,22/11/2019,1911-00099,0.00,152.83,R,A J H  Pump Supply & Repair Ltd,No
Http://opendatacommunities.org/id/metropolitan-district-council/leeds,Leeds City Council,30/11/2019,Resources and Housing,Leeds Building Services,Supplies and Services,Operational Materials,205,22/11/2019,1911-00100,0.00,354.00,R,A J H  Pump Supply & Repair Ltd,No
Http://opendatacommunities.org/id/metropolitan-district-council/leeds,Leeds City Council,30/11/2019,Resources and Housing,Leeds Building Services,Supplies and Services,Operational Materials,205,22/11/2019,1911-00101,0.00,42.50,R,A J H  Pump Supply & Repair Ltd,No
Http://opendatacommunities.org/id/metropolitan-district-council/leeds,Leeds City Council,30/11/2019,Resources and Housing,Leeds Building Services,Supplies and Services,Operational Materials,205,22/11/2019,1911-00102,0.00,146.92,R,A J H  Pump Supply & Repair Ltd,No
Http://opendatacommunities.org/id/metropolitan-district-council/leeds,Leeds City Council,30/11/2019,Resources and Housing,Leeds Building Services,Supplies and Services,Operational Materials,205,22/11/2019,1911-00103,0.00,105.92,R,A J H  Pump Supply & Repair Ltd,No
Http://opendatacommunities.org/id/metropolitan-district-council/leeds,Leeds City Council,30/11/2019,Resources and Housing,Leeds Building Services,Supplies and Services,Operational Materials,205,22/11/2019,1911-00104,0.00,29.00,R,A J H  Pump Supply & Repair Ltd,No
Http://opendatacommunities.org/id/metropolitan-district-council/leeds,Leeds City Council,30/11/2019,Resources and Housing,Leeds Building Services,Supplies and Services,Operational Materials,205,22/11/2019,1911-00105,0.00,671.40,R,A J H  Pump Supply & Repair Ltd,No
Http://opendatacommunities.org/id/metropolitan-district-council/leeds,Leeds City Council,30/11/2019,Resources and Housing,Leeds Building Services,Supplies and Services,Operational Materials,205,22/11/2019,1911-00106,0.00,200.63,R,A J H  Pump Supply & Repair Ltd,No
Http://opendatacommunities.org/id/metropolitan-district-council/leeds,Leeds City Council,30/11/2019,Resources and Housing,Leeds Building Services,Supplies and Services,Operational Materials,205,22/11/2019,1911-00107,0.00,103.52,R,A J H  Pump Supply & Repair Ltd,No
Http://opendatacommunities.org/id/metropolitan-district-council/leeds,Leeds City Council,30/11/2019,Resources and Housing,Leeds Building Services,Supplies and Services,Operational Materials,205,22/11/2019,1911-00108,0.00,70.00,R,A J H  Pump Supply & Repair Ltd,No
Http://opendatacommunities.org/id/metropolitan-district-council/leeds,Leeds City Council,30/11/2019,Resources and Housing,Leeds Building Services,Supplies and Services,Operational Materials,205,22/11/2019,1911-00109,0.00,840.58,R,A J H  Pump Supply & Repair Ltd,No
Http://opendatacommunities.org/id/metropolitan-district-council/leeds,Leeds City Council,30/11/2019,Resources and Housing,Leeds Building Services,Supplies and Services,Operational Materials,205,22/11/2019,1911-00110,0.00,115.00,R,A J H  Pump Supply & Repair Ltd,No
Http://opendatacommunities.org/id/metropolitan-district-council/leeds,Leeds City Council,30/11/2019,Resources and Housing,Leeds Building Services,Supplies and Services,Operational Materials,205,22/11/2019,1911-00111,0.00,575.00,R,A J H  Pump Supply & Repair Ltd,No
Http://opendatacommunities.org/id/metropolitan-district-council/leeds,Leeds City Council,30/11/2019,Resources and Housing,Leeds Building Services,Supplies and Services,Operational Materials,205,22/11/2019,1911-00112,0.00,18.50,R,A J H  Pump Supply & Repair Ltd,No
Http://opendatacommunities.org/id/metropolitan-district-council/leeds,Leeds City Council,30/11/2019,Resources and Housing,Leeds Building Services,Supplies and Services,Operational Materials,205,22/11/2019,1911-00113,0.00,210.85,R,A J H  Pump Supply & Repair Ltd,No
Http://opendatacommunities.org/id/metropolitan-district-council/leeds,Leeds City Council,30/11/2019,Resources and Housing,Leeds Building Services,Supplies and Services,Operational Materials,205,22/11/2019,1911-00114,0.00,27.50,R,A J H  Pump Supply & Repair Ltd,No
Http://opendatacommunities.org/id/metropolitan-district-council/leeds,Leeds City Council,30/11/2019,Resources and Housing,Leeds Building Services,Supplies and Services,Operational Materials,205,22/11/2019,1911-00115,0.00,268.95,R,A J H  Pump Supply & Repair Ltd,No
Http://opendatacommunities.org/id/metropolitan-district-council/leeds,Leeds City Council,30/11/2019,Resources and Housing,Leeds Building Services,Supplies and Services,Operational Materials,205,22/11/2019,1911-00116,0.00,146.58,R,A J H  Pump Supply & Repair Ltd,No
Http://opendatacommunities.org/id/metropolitan-district-council/leeds,Leeds City Council,30/11/2019,Resources and Housing,Leeds Building Services,Supplies and Services,Operational Materials,205,22/11/2019,1911-00117,0.00,492.00,R,A J H  Pump Supply & Repair Ltd,No
Http://opendatacommunities.org/id/metropolitan-district-council/leeds,Leeds City Council,30/11/2019,Resources and Housing,Leeds Building Services,Supplies and Services,Operational Materials,205,22/11/2019,1911-00118,0.00,4114.00,R,A J H  Pump Supply & Repair Ltd,No
Http://opendatacommunities.org/id/metropolitan-district-council/leeds,Leeds City Council,30/11/2019,Resources and Housing,Leeds Building Services,Supplies and Services,Operational Materials,205,25/11/2019,1911-00119,0.00,178.75,R,A J H  Pump Supply & Repair Ltd,No
Http://opendatacommunities.org/id/metropolitan-district-council/leeds,Leeds City Council,30/11/2019,Resources and Housing,Leeds Building Services,Supplies and Services,Operational Materials,205,25/11/2019,1911-00120,0.00,596.00,R,A J H  Pump Supply & Repair Ltd,No
Http://opendatacommunities.org/id/metropolitan-district-council/leeds,Leeds City Council,30/11/2019,Resources and Housing,Leeds Building Services,Supplies and Services,Operational Materials,205,25/11/2019,1911-00121,0.00,43.43,R,A J H  Pump Supply & Repair Ltd,No
Http://opendatacommunities.org/id/metropolitan-district-council/leeds,Leeds City Council,30/11/2019,Resources and Housing,Leeds Building Services,Supplies and Services,Operational Materials,205,25/11/2019,1911-00122,0.00,246.95,R,A J H  Pump Supply & Repair Ltd,No
Http://opendatacommunities.org/id/metropolitan-district-council/leeds,Leeds City Council,30/11/2019,Resources and Housing,Leeds Building Services,Supplies and Services,Operational Materials,205,25/11/2019,1911-00123,0.00,165.00,R,A J H  Pump Supply & Repair Ltd,No
Http://opendatacommunities.org/id/metropolitan-district-council/leeds,Leeds City Council,30/11/2019,Resources and Housing,Leeds Building Services,Supplies and Services,Operational Materials,205,25/11/2019,1911-00124,0.00,186.19,R,A J H  Pump Supply & Repair Ltd,No
Http://opendatacommunities.org/id/metropolitan-district-council/leeds,Leeds City Council,30/11/2019,Resources and Housing,Leeds Building Services,Supplies and Services,Operational Materials,205,25/11/2019,1911-00125,0.00,18.90,R,A J H  Pump Supply & Repair Ltd,No
Http://opendatacommunities.org/id/metropolitan-district-council/leeds,Leeds City Council,30/11/2019,Resources and Housing,Leeds Building Services,Supplies and Services,Operational Materials,205,25/11/2019,1911-00126,0.00,23.00,R,A J H  Pump Supply & Repair Ltd,No
Http://opendatacommunities.org/id/metropolitan-district-council/leeds,Leeds City Council,30/11/2019,Resources and Housing,Leeds Building Services,Supplies and Services,Operational Materials,205,26/11/2019,1911-00127,0.00,2247.63,R,A J H  Pump Supply & Repair Ltd,No
Http://opendatacommunities.org/id/metropolitan-district-council/leeds,Leeds City Council,30/11/2019,Resources and Housing,Leeds Building Services,Supplies and Services,Operational Materials,205,26/11/2019,1911-00128,0.00,52.33,R,A J H  Pump Supply & Repair Ltd,No
Http://opendatacommunities.org/id/metropolitan-district-council/leeds,Leeds City Council,30/11/2019,Resources and Housing,Leeds Building Services,Supplies and Services,Operational Materials,205,29/11/2019,1911-00129,0.00,19.90,R,A J H  Pump Supply & Repair Ltd,No
Http://opendatacommunities.org/id/metropolitan-district-council/leeds,Leeds City Council,30/11/2019,Resources and Housing,Leeds Building Services,Supplies and Services,Operational Materials,205,29/11/2019,1911-00130,0.00,134.50,R,A J H  Pump Supply & Repair Ltd,No
Http://opendatacommunities.org/id/metropolitan-district-council/leeds,Leeds City Council,30/11/2019,Resources and Housing,Leeds Building Services,Supplies and Services,Operational Materials,205,29/11/2019,1911-00131,0.00,262.00,R,A J H  Pump Supply & Repair Ltd,No
Http://opendatacommunities.org/id/metropolitan-district-council/leeds,Leeds City Council,30/11/2019,Resources and Housing,Leeds Building Services,Supplies and Services,Operational Materials,205,29/11/2019,1911-00132,0.00,37.38,R,A J H  Pump Supply & Repair Ltd,No
Http://opendatacommunities.org/id/metropolitan-district-council/leeds,Leeds City Council,30/11/2019,Resources and Housing,Leeds Building Services,Supplies and Services,Operational Materials,205,29/11/2019,1911-00133,0.00,46.58,R,A J H  Pump Supply & Repair Ltd,No
Http://opendatacommunities.org/id/metropolitan-district-council/leeds,Leeds City Council,30/11/2019,Resources and Housing,Leeds Building Services,Supplies and Services,Operational Materials,205,29/11/2019,1911-00134,0.00,155.50,R,A J H  Pump Supply & Repair Ltd,No
Http://opendatacommunities.org/id/metropolitan-district-council/leeds,Leeds City Council,30/11/2019,Resources and Housing,Leeds Building Services,Supplies and Services,Operational Materials,205,29/11/2019,1911-00135,0.00,15.07,R,A J H  Pump Supply & Repair Ltd,No
Http://opendatacommunities.org/id/metropolitan-district-council/leeds,Leeds City Council,30/11/2019,Resources and Housing,Leeds Building Services,Supplies and Services,Operational Materials,205,29/11/2019,1911-00136,0.00,89.07,R,A J H  Pump Supply & Repair Ltd,No
Http://opendatacommunities.org/id/metropolitan-district-council/leeds,Leeds City Council,30/11/2019,Resources and Housing,Leeds Building Services,Supplies and Services,Operational Materials,205,29/11/2019,1911-00137,0.00,350.12,R,A J H  Pump Supply & Repair Ltd,No
Http://opendatacommunities.org/id/metropolitan-district-council/leeds,Leeds City Council,30/11/2019,Resources and Housing,Leeds Building Services,Supplies and Services,Operational Materials,205,29/11/2019,1911-00138,0.00,290.20,R,A J H  Pump Supply & Repair Ltd,No
Http://opendatacommunities.org/id/metropolitan-district-council/leeds,Leeds City Council,30/11/2019,Resources and Housing,Leeds Building Services,Supplies and Services,Operational Materials,205,29/11/2019,1911-00139,0.00,97.50,R,A J H  Pump Supply & Repair Ltd,No
Http://opendatacommunities.org/id/metropolitan-district-council/leeds,Leeds City Council,30/11/2019,Resources and Housing,Leeds Building Services,Supplies and Services,Operational Materials,205,29/11/2019,1911-00140,0.00,196.75,R,A J H  Pump Supply & Repair Ltd,No
Http://opendatacommunities.org/id/metropolitan-district-council/leeds,Leeds City Council,30/11/2019,Resources and Housing,Leeds Building Services,Supplies and Services,Operational Materials,205,29/11/2019,1911-00141,0.00,910.00,R,A J H  Pump Supply & Repair Ltd,No
Http://opendatacommunities.org/id/metropolitan-district-council/leeds,Leeds City Council,30/11/2019,Resources and Housing,Leeds Building Services,Supplies and Services,Operational Materials,205,29/11/2019,1911-00142,0.00,12.94,R,A J H  Pump Supply & Repair Ltd,No
Http://opendatacommunities.org/id/metropolitan-district-council/leeds,Leeds City Council,30/11/2019,Resources and Housing,Leeds Building Services,Supplies and Services,Operational Materials,205,29/11/2019,1911-00143,0.00,145.33,R,A J H  Pump Supply & Repair Ltd,No
Http://opendatacommunities.org/id/metropolitan-district-council/leeds,Leeds City Council,30/11/2019,Resources and Housing,Leeds Building Services,Supplies and Services,Operational Materials,205,29/11/2019,1911-00144,0.00,164.95,R,A J H  Pump Supply & Repair Ltd,No
Http://opendatacommunities.org/id/metropolitan-district-council/leeds,Leeds City Council,30/11/2019,Resources and Housing,Leeds Building Services,Supplies and Services,Operational Materials,205,29/11/2019,1911-00145,0.00,158.00,R,A J H  Pump Supply & Repair Ltd,No
Http://opendatacommunities.org/id/metropolitan-district-council/leeds,Leeds City Council,30/11/2019,Resources and Housing,Leeds Building Services,Supplies and Services,Operational Materials,205,29/11/2019,1911-00146,0.00,1090.12,R,A J H  Pump Supply & Repair Ltd,No
Http://opendatacommunities.org/id/metropolitan-district-council/leeds,Leeds City Council,30/11/2019,Resources and Housing,Leeds Building Services,Supplies and Services,Operational Materials,205,29/11/2019,1911-00147,0.00,955.00,R,A J H  Pump Supply & Repair Ltd,No
Http://opendatacommunities.org/id/metropolitan-district-council/leeds,Leeds City Council,30/11/2019,Resources and Housing,Leeds Building Services,Supplies and Services,Operational Materials,205,29/11/2019,1911-00148,0.00,396.22,R,A J H  Pump Supply & Repair Ltd,No
Http://opendatacommunities.org/id/metropolitan-district-council/leeds,Leeds City Council,30/11/2019,Resources and Housing,Leeds Building Services,Supplies and Services,Operational Materials,205,29/11/2019,1911-00149,0.00,19.25,R,A J H  Pump Supply & Repair Ltd,No
Http://opendatacommunities.org/id/metropolitan-district-council/leeds,Leeds City Council,30/11/2019,Communities and Environment,Customer Access,Supplies and Services,Other Hired And Contracted Services,265,13/11/2019,1911-00150,0.00,392.50,R,A J Promotions,No
Http://opendatacommunities.org/id/metropolitan-district-council/leeds,Leeds City Council,30/11/2019,City Development,Libraries  Arts & Heritage,Supplies and Services,Art Galleries Total Stores,3,13/11/2019,1911-00151,0.00,135.50,R,A J Promotions,No
Http://opendatacommunities.org/id/metropolitan-district-council/leeds,Leeds City Council,30/11/2019,City Development,Libraries  Arts & Heritage,Supplies and Services,Art Galleries Total Stores,3,15/11/2019,1911-00152,0.00,45.17,R,A J Promotions,No
Http://opendatacommunities.org/id/metropolitan-district-council/leeds,Leeds City Council,30/11/2019,City Development,Libraries  Arts & Heritage,Supplies and Services,Art Galleries Total Stores,3,22/11/2019,1911-00153,0.00,731.41,R,A J Promotions,No
Http://opendatacommunities.org/id/metropolitan-district-council/leeds,Leeds City Council,30/11/2019,Insurance,Insurance,Supplies and Services,Insurance Claims,248,05/11/2019,1911-00154,0.00,1520.00,R,REDACTED PERSONAL DATA,No
Http://opendatacommunities.org/id/metropolitan-district-council/leeds,Leeds City Council,30/11/2019,Children and Families,Social Care,Third Party Payments,Services Rendered By Other Organisations,511,01/11/2019,1911-00155,0.00,2257.50,R,REDACTED PERSONAL DATA,No
Http://opendatacommunities.org/id/metropolitan-district-council/leeds,Leeds City Council,30/11/2019,Children and Families,Social Care,Third Party Payments,Services Rendered By Other Organisations,511,06/11/2019,1911-00156,0.00,546.00,R,REDACTED PERSONAL DATA,No
Http://opendatacommunities.org/id/metropolitan-district-council/leeds,Leeds City Council,30/11/2019,Children and Families,Social Care,Third Party Payments,Services Rendered By Other Organisations,511,22/11/2019,1911-00157,0.00,167.25,R,REDACTED PERSONAL DATA,No
Http://opendatacommunities.org/id/metropolitan-district-council/leeds,Leeds City Council,30/11/2019,Children and Families,Social Care,Third Party Payments,Contact,548,04/11/2019,1911-00158,0.00,16.00,R,REDACTED PERSONAL DATA,No
Http://opendatacommunities.org/id/metropolitan-district-council/leeds,Leeds City Council,30/11/2019,Children and Families,Social Care,Third Party Payments,Services Rendered By Other Organisations,511,04/11/2019,1911-00159,0.00,434.00,R,A Little Something Extra Ltd,No
Http://opendatacommunities.org/id/metropolitan-district-council/leeds,Leeds City Council,30/11/2019,Children and Families,Social Care,Supplies and Services,Other Hired And Contracted Services,265,08/11/2019,1911-00160,0.00,700.00,R,A Little Something Extra Ltd,No
Http://opendatacommunities.org/id/metropolitan-district-council/leeds,Leeds City Council,30/11/2019,Children and Families,Social Care,Third Party Payments,Services Rendered By Other Organisations,511,15/11/2019,1911-00161,0.00,1023.75,R,A Little Something Extra Ltd,No
Http://opendatacommunities.org/id/metropolitan-district-council/leeds,Leeds City Council,30/11/2019,Children and Families,Social Care,Third Party Payments,Services Rendered By Other Organisations,511,15/11/2019,1911-00162,0.00,560.00,R,A Little Something Extra Ltd,No
Http://opendatacommunities.org/id/metropolitan-district-council/leeds,Leeds City Council,30/11/2019,Children and Families,Social Care,Third Party Payments,Services Rendered By Other Organisations,511,20/11/2019,1911-00163,0.00,350.00,R,A Little Something Extra Ltd,No
Http://opendatacommunities.org/id/metropolitan-district-council/leeds,Leeds City Council,30/11/2019,Children and Families,Social Care,Third Party Payments,Services Rendered By Other Organisations,511,26/11/2019,1911-00164,0.00,560.00,R,A Little Something Extra Ltd,No
Http://opendatacommunities.org/id/metropolitan-district-council/leeds,Leeds City Council,30/11/2019,Children and Families,Social Care,Third Party Payments,Services Rendered By Other Organisations,511,26/11/2019,1911-00165,0.00,806.00,R,A Little Something Extra Ltd,No
Http://opendatacommunities.org/id/metropolitan-district-council/leeds,Leeds City Council,30/11/2019,Children and Families,Social Care,Third Party Payments,Services Rendered By Other Organisations,511,26/11/2019,1911-00166,0.00,1085.00,R,A Little Something Extra Ltd,No
Http://opendatacommunities.org/id/metropolitan-district-council/leeds,Leeds City Council,30/11/2019,Resources and Housing,HRA Housing Leeds,Capital,Other Costs,7,20/11/2019,1911-00167,0.00,100.00,C,REDACTED PERSONAL DATA,No
Http://opendatacommunities.org/id/metropolitan-district-council/leeds,Leeds City Council,30/11/2019,Communities and Environment,Customer Access,Supplies and Services,Bought In Professional Services,277,01/11/2019,1911-00168,0.00,27.00,R,A Mohammed,No
Http://opendatacommunities.org/id/metropolitan-district-council/leeds,Leeds City Council,30/11/2019,Communities and Environment,Customer Access,Supplies and Services,Bought In Professional Services,277,01/11/2019,1911-00169,0.00,18.00,R,A Mohammed,No
Http://opendatacommunities.org/id/metropolitan-district-council/leeds,Leeds City Council,30/11/2019,Communities and Environment,Customer Access,Supplies and Services,Bought In Professional Services,277,01/11/2019,1911-00170,0.00,27.00,R,A Mohammed,No
Http://opendatacommunities.org/id/metropolitan-district-council/leeds,Leeds City Council,30/11/2019,Communities and Environment,Customer Access,Supplies and Services,Bought In Professional Services,277,01/11/2019,1911-00171,0.00,18.00,R,A Mohammed,No
Http://opendatacommunities.org/id/metropolitan-district-council/leeds,Leeds City Council,30/11/2019,Communities and Environment,Customer Access,Supplies and Services,Bought In Professional Services,277,01/11/2019,1911-00172,0.00,18.00,R,A Mohammed,No
Http://opendatacommunities.org/id/metropolitan-district-council/leeds,Leeds City Council,30/11/2019,Communities and Environment,Customer Access,Supplies and Services,Bought In Professional Services,277,01/11/2019,1911-00173,0.00,18.00,R,A Mohammed,No
Http://opendatacommunities.org/id/metropolitan-district-council/leeds,Leeds City Council,30/11/2019,Communities and Environment,Customer Access,Supplies and Services,Bought In Professional Services,277,01/11/2019,1911-00174,0.00,18.00,R,A Mohammed,No
Http://opendatacommunities.org/id/metropolitan-district-council/leeds,Leeds City Council,30/11/2019,Communities and Environment,Customer Access,Supplies and Services,Bought In Professional Services,277,01/11/2019,1911-00175,0.00,18.00,R,A Mohammed,No
Http://opendatacommunities.org/id/metropolitan-district-council/leeds,Leeds City Council,30/11/2019,Communities and Environment,Customer Access,Supplies and Services,Bought In Professional Services,277,01/11/2019,1911-00176,0.00,18.00,R,A Mohammed,No
Http://opendatacommunities.org/id/metropolitan-district-council/leeds,Leeds City Council,30/11/2019,Communities and Environment,Customer Access,Supplies and Services,Bought In Professional Services,277,01/11/2019,1911-00177,0.00,18.00,R,A Mohammed,No
Http://opendatacommunities.org/id/metropolitan-district-council/leeds,Leeds City Council,30/11/2019,Communities and Environment,Customer Access,Supplies and Services,Bought In Professional Services,277,01/11/2019,1911-00178,0.00,18.00,R,A Mohammed,No
Http://opendatacommunities.org/id/metropolitan-district-council/leeds,Leeds City Council,30/11/2019,Communities and Environment,Customer Access,Supplies and Services,Bought In Professional Services,277,08/11/2019,1911-00179,0.00,18.00,R,A Mohammed,No
Http://opendatacommunities.org/id/metropolitan-district-council/leeds,Leeds City Council,30/11/2019,Communities and Environment,Customer Access,Supplies and Services,Bought In Professional Services,277,08/11/2019,1911-00180,0.00,18.00,R,A Mohammed,No
Http://opendatacommunities.org/id/metropolitan-district-council/leeds,Leeds City Council,30/11/2019,Communities and Environment,Customer Access,Supplies and Services,Bought In Professional Services,277,15/11/2019,1911-00181,0.00,18.00,R,A Mohammed,No
Http://opendatacommunities.org/id/metropolitan-district-council/leeds,Leeds City Council,30/11/2019,Communities and Environment,Customer Access,Supplies and Services,Bought In Professional Services,277,15/11/2019,1911-00182,0.00,30.00,R,A Mohammed,No
Http://opendatacommunities.org/id/metropolitan-district-council/leeds,Leeds City Council,30/11/2019,Communities and Environment,Customer Access,Supplies and Services,Bought In Professional Services,277,15/11/2019,1911-00183,0.00,22.50,R,A Mohammed,No
Http://opendatacommunities.org/id/metropolitan-district-council/leeds,Leeds City Council,30/11/2019,Communities and Environment,Customer Access,Supplies and Services,Bought In Professional Services,277,15/11/2019,1911-00184,0.00,18.00,R,A Mohammed,No
Http://opendatacommunities.org/id/metropolitan-district-council/leeds,Leeds City Council,30/11/2019,Communities and Environment,Customer Access,Supplies and Services,Bought In Professional Services,277,15/11/2019,1911-00185,0.00,18.00,R,A Mohammed,No
Http://opendatacommunities.org/id/metropolitan-district-council/leeds,Leeds City Council,30/11/2019,Communities and Environment,Customer Access,Supplies and Services,Bought In Professional Services,277,15/11/2019,1911-00186,0.00,27.00,R,A Mohammed,No
Http://opendatacommunities.org/id/metropolitan-district-council/leeds,Leeds City Council,30/11/2019,Communities and Environment,Customer Access,Supplies and Services,Bought In Professional Services,277,15/11/2019,1911-00187,0.00,45.00,R,A Mohammed,No
Http://opendatacommunities.org/id/metropolitan-district-council/leeds,Leeds City Council,30/11/2019,Communities and Environment,Customer Access,Supplies and Services,Bought In Professional Services,277,15/11/2019,1911-00188,0.00,18.00,R,A Mohammed,No
Http://opendatacommunities.org/id/metropolitan-district-council/leeds,Leeds City Council,30/11/2019,Communities and Environment,Customer Access,Supplies and Services,Bought In Professional Services,277,21/11/2019,1911-00189,0.00,18.00,R,A Mohammed,No
Http://opendatacommunities.org/id/metropolitan-district-council/leeds,Leeds City Council,30/11/2019,Communities and Environment,Customer Access,Supplies and Services,Bought In Professional Services,277,21/11/2019,1911-00190,0.00,36.00,R,A Mohammed,No
Http://opendatacommunities.org/id/metropolitan-district-council/leeds,Leeds City Council,30/11/2019,Communities and Environment,Customer Access,Supplies and Services,Bought In Professional Services,277,21/11/2019,1911-00191,0.00,18.00,R,A Mohammed,No
Http://opendatacommunities.org/id/metropolitan-district-council/leeds,Leeds City Council,30/11/2019,Communities and Environment,Customer Access,Supplies and Services,Bought In Professional Services,277,21/11/2019,1911-00192,0.00,18.00,R,A Mohammed,No
Http://opendatacommunities.org/id/metropolitan-district-council/leeds,Leeds City Council,30/11/2019,Communities and Environment,Customer Access,Supplies and Services,Bought In Professional Services,277,21/11/2019,1911-00193,0.00,18.00,R,A Mohammed,No
Http://opendatacommunities.org/id/metropolitan-district-council/leeds,Leeds City Council,30/11/2019,Communities and Environment,Customer Access,Supplies and Services,Bought In Professional Services,277,21/11/2019,1911-00194,0.00,18.00,R,A Mohammed,No
Http://opendatacommunities.org/id/metropolitan-district-council/leeds,Leeds City Council,30/11/2019,Communities and Environment,Customer Access,Supplies and Services,Bought In Professional Services,277,21/11/2019,1911-00195,0.00,18.00,R,A Mohammed,No
Http://opendatacommunities.org/id/metropolitan-district-council/leeds,Leeds City Council,30/11/2019,Communities and Environment,Customer Access,Supplies and Services,Bought In Professional Services,277,21/11/2019,1911-00196,0.00,18.00,R,A Mohammed,No
Http://opendatacommunities.org/id/metropolitan-district-council/leeds,Leeds City Council,30/11/2019,Communities and Environment,Customer Access,Supplies and Services,Bought In Professional Services,277,21/11/2019,1911-00197,0.00,18.00,R,A Mohammed,No
Http://opendatacommunities.org/id/metropolitan-district-council/leeds,Leeds City Council,30/11/2019,Communities and Environment,Customer Access,Supplies and Services,Bought In Professional Services,277,21/11/2019,1911-00198,0.00,18.00,R,A Mohammed,No
Http://opendatacommunities.org/id/metropolitan-district-council/leeds,Leeds City Council,30/11/2019,Communities and Environment,Customer Access,Supplies and Services,Bought In Professional Services,277,29/11/2019,1911-00199,0.00,18.00,R,A Mohammed,No
Http://opendatacommunities.org/id/metropolitan-district-council/leeds,Leeds City Council,30/11/2019,Communities and Environment,Customer Access,Supplies and Services,Bought In Professional Services,277,29/11/2019,1911-00200,0.00,18.00,R,A Mohammed,No
Http://opendatacommunities.org/id/metropolitan-district-council/leeds,Leeds City Council,30/11/2019,Communities and Environment,Customer Access,Supplies and Services,Bought In Professional Services,277,29/11/2019,1911-00201,0.00,18.00,R,A Mohammed,No
Http://opendatacommunities.org/id/metropolitan-district-council/leeds,Leeds City Council,30/11/2019,Communities and Environment,Customer Access,Supplies and Services,Bought In Professional Services,277,29/11/2019,1911-00202,0.00,22.50,R,A Mohammed,No
Http://opendatacommunities.org/id/metropolitan-district-council/leeds,Leeds City Council,30/11/2019,Communities and Environment,Customer Access,Supplies and Services,Bought In Professional Services,277,29/11/2019,1911-00203,0.00,27.00,R,A Mohammed,No
Http://opendatacommunities.org/id/metropolitan-district-council/leeds,Leeds City Council,30/11/2019,Communities and Environment,Customer Access,Supplies and Services,Bought In Professional Services,277,29/11/2019,1911-00204,0.00,18.00,R,A Mohammed,No
Http://opendatacommunities.org/id/metropolitan-district-council/leeds,Leeds City Council,30/11/2019,Communities and Environment,Customer Access,Supplies and Services,Bought In Professional Services,277,29/11/2019,1911-00205,0.00,27.00,R,A Mohammed,No
Http://opendatacommunities.org/id/metropolitan-district-council/leeds,Leeds City Council,30/11/2019,Resources and Housing,HRA Housing Leeds,Capital,Other Costs,7,06/11/2019,1911-00206,0.00,80.00,C,REDACTED PERSONAL DATA,No
Http://opendatacommunities.org/id/metropolitan-district-council/leeds,Leeds City Council,30/11/2019,Resources and Housing,HRA Housing Leeds,Capital,Other Costs,7,28/11/2019,1911-00207,0.00,100.00,C,REDACTED PERSONAL DATA,No
Http://opendatacommunities.org/id/metropolitan-district-council/leeds,Leeds City Council,30/11/2019,Communities and Environment,Customer Access,Supplies and Services,Bought In Professional Services,277,14/11/2019,1911-00208,0.00,22.50,R,A Musalam,No
Http://opendatacommunities.org/id/metropolitan-district-council/leeds,Leeds City Council,30/11/2019,Communities and Environment,Customer Access,Supplies and Services,Bought In Professional Services,277,21/11/2019,1911-00209,0.00,45.00,R,A Musalam,No
Http://opendatacommunities.org/id/metropolitan-district-council/leeds,Leeds City Council,30/11/2019,Children and Families,Social Care,Third Party Payments,Services Rendered By Other Organisations,511,01/11/2019,1911-00210,0.00,2257.50,R,REDACTED PERSONAL DATA,No
Http://opendatacommunities.org/id/metropolitan-district-council/leeds,Leeds City Council,30/11/2019,Children and Families,Social Care,Third Party Payments,Services Rendered By Other Organisations,511,06/11/2019,1911-00211,0.00,1365.00,R,REDACTED PERSONAL DATA,No
Http://opendatacommunities.org/id/metropolitan-district-council/leeds,Leeds City Council,30/11/2019,Communities and Environment,Customer Access,Supplies and Services,Bought In Professional Services,277,01/11/2019,1911-00212,0.00,45.00,R,A Namaki,No
Http://opendatacommunities.org/id/metropolitan-district-council/leeds,Leeds City Council,30/11/2019,Communities and Environment,Customer Access,Supplies and Services,Bought In Professional Services,277,01/11/2019,1911-00213,0.00,18.00,R,A Namaki,No
Http://opendatacommunities.org/id/metropolitan-district-council/leeds,Leeds City Council,30/11/2019,Communities and Environment,Customer Access,Supplies and Services,Bought In Professional Services,277,01/11/2019,1911-00214,0.00,18.00,R,A Namaki,No
Http://opendatacommunities.org/id/metropolitan-district-council/leeds,Leeds City Council,30/11/2019,Communities and Environment,Customer Access,Supplies and Services,Bought In Professional Services,277,01/11/2019,1911-00215,0.00,31.50,R,A Namaki,No
Http://opendatacommunities.org/id/metropolitan-district-council/leeds,Leeds City Council,30/11/2019,Communities and Environment,Customer Access,Supplies and Services,Bought In Professional Services,277,01/11/2019,1911-00216,0.00,18.00,R,A Namaki,No
Http://opendatacommunities.org/id/metropolitan-district-council/leeds,Leeds City Council,30/11/2019,Communities and Environment,Customer Access,Supplies and Services,Bought In Professional Services,277,01/11/2019,1911-00217,0.00,18.00,R,A Namaki,No
Http://opendatacommunities.org/id/metropolitan-district-council/leeds,Leeds City Council,30/11/2019,Communities and Environment,Customer Access,Supplies and Services,Bought In Professional Services,277,01/11/2019,1911-00218,0.00,18.00,R,A Namaki,No
Http://opendatacommunities.org/id/metropolitan-district-council/leeds,Leeds City Council,30/11/2019,Communities and Environment,Customer Access,Supplies and Services,Bought In Professional Services,277,01/11/2019,1911-00219,0.00,18.00,R,A Namaki,No
Http://opendatacommunities.org/id/metropolitan-district-council/leeds,Leeds City Council,30/11/2019,Communities and Environment,Customer Access,Supplies and Services,Bought In Professional Services,277,01/11/2019,1911-00220,0.00,18.00,R,A Namaki,No
Http://opendatacommunities.org/id/metropolitan-district-council/leeds,Leeds City Council,30/11/2019,Communities and Environment,Customer Access,Supplies and Services,Bought In Professional Services,277,01/11/2019,1911-00221,0.00,27.00,R,A Namaki,No
Http://opendatacommunities.org/id/metropolitan-district-council/leeds,Leeds City Council,30/11/2019,Communities and Environment,Customer Access,Supplies and Services,Bought In Professional Services,277,01/11/2019,1911-00222,0.00,18.00,R,A Namaki,No
Http://opendatacommunities.org/id/metropolitan-district-council/leeds,Leeds City Council,30/11/2019,Communities and Environment,Customer Access,Supplies and Services,Bought In Professional Services,277,01/11/2019,1911-00223,0.00,18.00,R,A Namaki,No
Http://opendatacommunities.org/id/metropolitan-district-council/leeds,Leeds City Council,30/11/2019,Communities and Environment,Customer Access,Supplies and Services,Bought In Professional Services,277,01/11/2019,1911-00224,0.00,18.00,R,A Namaki,No
Http://opendatacommunities.org/id/metropolitan-district-council/leeds,Leeds City Council,30/11/2019,Communities and Environment,Customer Access,Supplies and Services,Bought In Professional Services,277,01/11/2019,1911-00225,0.00,18.00,R,A Namaki,No
Http://opendatacommunities.org/id/metropolitan-district-council/leeds,Leeds City Council,30/11/2019,Communities and Environment,Customer Access,Supplies and Services,Bought In Professional Services,277,01/11/2019,1911-00226,0.00,22.50,R,A Namaki,No
Http://opendatacommunities.org/id/metropolitan-district-council/leeds,Leeds City Council,30/11/2019,Communities and Environment,Customer Access,Supplies and Services,Bought In Professional Services,277,01/11/2019,1911-00227,0.00,27.00,R,A Namaki,No
Http://opendatacommunities.org/id/metropolitan-district-council/leeds,Leeds City Council,30/11/2019,Communities and Environment,Customer Access,Supplies and Services,Bought In Professional Services,277,01/11/2019,1911-00228,0.00,36.00,R,A Namaki,No
Http://opendatacommunities.org/id/metropolitan-district-council/leeds,Leeds City Council,30/11/2019,Communities and Environment,Customer Access,Supplies and Services,Bought In Professional Services,277,01/11/2019,1911-00229,0.00,22.50,R,A Namaki,No
Http://opendatacommunities.org/id/metropolitan-district-council/leeds,Leeds City Council,30/11/2019,Communities and Environment,Customer Access,Supplies and Services,Bought In Professional Services,277,01/11/2019,1911-00230,0.00,9.00,R,A Namaki,No
Http://opendatacommunities.org/id/metropolitan-district-council/leeds,Leeds City Council,30/11/2019,Communities and Environment,Customer Access,Supplies and Services,Bought In Professional Services,277,01/11/2019,1911-00231,0.00,45.00,R,A Namaki,No
Http://opendatacommunities.org/id/metropolitan-district-council/leeds,Leeds City Council,30/11/2019,Communities and Environment,Customer Access,Supplies and Services,Bought In Professional Services,277,01/11/2019,1911-00232,0.00,18.00,R,A Namaki,No
Http://opendatacommunities.org/id/metropolitan-district-council/leeds,Leeds City Council,30/11/2019,Communities and Environment,Customer Access,Supplies and Services,Bought In Professional Services,277,01/11/2019,1911-00233,0.00,18.00,R,A Namaki,No
Http://opendatacommunities.org/id/metropolitan-district-council/leeds,Leeds City Council,30/11/2019,Communities and Environment,Customer Access,Supplies and Services,Bought In Professional Services,277,08/11/2019,1911-00234,0.00,22.50,R,A Namaki,No
Http://opendatacommunities.org/id/metropolitan-district-council/leeds,Leeds City Council,30/11/2019,Communities and Environment,Customer Access,Supplies and Services,Bought In Professional Services,277,08/11/2019,1911-00235,0.00,18.00,R,A Namaki,No
Http://opendatacommunities.org/id/metropolitan-district-council/leeds,Leeds City Council,30/11/2019,Communities and Environment,Customer Access,Supplies and Services,Bought In Professional Services,277,08/11/2019,1911-00236,0.00,63.00,R,A Namaki,No
Http://opendatacommunities.org/id/metropolitan-district-council/leeds,Leeds City Council,30/11/2019,Communities and Environment,Customer Access,Supplies and Services,Bought In Professional Services,277,08/11/2019,1911-00237,0.00,63.00,R,A Namaki,No
Http://opendatacommunities.org/id/metropolitan-district-council/leeds,Leeds City Council,30/11/2019,Communities and Environment,Customer Access,Supplies and Services,Bought In Professional Services,277,08/11/2019,1911-00238,0.00,18.00,R,A Namaki,No
Http://opendatacommunities.org/id/metropolitan-district-council/leeds,Leeds City Council,30/11/2019,Communities and Environment,Customer Access,Supplies and Services,Bought In Professional Services,277,08/11/2019,1911-00239,0.00,60.75,R,A Namaki,No
Http://opendatacommunities.org/id/metropolitan-district-council/leeds,Leeds City Council,30/11/2019,Communities and Environment,Customer Access,Supplies and Services,Bought In Professional Services,277,08/11/2019,1911-00240,0.00,36.00,R,A Namaki,No
Http://opendatacommunities.org/id/metropolitan-district-council/leeds,Leeds City Council,30/11/2019,Communities and Environment,Customer Access,Supplies and Services,Bought In Professional Services,277,08/11/2019,1911-00241,0.00,18.00,R,A Namaki,No
Http://opendatacommunities.org/id/metropolitan-district-council/leeds,Leeds City Council,30/11/2019,Communities and Environment,Customer Access,Supplies and Services,Bought In Professional Services,277,08/11/2019,1911-00242,0.00,18.00,R,A Namaki,No
Http://opendatacommunities.org/id/metropolitan-district-council/leeds,Leeds City Council,30/11/2019,Communities and Environment,Customer Access,Supplies and Services,Bought In Professional Services,277,08/11/2019,1911-00243,0.00,18.00,R,A Namaki,No
Http://opendatacommunities.org/id/metropolitan-district-council/leeds,Leeds City Council,30/11/2019,Communities and Environment,Customer Access,Supplies and Services,Bought In Professional Services,277,08/11/2019,1911-00244,0.00,22.50,R,A Namaki,No
Http://opendatacommunities.org/id/metropolitan-district-council/leeds,Leeds City Council,30/11/2019,Communities and Environment,Customer Access,Supplies and Services,Bought In Professional Services,277,15/11/2019,1911-00245,0.00,18.00,R,A Namaki,No
Http://opendatacommunities.org/id/metropolitan-district-council/leeds,Leeds City Council,30/11/2019,Communities and Environment,Customer Access,Supplies and Services,Bought In Professional Services,277,15/11/2019,1911-00246,0.00,22.50,R,A Namaki,No
Http://opendatacommunities.org/id/metropolitan-district-council/leeds,Leeds City Council,30/11/2019,Communities and Environment,Customer Access,Supplies and Services,Bought In Professional Services,277,15/11/2019,1911-00247,0.00,18.00,R,A Namaki,No
Http://opendatacommunities.org/id/metropolitan-district-council/leeds,Leeds City Council,30/11/2019,Communities and Environment,Customer Access,Supplies and Services,Bought In Professional Services,277,15/11/2019,1911-00248,0.00,18.00,R,A Namaki,No
Http://opendatacommunities.org/id/metropolitan-district-council/leeds,Leeds City Council,30/11/2019,Communities and Environment,Customer Access,Supplies and Services,Bought In Professional Services,277,21/11/2019,1911-00249,0.00,18.00,R,A Namaki,No
Http://opendatacommunities.org/id/metropolitan-district-council/leeds,Leeds City Council,30/11/2019,Communities and Environment,Customer Access,Supplies and Services,Bought In Professional Services,277,21/11/2019,1911-00250,0.00,49.50,R,A Namaki,No
Http://opendatacommunities.org/id/metropolitan-district-council/leeds,Leeds City Council,30/11/2019,Communities and Environment,Customer Access,Supplies and Services,Bought In Professional Services,277,21/11/2019,1911-00251,0.00,22.50,R,A Namaki,No
Http://opendatacommunities.org/id/metropolitan-district-council/leeds,Leeds City Council,30/11/2019,Communities and Environment,Customer Access,Supplies and Services,Bought In Professional Services,277,21/11/2019,1911-00252,0.00,18.00,R,A Namaki,No
Http://opendatacommunities.org/id/metropolitan-district-council/leeds,Leeds City Council,30/11/2019,Communities and Environment,Parks and Countryside,Supplies and Services,Other Hired And Contracted Services,265,08/11/2019,1911-00253,0.00,1372.80,R,A Nicholls,No
Http://opendatacommunities.org/id/metropolitan-district-council/leeds,Leeds City Council,30/11/2019,Resources and Housing,HRA Housing Leeds,Capital,Other Costs,7,14/11/2019,1911-00254,0.00,80.00,C,REDACTED PERSONAL DATA,No
Http://opendatacommunities.org/id/metropolitan-district-council/leeds,Leeds City Council,30/11/2019,City Development,Libraries  Arts & Heritage,Supplies and Services,Art Galleries Total Stores,3,25/11/2019,1911-00255,0.00,193.50,R,A Oppenheimer & Co Ltd,No
Http://opendatacommunities.org/id/metropolitan-district-council/leeds,Leeds City Council,30/11/2019,Children and Families,Social Care,Third Party Payments,Contact,548,29/11/2019,1911-00256,0.00,23.00,R,REDACTED PERSONAL DATA,No
Http://opendatacommunities.org/id/metropolitan-district-council/leeds,Leeds City Council,30/11/2019,Resources and Housing,HRA Housing Leeds,Capital,Other Costs,7,21/11/2019,1911-00257,0.00,40.00,C,REDACTED PERSONAL DATA,No
Http://opendatacommunities.org/id/metropolitan-district-council/leeds,Leeds City Council,30/11/2019,Children and Families,Social Care  ,Transfer Payments,Leaving Care Allowances,634,28/10/2019,1911-00258,0.00,239.00,R,A R C Appliances Limited,Yes
Http://opendatacommunities.org/id/metropolitan-district-council/leeds,Leeds City Council,30/11/2019,Resources and Housing,HRA Housing Leeds,Capital,Other Costs,7,28/11/2019,1911-00259,0.00,80.00,C,REDACTED PERSONAL DATA,No
Http://opendatacommunities.org/id/metropolitan-district-council/leeds,Leeds City Council,30/11/2019,Children and Families,Social Care,Third Party Payments,Services Rendered By Other Organisations,511,01/11/2019,1911-00260,0.00,225.75,R,REDACTED PERSONAL DATA,No
Http://opendatacommunities.org/id/metropolitan-district-council/leeds,Leeds City Council,30/11/2019,Resources and Housing,Shared Services,Supplies and Services,Other Hired And Contracted Services,265,13/11/2019,1911-00261,0.00,38.00,R,A Star Couriers Ltd,No
Http://opendatacommunities.org/id/metropolitan-district-council/leeds,Leeds City Council,30/11/2019,Resources and Housing,Shared Services,Supplies and Services,Other Hired And Contracted Services,265,15/11/2019,1911-00262,0.00,49.75,R,A Star Couriers Ltd,No
Http://opendatacommunities.org/id/metropolitan-district-council/leeds,Leeds City Council,30/11/2019,Communities and Environment,Communities,Supplies and Services,Other Hired And Contracted Services,265,28/11/2019,1911-00263,0.00,50.00,R,REDACTED PERSONAL DATA,No
Http://opendatacommunities.org/id/metropolitan-district-council/leeds,Leeds City Council,30/11/2019,Children and Families,Social Care,Third Party Payments,Independent Fostering Agencies,509,01/11/2019,1911-00264,0.00,1539.00,R,A Taxis,No
Http://opendatacommunities.org/id/metropolitan-district-council/leeds,Leeds City Council,30/11/2019,Children and Families,Social Care,Third Party Payments,Services Rendered By Other Organisations,511,01/11/2019,1911-00265,0.00,451.50,R,REDACTED PERSONAL DATA,No
Http://opendatacommunities.org/id/metropolitan-district-council/leeds,Leeds City Council,30/11/2019,City Development,Libraries  Arts & Heritage,Supplies and Services,Operational Materials,205,22/11/2019,1911-00266,0.00,516.00,R,A V Parts Master Ltd,No
Http://opendatacommunities.org/id/metropolitan-district-council/leeds,Leeds City Council,30/11/2019,Children and Families,Social Care,Third Party Payments,Services Rendered By Other Organisations,511,01/11/2019,1911-00267,0.00,677.25,R,REDACTED PERSONAL DATA,No
Http://opendatacommunities.org/id/metropolitan-district-council/leeds,Leeds City Council,30/11/2019,Children and Families,Social Care,Third Party Payments,Services Rendered By Other Organisations,511,22/11/2019,1911-00268,0.00,494.20,R,REDACTED PERSONAL DATA,No
Http://opendatacommunities.org/id/metropolitan-district-council/leeds,Leeds City Council,30/11/2019,Children and Families,Social Care,Third Party Payments,Services Rendered By Other Organisations,511,22/11/2019,1911-00269,0.00,83.62,R,REDACTED PERSONAL DATA,No
Http://opendatacommunities.org/id/metropolitan-district-council/leeds,Leeds City Council,30/11/2019,Children and Families,Social Care,Third Party Payments,General External Residential Placements,507,01/11/2019,1911-00270,0.00,28971.67,R,A Wilderness Way Ltd,No
Http://opendatacommunities.org/id/metropolitan-district-council/leeds,Leeds City Council,30/11/2019,Children and Families,Social Care,Third Party Payments,General External Residential Placements,507,01/11/2019,1911-00271,0.00,1440.00,R,A Wilderness Way Ltd,No
Http://opendatacommunities.org/id/metropolitan-district-council/leeds,Leeds City Council,30/11/2019,Children and Families,Social Care,Third Party Payments,General External Residential Placements,507,01/11/2019,1911-00272,0.00,22585.67,R,A Wilderness Way Ltd,No
Http://opendatacommunities.org/id/metropolitan-district-council/leeds,Leeds City Council,30/11/2019,Children and Families,Social Care,Third Party Payments,General External Residential Placements,507,21/11/2019,1911-00273,0.00,279.00,R,A Wilderness Way Ltd,No
Http://opendatacommunities.org/id/metropolitan-district-council/leeds,Leeds City Council,30/11/2019,Children and Families,Social Care,Third Party Payments,General External Residential Placements,507,21/11/2019,1911-00274,0.00,712.50,R,A Wilderness Way Ltd,No
Http://opendatacommunities.org/id/metropolitan-district-council/leeds,Leeds City Council,30/11/2019,Children and Families,Social Care,Third Party Payments,General External Residential Placements,507,21/11/2019,1911-00275,0.00,-8014.27,R,A Wilderness Way Ltd,No
Http://opendatacommunities.org/id/metropolitan-district-council/leeds,Leeds City Council,30/11/2019,Children and Families,Social Care,Third Party Payments,General External Residential Placements,507,21/11/2019,1911-00276,0.00,10214.27,R,A Wilderness Way Ltd,No
Http://opendatacommunities.org/id/metropolitan-district-council/leeds,Leeds City Council,30/11/2019,Children and Families,Social Care,Third Party Payments,General External Residential Placements,507,25/11/2019,1911-00277,0.00,1661.76,R,A Wilderness Way Ltd,No
Http://opendatacommunities.org/id/metropolitan-district-council/leeds,Leeds City Council,30/11/2019,Children and Families,Social Care,Third Party Payments,General External Residential Placements,507,29/11/2019,1911-00278,0.00,2914.28,R,A Wilderness Way Ltd,No
Http://opendatacommunities.org/id/metropolitan-district-council/leeds,Leeds City Council,30/11/2019,Children and Families,Social Care,Third Party Payments,General External Residential Placements,507,29/11/2019,1911-00279,0.00,320.00,R,A Wilderness Way Ltd,No
Http://opendatacommunities.org/id/metropolitan-district-council/leeds,Leeds City Council,30/11/2019,Communities and Environment,Waste Management,Capital,Furniture And Equipment,5,08/11/2019,1911-00280,0.00,5900.00,C,A&C Weber Uk Ltd,No
Http://opendatacommunities.org/id/metropolitan-district-council/leeds,Leeds City Council,30/11/2019,Resources and Housing,Sustainable Energy & Climate Change,Capital,Other Costs,7,12/11/2019,1911-00281,0.00,32000.00,C,REDACTED COMMERCIAL CONFIDENTIALITY,No
Http://opendatacommunities.org/id/metropolitan-district-council/leeds,Leeds City Council,30/11/2019,Resources and Housing,Leeds Building Services,Supplies and Services,Operational Materials,205,14/11/2019,1911-00282,0.00,45.90,R,A1 Stairlift Spares,No
Http://opendatacommunities.org/id/metropolitan-district-council/leeds,Leeds City Council,30/11/2019,Resources and Housing,Leeds Building Services,Supplies and Services,Operational Materials,205,27/11/2019,1911-00283,0.00,170.00,R,Aalco Leeds,No
Http://opendatacommunities.org/id/metropolitan-district-council/leeds,Leeds City Council,30/11/2019,Resources and Housing,Leeds Building Services,Supplies and Services,Operational Materials,205,27/11/2019,1911-00284,0.00,70.00,R,Aalco Leeds,No
Http://opendatacommunities.org/id/metropolitan-district-council/leeds,Leeds City Council,30/11/2019,Resources and Housing,Leeds Building Services,Supplies and Services,Operational Materials,205,27/11/2019,1911-00285,0.00,20.00,R,Aalco Leeds,No
Http://opendatacommunities.org/id/metropolitan-district-council/leeds,Leeds City Council,30/11/2019,Children and Families,Social Care  ,Supplies and Services,Operational Materials,205,01/10/2019,1911-00286,0.00,86.06,R,Aardvark Archery,Yes
Http://opendatacommunities.org/id/metropolitan-district-council/leeds,Leeds City Council,30/11/2019,City Development,Libraries  Arts & Heritage,Supplies and Services,Other Hired And Contracted Services,265,22/11/2019,1911-00287,0.00,600.00,R,Aaron Andrews Ltd,No
Http://opendatacommunities.org/id/metropolitan-district-council/leeds,Leeds City Council,30/11/2019,Children and Families,Social Care,Transfer Payments,Leaving Care Allowances,634,15/11/2019,1911-00288,0.00,50.00,R,REDACTED PERSONAL DATA,No
Http://opendatacommunities.org/id/metropolitan-district-council/leeds,Leeds City Council,30/11/2019,Children and Families,Social Care,Transfer Payments,16 Plus Top Up Allowance,625,22/11/2019,1911-00289,0.00,60.00,R,REDACTED PERSONAL DATA,No
Http://opendatacommunities.org/id/metropolitan-district-council/leeds,Leeds City Council,30/11/2019,Children and Families,Social Care,Transfer Payments,Leaving Care Allowances,634,22/11/2019,1911-00290,0.00,50.00,R,REDACTED PERSONAL DATA,No
Http://opendatacommunities.org/id/metropolitan-district-council/leeds,Leeds City Council,30/11/2019,Children and Families,Social Care,Transfer Payments,16 Plus Top Up Allowance,625,29/11/2019,1911-00291,0.00,20.00,R,REDACTED PERSONAL DATA,No
Http://opendatacommunities.org/id/metropolitan-district-council/leeds,Leeds City Council As Accountable Body,30/11/2019,Social Services Pooled Budgets,Leeds Community Equip Store Pooled Budgt,Supplies and Services,Other Equipment,203,01/11/2019,1911-00292,0.00,664.00,R,Aat (Gb) Ltd,No
Http://opendatacommunities.org/id/metropolitan-district-council/leeds,Leeds City Council As Accountable Body,30/11/2019,Social Services Pooled Budgets,Leeds Community Equip Store Pooled Budgt,Supplies and Services,Other Equipment,203,06/11/2019,1911-00293,0.00,165.00,R,Aat (Gb) Ltd,No
Http://opendatacommunities.org/id/metropolitan-district-council/leeds,Leeds City Council As Accountable Body,30/11/2019,Social Services Pooled Budgets,Leeds Community Equip Store Pooled Budgt,Supplies and Services,Other Equipment,203,13/11/2019,1911-00294,0.00,444.00,R,Aat (Gb) Ltd,No
Http://opendatacommunities.org/id/metropolitan-district-council/leeds,Leeds City Council,30/11/2019,Adults and Health,Social Services Support Services,Transport,Public Transport Expenses,310,08/11/2019,1911-00295,0.00,380.00,R,Ab Cars,No
Http://opendatacommunities.org/id/metropolitan-district-council/leeds,Leeds City Council,30/11/2019,Resources and Housing,Human Resources,Employees,Occupational Health,85,15/11/2019,1911-00296,0.00,40.00,R,Abbey Grange Medical Practice,No
Http://opendatacommunities.org/id/metropolitan-district-council/leeds,Leeds City Council,30/11/2019,Adults and Health,Services For Adults Under 65 Mental/Dis,Third Party Payments,Nursing Home,570,13/11/2019,1911-00297,0.00,1924.00,R,Abbey Grange Nursing Home,No
Http://opendatacommunities.org/id/metropolitan-district-council/leeds,Leeds City Council,30/11/2019,City Development,Libraries  Arts & Heritage  ,Supplies and Services,Teaching Materials,202,16/10/2019,1911-00298,0.00,5.23,R,Abbey House Museum,Yes
Http://opendatacommunities.org/id/metropolitan-district-council/leeds,Leeds City Council,30/11/2019,Communities and Environment,Parks And Countryside  ,Supplies and Services,Other Hired And Contracted Services,265,24/10/2019,1911-00299,0.00,20.00,R,Abbey House Museum,Yes
Http://opendatacommunities.org/id/metropolitan-district-council/leeds,Leeds City Council,30/11/2019,Children and Families,Learning,Supplies and Services,Other Hired And Contracted Services,265,15/11/2019,1911-00300,0.00,375.00,R,Abbey Multi Academy Trust,No
Http://opendatacommunities.org/id/metropolitan-district-council/leeds,Leeds City Council,30/11/2019,Children and Families,Learning,Supplies and Services,Other Hired And Contracted Services,265,15/11/2019,1911-00301,0.00,75.00,R,Abbey Multi Academy Trust,No
Http://opendatacommunities.org/id/metropolitan-district-council/leeds,Leeds City Council,30/11/2019,Children and Families,Social Care,Supplies and Services,Other Hired And Contracted Services,265,15/11/2019,1911-00302,0.00,211.80,R,Abbey Multi Academy Trust,No
Http://opendatacommunities.org/id/metropolitan-district-council/leeds,Leeds City Council,30/11/2019,Adults and Health,Other Adult Services,Supplies and Services,Conference Meetings,253,15/11/2019,1911-00303,0.00,155.00,R,Abbey Multi Academy Trust,No
Http://opendatacommunities.org/id/metropolitan-district-council/leeds,Leeds City Council,30/11/2019,Children and Families,Social Care,Third Party Payments,Allowances,546,06/11/2019,1911-00304,0.00,-449.67,R,ABBIE  OMAHONY RTND FUNDS,No
Http://opendatacommunities.org/id/metropolitan-district-council/leeds,Leeds City Council,30/11/2019,Children and Families,Social Care,Third Party Payments,Allowances,546,18/11/2019,1911-00305,0.00,-414.04,R,ABBIE O MAHONY BANK CHARGES,No
Http://opendatacommunities.org/id/metropolitan-district-council/leeds,Leeds City Council,30/11/2019,Children and Families,Social Care,Third Party Payments,Allowances,546,05/11/2019,1911-00306,0.00,986.76,R,ABBIE OMAHONY,No
Http://opendatacommunities.org/id/metropolitan-district-council/leeds,Leeds City Council,30/11/2019,Children and Families,Social Care,Third Party Payments,Services Rendered By Other Organisations,511,01/11/2019,1911-00307,0.00,6708.00,R,Abc Daycare And Ozone Out Of School,No
Http://opendatacommunities.org/id/metropolitan-district-council/leeds,Leeds City Council,30/11/2019,Children and Families,Social Care,Third Party Payments,Services Rendered By Other Organisations,511,06/11/2019,1911-00308,0.00,1911.00,R,Abc Daycare And Ozone Out Of School,No
Http://opendatacommunities.org/id/metropolitan-district-council/leeds,Leeds City Council,30/11/2019,Children and Families,Social Care,Third Party Payments,Services Rendered By Other Organisations,511,22/11/2019,1911-00309,0.00,741.01,R,Abc Daycare And Ozone Out Of School,No
Http://opendatacommunities.org/id/metropolitan-district-council/leeds,Leeds City Council,30/11/2019,Children and Families,Social Care,Third Party Payments,Services Rendered By Other Organisations,511,01/11/2019,1911-00310,0.00,8352.75,R,Abc Nursery At Lufc,No
Http://opendatacommunities.org/id/metropolitan-district-council/leeds,Leeds City Council,30/11/2019,Children and Families,Social Care,Third Party Payments,Services Rendered By Other Organisations,511,06/11/2019,1911-00311,0.00,2093.00,R,Abc Nursery At Lufc,No
Http://opendatacommunities.org/id/metropolitan-district-council/leeds,Leeds City Council,30/11/2019,Children and Families,Social Care,Third Party Payments,Services Rendered By Other Organisations,511,22/11/2019,1911-00312,0.00,2681.10,R,Abc Nursery At Lufc,No
Http://opendatacommunities.org/id/metropolitan-district-council/leeds,Leeds City Council,30/11/2019,Children and Families,Social Care,Third Party Payments,Services Rendered By Other Organisations,511,01/11/2019,1911-00313,0.00,4515.00,R,Abc@D'S Childcare,No
Http://opendatacommunities.org/id/metropolitan-district-council/leeds,Leeds City Council,30/11/2019,Children and Families,Social Care,Third Party Payments,Services Rendered By Other Organisations,511,06/11/2019,1911-00314,0.00,1365.00,R,Abc@D'S Childcare,No
Http://opendatacommunities.org/id/metropolitan-district-council/leeds,Leeds City Council,30/11/2019,Children and Families,Social Care,Third Party Payments,Services Rendered By Other Organisations,511,22/11/2019,1911-00315,0.00,2043.00,R,Abc@D'S Childcare,No
Http://opendatacommunities.org/id/metropolitan-district-council/leeds,Leeds City Council,30/11/2019,Communities and Environment,Customer Access,Supplies and Services,Bought In Professional Services,277,01/11/2019,1911-00316,0.00,22.50,R,Abdul Wadood Kazizadha,No
Http://opendatacommunities.org/id/metropolitan-district-council/leeds,Leeds City Council,30/11/2019,Communities and Environment,Customer Access,Supplies and Services,Bought In Professional Services,277,01/11/2019,1911-00317,0.00,22.50,R,Abdul Wadood Kazizadha,No
Http://opendatacommunities.org/id/metropolitan-district-council/leeds,Leeds City Council,30/11/2019,Communities and Environment,Customer Access,Supplies and Services,Bought In Professional Services,277,01/11/2019,1911-00318,0.00,22.50,R,Abdul Wadood Kazizadha,No
Http://opendatacommunities.org/id/metropolitan-district-council/leeds,Leeds City Council,30/11/2019,Resources and Housing,Sustainable Energy & Climate Change,Capital,Other Costs,7,11/11/2019,1911-00319,0.00,1500.00,C,REDACTED COMMERCIAL CONFIDENTIALITY,No
Http://opendatacommunities.org/id/metropolitan-district-council/leeds,Leeds City Council,30/11/2019,Communities and Environment,Customer Access,Supplies and Services,Bought In Professional Services,277,08/11/2019,1911-00320,0.00,27.00,R,Abdulahad Denha,No
Http://opendatacommunities.org/id/metropolitan-district-council/leeds,Leeds City Council,30/11/2019,Communities and Environment,Customer Access,Supplies and Services,Bought In Professional Services,277,08/11/2019,1911-00321,0.00,18.00,R,Abdulahad Denha,No
Http://opendatacommunities.org/id/metropolitan-district-council/leeds,Leeds City Council,30/11/2019,Communities and Environment,Customer Access,Supplies and Services,Bought In Professional Services,277,15/11/2019,1911-00322,0.00,18.00,R,Abdulahad Denha,No
Http://opendatacommunities.org/id/metropolitan-district-council/leeds,Leeds City Council,30/11/2019,Communities and Environment,Customer Access,Supplies and Services,Bought In Professional Services,277,15/11/2019,1911-00323,0.00,18.00,R,Abdulahad Denha,No
Http://opendatacommunities.org/id/metropolitan-district-council/leeds,Leeds City Council,30/11/2019,Communities and Environment,Customer Access,Supplies and Services,Bought In Professional Services,277,15/11/2019,1911-00324,0.00,27.00,R,Abdulahad Denha,No
Http://opendatacommunities.org/id/metropolitan-district-council/leeds,Leeds City Council,30/11/2019,Communities and Environment,Customer Access,Supplies and Services,Bought In Professional Services,277,15/11/2019,1911-00325,0.00,18.00,R,Abdulahad Denha,No
Http://opendatacommunities.org/id/metropolitan-district-council/leeds,Leeds City Council,30/11/2019,Communities and Environment,Customer Access,Supplies and Services,Bought In Professional Services,277,21/11/2019,1911-00326,0.00,27.00,R,Abdulahad Denha,No
Http://opendatacommunities.org/id/metropolitan-district-council/leeds,Leeds City Council,30/11/2019,Communities and Environment,Customer Access,Supplies and Services,Bought In Professional Services,277,21/11/2019,1911-00327,0.00,18.00,R,Abdulahad Denha,No
Http://opendatacommunities.org/id/metropolitan-district-council/leeds,Leeds City Council,30/11/2019,Communities and Environment,Customer Access,Supplies and Services,Bought In Professional Services,277,21/11/2019,1911-00328,0.00,18.00,R,Abdulahad Denha,No
Http://opendatacommunities.org/id/metropolitan-district-council/leeds,Leeds City Council,30/11/2019,Communities and Environment,Customer Access,Supplies and Services,Bought In Professional Services,277,21/11/2019,1911-00329,0.00,18.00,R,Abdulahad Denha,No
Http://opendatacommunities.org/id/metropolitan-district-council/leeds,Leeds City Council,30/11/2019,Communities and Environment,Customer Access,Supplies and Services,Bought In Professional Services,277,21/11/2019,1911-00330,0.00,27.00,R,Abdulahad Denha,No
Http://opendatacommunities.org/id/metropolitan-district-council/leeds,Leeds City Council,30/11/2019,Communities and Environment,Customer Access,Supplies and Services,Bought In Professional Services,277,21/11/2019,1911-00331,0.00,27.00,R,Abdulahad Denha,No
Http://opendatacommunities.org/id/metropolitan-district-council/leeds,Leeds City Council,30/11/2019,Communities and Environment,Customer Access,Supplies and Services,Bought In Professional Services,277,29/11/2019,1911-00332,0.00,18.00,R,Abdulahad Denha,No
Http://opendatacommunities.org/id/metropolitan-district-council/leeds,Leeds City Council,30/11/2019,Communities and Environment,Customer Access,Supplies and Services,Bought In Professional Services,277,08/11/2019,1911-00333,0.00,18.00,R,Abdulrahim Dastyar,No
Http://opendatacommunities.org/id/metropolitan-district-council/leeds,Leeds City Council,30/11/2019,Communities and Environment,Customer Access,Supplies and Services,Bought In Professional Services,277,08/11/2019,1911-00334,0.00,18.00,R,Abdulrahim Dastyar,No
Http://opendatacommunities.org/id/metropolitan-district-council/leeds,Leeds City Council,30/11/2019,Communities and Environment,Customer Access,Supplies and Services,Bought In Professional Services,277,08/11/2019,1911-00335,0.00,18.00,R,Abdulrahim Dastyar,No
Http://opendatacommunities.org/id/metropolitan-district-council/leeds,Leeds City Council,30/11/2019,Communities and Environment,Customer Access,Supplies and Services,Bought In Professional Services,277,08/11/2019,1911-00336,0.00,18.00,R,Abdulrahim Dastyar,No
Http://opendatacommunities.org/id/metropolitan-district-council/leeds,Leeds City Council,30/11/2019,Communities and Environment,Customer Access,Supplies and Services,Bought In Professional Services,277,08/11/2019,1911-00337,0.00,18.00,R,Abdulrahim Dastyar,No
Http://opendatacommunities.org/id/metropolitan-district-council/leeds,Leeds City Council,30/11/2019,Communities and Environment,Customer Access,Supplies and Services,Bought In Professional Services,277,08/11/2019,1911-00338,0.00,18.00,R,Abdulrahim Dastyar,No
Http://opendatacommunities.org/id/metropolitan-district-council/leeds,Leeds City Council,30/11/2019,Communities and Environment,Customer Access,Supplies and Services,Bought In Professional Services,277,08/11/2019,1911-00339,0.00,37.50,R,Abdulrahim Dastyar,No
Http://opendatacommunities.org/id/metropolitan-district-council/leeds,Leeds City Council,30/11/2019,Communities and Environment,Customer Access,Supplies and Services,Bought In Professional Services,277,08/11/2019,1911-00340,0.00,18.00,R,Abdulrahim Dastyar,No
Http://opendatacommunities.org/id/metropolitan-district-council/leeds,Leeds City Council,30/11/2019,Children and Families,Social Care,Transfer Payments,16 Plus Top Up Allowance,625,01/11/2019,1911-00341,0.00,20.00,R,REDACTED PERSONAL DATA,No
Http://opendatacommunities.org/id/metropolitan-district-council/leeds,Leeds City Council,30/11/2019,Children and Families,Social Care,Transfer Payments,16 Plus Top Up Allowance,625,08/11/2019,1911-00342,0.00,20.00,R,REDACTED PERSONAL DATA,No
Http://opendatacommunities.org/id/metropolitan-district-council/leeds,Leeds City Council,30/11/2019,Children and Families,Social Care  ,Transport,Public Transport Expenses,310,09/10/2019,1911-00343,0.00,7.40,R,Abellio Scotrail Ltd,Yes
Http://opendatacommunities.org/id/metropolitan-district-council/leeds,Leeds City Council,30/11/2019,Adults and Health,Services For Older People - 65 And Over,Third Party Payments,Nursing Home,570,13/11/2019,1911-00344,0.00,29889.54,R,Aberford Hall,No
Http://opendatacommunities.org/id/metropolitan-district-council/leeds,Leeds City Council,30/11/2019,Adults and Health,Services For Older People - 65 And Over,Third Party Payments,Residential,580,13/11/2019,1911-00345,0.00,1627.40,R,Aberford Hall,No
Http://opendatacommunities.org/id/metropolitan-district-council/leeds,Leeds City Council,30/11/2019,Communities and Environment,Elections  Licensing and Registration,Premises,Rents,141,18/11/2019,1911-00346,0.00,400.00,R,Aberford Village Hall,No
Http://opendatacommunities.org/id/metropolitan-district-council/leeds,Leeds City Council,30/11/2019,Resources and Housing,Leeds Building Services,Supplies and Services,Operational Materials,205,01/11/2019,1911-00347,0.00,15.00,R,Abi Garage Doors Ltd,No
Http://opendatacommunities.org/id/metropolitan-district-council/leeds,Leeds City Council,30/11/2019,Resources and Housing,Leeds Building Services,Supplies and Services,Operational Materials,205,01/11/2019,1911-00348,0.00,260.46,R,Abi Garage Doors Ltd,No
Http://opendatacommunities.org/id/metropolitan-district-council/leeds,Leeds City Council,30/11/2019,Resources and Housing,Leeds Building Services,Supplies and Services,Operational Materials,205,01/11/2019,1911-00349,0.00,10.00,R,Abi Garage Doors Ltd,No
Http://opendatacommunities.org/id/metropolitan-district-council/leeds,Leeds City Council,30/11/2019,Resources and Housing,Leeds Building Services,Supplies and Services,Operational Materials,205,08/11/2019,1911-00350,0.00,10.00,R,Abi Garage Doors Ltd,No
Http://opendatacommunities.org/id/metropolitan-district-council/leeds,Leeds City Council,30/11/2019,Resources and Housing,Leeds Building Services,Supplies and Services,Operational Materials,205,08/11/2019,1911-00351,0.00,10.00,R,Abi Garage Doors Ltd,No
Http://opendatacommunities.org/id/metropolitan-district-council/leeds,Leeds City Council,30/11/2019,Resources and Housing,Leeds Building Services,Supplies and Services,Operational Materials,205,08/11/2019,1911-00352,0.00,15.00,R,Abi Garage Doors Ltd,No
Http://opendatacommunities.org/id/metropolitan-district-council/leeds,Leeds City Council,30/11/2019,Resources and Housing,Leeds Building Services,Supplies and Services,Operational Materials,205,15/11/2019,1911-00353,0.00,36.00,R,Abi Garage Doors Ltd,No
Http://opendatacommunities.org/id/metropolitan-district-council/leeds,Leeds City Council,30/11/2019,Resources and Housing,Leeds Building Services,Supplies and Services,Operational Materials,205,15/11/2019,1911-00354,0.00,260.46,R,Abi Garage Doors Ltd,No
Http://opendatacommunities.org/id/metropolitan-district-council/leeds,Leeds City Council,30/11/2019,Resources and Housing,Leeds Building Services,Supplies and Services,Operational Materials,205,22/11/2019,1911-00355,0.00,260.46,R,Abi Garage Doors Ltd,No
Http://opendatacommunities.org/id/metropolitan-district-council/leeds,Leeds City Council,30/11/2019,Resources and Housing,Leeds Building Services,Supplies and Services,Operational Materials,205,29/11/2019,1911-00356,0.00,260.46,R,Abi Garage Doors Ltd,No
Http://opendatacommunities.org/id/metropolitan-district-council/leeds,Leeds City Council,30/11/2019,Resources and Housing,Leeds Building Services,Supplies and Services,Operational Materials,205,29/11/2019,1911-00357,0.00,260.46,R,Abi Garage Doors Ltd,No
Http://opendatacommunities.org/id/metropolitan-district-council/leeds,Leeds City Council,30/11/2019,Resources and Housing,Leeds Building Services,Supplies and Services,Operational Materials,205,29/11/2019,1911-00358,0.00,1302.30,R,Abi Garage Doors Ltd,No
Http://opendatacommunities.org/id/metropolitan-district-council/leeds,Leeds City Council,30/11/2019,Resources and Housing,Sustainable Energy & Climate Change,Capital,Other Costs,7,14/11/2019,1911-00359,0.00,10000.00,C,REDACTED COMMERCIAL CONFIDENTIALITY,No
Http://opendatacommunities.org/id/metropolitan-district-council/leeds,Leeds City Council,30/11/2019,Resources and Housing,Technology,Supplies and Services,Computer Software & Equipment,214,13/11/2019,1911-00360,0.00,3000.00,R,Abm Critical Solutions Ltd,No
Http://opendatacommunities.org/id/metropolitan-district-council/leeds,Leeds City Council,30/11/2019,City Development,Libraries  Arts & Heritage  ,Supplies and Services,Food & Drink,231,11/10/2019,1911-00361,0.00,60.11,R,Abo Leeds,Yes
Http://opendatacommunities.org/id/metropolitan-district-council/leeds,Leeds City Council,30/11/2019,City Development,Libraries  Arts & Heritage  ,Supplies and Services,Food & Drink,231,11/10/2019,1911-00362,0.00,33.29,R,Abo Leeds,Yes
Http://opendatacommunities.org/id/metropolitan-district-council/leeds,Leeds City Council,30/11/2019,City Development,Libraries  Arts & Heritage  ,Supplies and Services,Food & Drink,231,12/10/2019,1911-00363,0.00,44.96,R,Abo Leeds,Yes
Http://opendatacommunities.org/id/metropolitan-district-council/leeds,Leeds City Council,30/11/2019,City Development,Libraries  Arts & Heritage  ,Supplies and Services,Food & Drink,231,13/10/2019,1911-00364,0.00,97.29,R,Abo Leeds,Yes
Http://opendatacommunities.org/id/metropolitan-district-council/leeds,Leeds City Council,30/11/2019,Communities and Environment,Parks and Countryside,Supplies and Services,Operational Materials,205,29/11/2019,1911-00365,0.00,668.25,R,Abram Pulman & Sons Limited,No
Http://opendatacommunities.org/id/metropolitan-district-council/leeds,Leeds City Council,30/11/2019,Communities and Environment,Parks And Countryside  ,Supplies and Services,Operational Materials,205,16/10/2019,1911-00366,0.00,373.00,R,Abram Pulman And Sons,Yes
Http://opendatacommunities.org/id/metropolitan-district-council/leeds,Leeds City Council,30/11/2019,City Development,Libraries  Arts & Heritage  ,Supplies and Services,Operational Materials,205,07/10/2019,1911-00367,0.00,142.92,R,Absoluteproduct.Co,Yes
Http://opendatacommunities.org/id/metropolitan-district-council/leeds,Leeds City Council,30/11/2019,City Development,Libraries  Arts & Heritage  ,Supplies and Services,Operational Materials,205,14/10/2019,1911-00368,0.00,414.65,R,Absoluteproduct.Co,Yes
Http://opendatacommunities.org/id/metropolitan-district-council/leeds,Leeds City Council,30/11/2019,City Development,Libraries  Arts & Heritage  ,Supplies and Services,Operational Materials,205,14/10/2019,1911-00369,0.00,63.92,R,Absoluteproduct.Co,Yes
Http://opendatacommunities.org/id/metropolitan-district-council/leeds,Leeds City Council,30/11/2019,City Development,Libraries  Arts & Heritage  ,Supplies and Services,Operational Furniture And Equipment,203,18/10/2019,1911-00370,0.00,476.07,R,Absoluteproduct.Co,Yes
Http://opendatacommunities.org/id/metropolitan-district-council/leeds,Leeds City Council,30/11/2019,Adults and Health,Services For Adults Under 65 Mental/Dis,Third Party Payments,Fees - Level 4,520,15/11/2019,1911-00371,0.00,216.28,R,Abubaker Denja Mohammed,No
Http://opendatacommunities.org/id/metropolitan-district-council/leeds,Leeds City Council,30/11/2019,Adults and Health,Services For Adults Under 65 Mental/Dis,Third Party Payments,Fees - Level 4,520,15/11/2019,1911-00372,0.00,221.44,R,Abubaker Denja Mohammed,No
Http://opendatacommunities.org/id/metropolitan-district-council/leeds,Leeds City Council,30/11/2019,Adults and Health,Services For Adults Under 65 Mental/Dis,Third Party Payments,Fees - Level 4,520,15/11/2019,1911-00373,0.00,224.02,R,Abubaker Denja Mohammed,No
Http://opendatacommunities.org/id/metropolitan-district-council/leeds,Leeds City Council,30/11/2019,Adults and Health,Services For Adults Under 65 Mental/Dis,Third Party Payments,Fees - Level 4,520,15/11/2019,1911-00374,0.00,228.32,R,Abubaker Denja Mohammed,No
Http://opendatacommunities.org/id/metropolitan-district-council/leeds,Leeds City Council,30/11/2019,Adults and Health,Services For Adults Under 65 Mental/Dis,Third Party Payments,Fees - Level 4,520,15/11/2019,1911-00375,0.00,200.08,R,Abubaker Denja Mohammed,No
Http://opendatacommunities.org/id/metropolitan-district-council/leeds,Leeds City Council,30/11/2019,Adults and Health,Services For Adults Under 65 Mental/Dis,Third Party Payments,Fees - Level 4,520,15/11/2019,1911-00376,0.00,216.28,R,Abubaker Denja Mohammed,No
Http://opendatacommunities.org/id/metropolitan-district-council/leeds,Leeds City Council,30/11/2019,Adults and Health,Services For Adults Under 65 Mental/Dis,Third Party Payments,Fees - Level 4,520,20/11/2019,1911-00377,0.00,228.32,R,Abubaker Denja Mohammed,No
Http://opendatacommunities.org/id/metropolitan-district-council/leeds,Leeds City Council,30/11/2019,Adults and Health,Services For Adults Under 65 Mental/Dis,Third Party Payments,Fees - Level 4,520,20/11/2019,1911-00378,0.00,175.00,R,Abubaker Denja Mohammed,No
Http://opendatacommunities.org/id/metropolitan-district-council/leeds,Leeds City Council,30/11/2019,Adults and Health,Services For Adults Under 65 Mental/Dis,Third Party Payments,Fees - Level 4,520,20/11/2019,1911-00379,0.00,228.32,R,Abubaker Denja Mohammed,No
Http://opendatacommunities.org/id/metropolitan-district-council/leeds,Leeds City Council,30/11/2019,Adults and Health,Services For Adults Under 65 Mental/Dis,Third Party Payments,Fees - Level 4,520,20/11/2019,1911-00380,0.00,230.90,R,Abubaker Denja Mohammed,No
Http://opendatacommunities.org/id/metropolitan-district-council/leeds,Leeds City Council,30/11/2019,Adults and Health,Services For Adults Under 65 Mental/Dis,Third Party Payments,Fees - Level 4,520,20/11/2019,1911-00381,0.00,228.32,R,Abubaker Denja Mohammed,No
Http://opendatacommunities.org/id/metropolitan-district-council/leeds,Leeds City Council,30/11/2019,Adults and Health,Services For Adults Under 65 Mental/Dis,Third Party Payments,Fees - Level 4,520,20/11/2019,1911-00382,0.00,221.61,R,Abubaker Denja Mohammed,No
Http://opendatacommunities.org/id/metropolitan-district-council/leeds,Leeds City Council,30/11/2019,Adults and Health,Services For Adults Under 65 Mental/Dis,Third Party Payments,Fees - Level 4,520,20/11/2019,1911-00383,0.00,175.00,R,Abubaker Denja Mohammed,No
Http://opendatacommunities.org/id/metropolitan-district-council/leeds,Leeds City Council,30/11/2019,Adults and Health,Services For Adults Under 65 Mental/Dis,Third Party Payments,Fees - Level 4,520,20/11/2019,1911-00384,0.00,175.00,R,Abubaker Denja Mohammed,No
Http://opendatacommunities.org/id/metropolitan-district-council/leeds,Leeds City Council,30/11/2019,Adults and Health,Services For Adults Under 65 Mental/Dis,Third Party Payments,Fees - Level 4,520,20/11/2019,1911-00385,0.00,228.32,R,Abubaker Denja Mohammed,No
Http://opendatacommunities.org/id/metropolitan-district-council/leeds,Leeds City Council,30/11/2019,Adults and Health,Services For Adults Under 65 Mental/Dis,Third Party Payments,Fees - Level 4,520,20/11/2019,1911-00386,0.00,242.94,R,Abubaker Denja Mohammed,No
Http://opendatacommunities.org/id/metropolitan-district-council/leeds,Leeds City Council,30/11/2019,Adults and Health,Services For Adults Under 65 Mental/Dis,Third Party Payments,Fees - Level 4,520,20/11/2019,1911-00387,0.00,233.48,R,Abubaker Denja Mohammed,No
Http://opendatacommunities.org/id/metropolitan-district-council/leeds,Leeds City Council,30/11/2019,Resources and Housing,Sustainable Energy & Climate Change,Capital,Other Costs,7,27/11/2019,1911-00388,0.00,3498.34,C,Acanthus Wsm Architects Ltd,No
Http://opendatacommunities.org/id/metropolitan-district-council/leeds,Leeds City Council,30/11/2019,Communities and Environment,Community Safety,Supplies and Services,Telephones,213,01/11/2019,1911-00389,0.00,1354.29,R,Access Hire Nationwide Ltd,No
Http://opendatacommunities.org/id/metropolitan-district-council/leeds,Leeds City Council,30/11/2019,Communities and Environment,Parks and Countryside,Transport,External Hire -Occasional,304,06/11/2019,1911-00390,0.00,1240.00,R,Access Hire Nationwide Ltd,No
Http://opendatacommunities.org/id/metropolitan-district-council/leeds,Leeds City Council,30/11/2019,Communities and Environment,Parks and Countryside,Transport,External Hire -Occasional,304,06/11/2019,1911-00391,0.00,115.00,R,Access Hire Nationwide Ltd,No
Http://opendatacommunities.org/id/metropolitan-district-council/leeds,Leeds City Council,30/11/2019,Adults and Health,Services For Adults Under 65 Learn/Dis  ,Supplies and Services,Office Furniture & Equipment,201,07/10/2019,1911-00392,0.00,4.33,R,Access Locksmiths,Yes
Http://opendatacommunities.org/id/metropolitan-district-council/leeds,Leeds City Council,30/11/2019,Strategic Landlord,Housing Management  ,Premises,General Maintenance,104,15/10/2019,1911-00393,0.00,72.59,R,Access Locksmiths,Yes
Http://opendatacommunities.org/id/metropolitan-district-council/leeds,Leeds City Council,30/11/2019,Resources and Housing,Leeds Building Services,Supplies and Services,Operational Materials,205,01/11/2019,1911-00394,0.00,8.33,R,Access Locksmiths (Leeds) Limited,No
Http://opendatacommunities.org/id/metropolitan-district-council/leeds,Leeds City Council,30/11/2019,Resources and Housing,Leeds Building Services,Supplies and Services,Operational Materials,205,01/11/2019,1911-00395,0.00,273.41,R,Access Locksmiths (Leeds) Limited,No
Http://opendatacommunities.org/id/metropolitan-district-council/leeds,Leeds City Council,30/11/2019,Resources and Housing,Leeds Building Services,Supplies and Services,Operational Materials,205,01/11/2019,1911-00396,0.00,20.38,R,Access Locksmiths (Leeds) Limited,No
Http://opendatacommunities.org/id/metropolitan-district-council/leeds,Leeds City Council,30/11/2019,Strategic Landlord,Property and Contracts,Premises,General Maintenance,104,08/11/2019,1911-00397,0.00,300.29,R,Access Locksmiths (Leeds) Limited,No
Http://opendatacommunities.org/id/metropolitan-district-council/leeds,Leeds City Council,30/11/2019,Strategic Landlord,Property and Contracts,Premises,General Maintenance,104,08/11/2019,1911-00398,0.00,37.50,R,Access Locksmiths (Leeds) Limited,No
Http://opendatacommunities.org/id/metropolitan-district-council/leeds,Leeds City Council,30/11/2019,Strategic Landlord,Housing Management,Supplies and Services,Resaleable Materials,204,15/11/2019,1911-00399,0.00,114.00,R,Access Locksmiths (Leeds) Limited,No
Http://opendatacommunities.org/id/metropolitan-district-council/leeds,Leeds City Council,30/11/2019,Strategic Landlord,Housing Management,Income,Other Income,973,15/11/2019,1911-00400,0.00,26.00,R,Access Locksmiths (Leeds) Limited,No
Http://opendatacommunities.org/id/metropolitan-district-council/leeds,Leeds City Council,30/11/2019,Strategic Landlord,Housing Management,Supplies and Services,Resaleable Materials,204,15/11/2019,1911-00401,0.00,14.50,R,Access Locksmiths (Leeds) Limited,No
Http://opendatacommunities.org/id/metropolitan-district-council/leeds,Leeds City Council,30/11/2019,Strategic Landlord,Housing Management,Supplies and Services,Resaleable Materials,204,15/11/2019,1911-00402,0.00,45.60,R,Access Locksmiths (Leeds) Limited,No
Http://opendatacommunities.org/id/metropolitan-district-council/leeds,Leeds City Council,30/11/2019,Strategic Landlord,Housing Management,Premises,General Maintenance,104,15/11/2019,1911-00403,0.00,114.00,R,Access Locksmiths (Leeds) Limited,No
Http://opendatacommunities.org/id/metropolitan-district-council/leeds,Leeds City Council,30/11/2019,Strategic Landlord,Housing Management,Supplies and Services,Resaleable Materials,204,15/11/2019,1911-00404,0.00,114.00,R,Access Locksmiths (Leeds) Limited,No
Http://opendatacommunities.org/id/metropolitan-district-council/leeds,Leeds City Council,30/11/2019,Strategic Landlord,Housing Management,Premises,General Maintenance,104,15/11/2019,1911-00405,0.00,228.00,R,Access Locksmiths (Leeds) Limited,No
Http://opendatacommunities.org/id/metropolitan-district-council/leeds,Leeds City Council,30/11/2019,Strategic Landlord,Property and Contracts,Premises,General Maintenance,104,15/11/2019,1911-00406,0.00,265.60,R,Access Locksmiths (Leeds) Limited,No
Http://opendatacommunities.org/id/metropolitan-district-council/leeds,Leeds City Council,30/11/2019,Strategic Landlord,Housing Management,Premises,General Maintenance,104,15/11/2019,1911-00407,0.00,10.10,R,Access Locksmiths (Leeds) Limited,No
Http://opendatacommunities.org/id/metropolitan-district-council/leeds,Leeds City Council,30/11/2019,Strategic Landlord,Housing Management,Premises,General Maintenance,104,15/11/2019,1911-00408,0.00,7.50,R,Access Locksmiths (Leeds) Limited,No
Http://opendatacommunities.org/id/metropolitan-district-council/leeds,Leeds City Council,30/11/2019,Strategic Landlord,Housing Management,Supplies and Services,Resaleable Materials,204,15/11/2019,1911-00409,0.00,410.40,R,Access Locksmiths (Leeds) Limited,No
Http://opendatacommunities.org/id/metropolitan-district-council/leeds,Leeds City Council,30/11/2019,Resources and Housing,Leeds Building Services,Supplies and Services,Operational Materials,205,15/11/2019,1911-00410,0.00,6.98,R,Access Locksmiths (Leeds) Limited,No
Http://opendatacommunities.org/id/metropolitan-district-council/leeds,Leeds City Council,30/11/2019,Resources and Housing,Leeds Building Services,Supplies and Services,Operational Materials,205,15/11/2019,1911-00411,0.00,34.02,R,Access Locksmiths (Leeds) Limited,No
Http://opendatacommunities.org/id/metropolitan-district-council/leeds,Leeds City Council,30/11/2019,Resources and Housing,Leeds Building Services,Supplies and Services,Operational Materials,205,15/11/2019,1911-00412,0.00,187.39,R,Access Locksmiths (Leeds) Limited,No
Http://opendatacommunities.org/id/metropolitan-district-council/leeds,Leeds City Council,30/11/2019,Resources and Housing,Leeds Building Services,Supplies and Services,Operational Materials,205,15/11/2019,1911-00413,0.00,54.97,R,Access Locksmiths (Leeds) Limited,No
Http://opendatacommunities.org/id/metropolitan-district-council/leeds,Leeds City Council,30/11/2019,Resources and Housing,Leeds Building Services,Supplies and Services,Operational Materials,205,15/11/2019,1911-00414,0.00,13.70,R,Access Locksmiths (Leeds) Limited,No
Http://opendatacommunities.org/id/metropolitan-district-council/leeds,Leeds City Council,30/11/2019,Resources and Housing,Leeds Building Services,Supplies and Services,Operational Materials,205,15/11/2019,1911-00415,0.00,75.00,R,Access Locksmiths (Leeds) Limited,No
Http://opendatacommunities.org/id/metropolitan-district-council/leeds,Leeds City Council,30/11/2019,Resources and Housing,Leeds Building Services,Supplies and Services,Operational Materials,205,15/11/2019,1911-00416,0.00,8.07,R,Access Locksmiths (Leeds) Limited,No
Http://opendatacommunities.org/id/metropolitan-district-council/leeds,Leeds City Council,30/11/2019,Resources and Housing,Leeds Building Services,Supplies and Services,Operational Materials,205,15/11/2019,1911-00417,0.00,3.36,R,Access Locksmiths (Leeds) Limited,No
Http://opendatacommunities.org/id/metropolitan-district-council/leeds,Leeds City Council,30/11/2019,Strategic Landlord,Property and Contracts,Premises,General Maintenance,104,21/11/2019,1911-00418,0.00,137.54,R,Access Locksmiths (Leeds) Limited,No
Http://opendatacommunities.org/id/metropolitan-district-council/leeds,Leeds City Council,30/11/2019,Resources and Housing,HRA Housing Leeds,Capital,Other Costs,7,27/11/2019,1911-00419,0.00,190.96,C,Access Locksmiths (Leeds) Limited,No
Http://opendatacommunities.org/id/metropolitan-district-council/leeds,Leeds City Council,30/11/2019,Strategic Landlord,Property and Contracts,Premises,General Maintenance,104,27/11/2019,1911-00420,0.00,522.20,R,Access Locksmiths (Leeds) Limited,No
Http://opendatacommunities.org/id/metropolitan-district-council/leeds,Leeds City Council,30/11/2019,Strategic Landlord,Housing Management,Income,Other Income,973,27/11/2019,1911-00421,0.00,5.00,R,Access Locksmiths (Leeds) Limited,No
Http://opendatacommunities.org/id/metropolitan-district-council/leeds,Leeds City Council,30/11/2019,Strategic Landlord,Housing Management,Supplies and Services,Resaleable Materials,204,27/11/2019,1911-00422,0.00,228.00,R,Access Locksmiths (Leeds) Limited,No
Http://opendatacommunities.org/id/metropolitan-district-council/leeds,Leeds City Council,30/11/2019,Strategic Landlord,Property and Contracts,Premises,General Maintenance,104,29/11/2019,1911-00423,0.00,45.60,R,Access Locksmiths (Leeds) Limited,No
Http://opendatacommunities.org/id/metropolitan-district-council/leeds,Leeds City Council,30/11/2019,Strategic Landlord,Housing Management,Income,Other Income,973,29/11/2019,1911-00424,0.00,114.00,R,Access Locksmiths (Leeds) Limited,No
Http://opendatacommunities.org/id/metropolitan-district-council/leeds,Leeds City Council,30/11/2019,Strategic Landlord,Housing Management,Supplies and Services,Resaleable Materials,204,29/11/2019,1911-00425,0.00,33.80,R,Access Locksmiths (Leeds) Limited,No
Http://opendatacommunities.org/id/metropolitan-district-council/leeds,Leeds City Council,30/11/2019,Strategic Landlord,Housing Management,Supplies and Services,Resaleable Materials,204,29/11/2019,1911-00426,0.00,26.00,R,Access Locksmiths (Leeds) Limited,No
Http://opendatacommunities.org/id/metropolitan-district-council/leeds,Leeds City Council,30/11/2019,Resources and Housing,HRA Housing Leeds,Capital,Other Costs,7,29/11/2019,1911-00427,0.00,81.17,C,Access Locksmiths (Leeds) Limited,No
Http://opendatacommunities.org/id/metropolitan-district-council/leeds,Leeds City Council,30/11/2019,Resources and Housing,Leeds Building Services,Supplies and Services,Operational Materials,205,29/11/2019,1911-00428,0.00,7.02,R,Access Locksmiths (Leeds) Limited,No
Http://opendatacommunities.org/id/metropolitan-district-council/leeds,Leeds City Council,30/11/2019,Resources and Housing,Leeds Building Services,Supplies and Services,Operational Materials,205,29/11/2019,1911-00429,0.00,18.49,R,Access Locksmiths (Leeds) Limited,No
Http://opendatacommunities.org/id/metropolitan-district-council/leeds,Leeds City Council,30/11/2019,Resources and Housing,Leeds Building Services,Supplies and Services,Operational Materials,205,29/11/2019,1911-00430,0.00,19.34,R,Access Locksmiths (Leeds) Limited,No
Http://opendatacommunities.org/id/metropolitan-district-council/leeds,Leeds City Council,30/11/2019,Resources and Housing,Leeds Building Services,Supplies and Services,Operational Materials,205,29/11/2019,1911-00431,0.00,21.56,R,Access Locksmiths (Leeds) Limited,No
Http://opendatacommunities.org/id/metropolitan-district-council/leeds,Leeds City Council,30/11/2019,Resources and Housing,Leeds Building Services,Supplies and Services,Operational Materials,205,29/11/2019,1911-00432,0.00,31.50,R,Access Locksmiths (Leeds) Limited,No
Http://opendatacommunities.org/id/metropolitan-district-council/leeds,Leeds City Council,30/11/2019,Resources and Housing,Leeds Building Services,Supplies and Services,Operational Materials,205,29/11/2019,1911-00433,0.00,155.84,R,Access Locksmiths (Leeds) Limited,No
Http://opendatacommunities.org/id/metropolitan-district-council/leeds,Leeds City Council,30/11/2019,Resources and Housing,Leeds Building Services,Supplies and Services,Operational Materials,205,29/11/2019,1911-00434,0.00,153.19,R,Access Locksmiths (Leeds) Limited,No
Http://opendatacommunities.org/id/metropolitan-district-council/leeds,Leeds City Council,30/11/2019,Resources and Housing,Leeds Building Services,Supplies and Services,Operational Materials,205,29/11/2019,1911-00435,0.00,97.11,R,Access Locksmiths (Leeds) Limited,No
Http://opendatacommunities.org/id/metropolitan-district-council/leeds,Leeds City Council,30/11/2019,Resources and Housing,Leeds Building Services,Supplies and Services,Operational Materials,205,29/11/2019,1911-00436,0.00,29.99,R,Access Locksmiths (Leeds) Limited,No
Http://opendatacommunities.org/id/metropolitan-district-council/leeds,Leeds City Council,30/11/2019,City Development,Recreation,Supplies and Services,Other Hired And Contracted Services,265,27/11/2019,1911-00437,0.00,760.00,R,Ace Container Services Limited,No
Http://opendatacommunities.org/id/metropolitan-district-council/leeds,Leeds City Council,30/11/2019,City Development,Libraries  Arts & Heritage,Supplies and Services,Other Hired And Contracted Services,265,28/11/2019,1911-00438,0.00,140.00,R,Ace Container Services Limited,No
Http://opendatacommunities.org/id/metropolitan-district-council/leeds,Leeds City Council,30/11/2019,City Development,Recreation,Transport,External Hire -Occasional,304,29/11/2019,1911-00439,0.00,124.50,R,Ace Container Services Limited,No
Http://opendatacommunities.org/id/metropolitan-district-council/leeds,Leeds City Council,30/11/2019,City Development,Libraries  Arts & Heritage,Supplies and Services,Other Hired And Contracted Services,265,29/11/2019,1911-00440,0.00,45.00,R,Ace Container Services Limited,No
Http://opendatacommunities.org/id/metropolitan-district-council/leeds,Leeds City Council,30/11/2019,Resources and Housing,Strategic Housing Partnerships,Capital,Construction,3,28/11/2019,1911-00441,0.00,10000.00,C,Acer Joinery Ltd.,No
Http://opendatacommunities.org/id/metropolitan-district-council/leeds,Leeds City Council,30/11/2019,Resources and Housing,Leeds Building Services,Supplies and Services,Other Hired And Contracted Services,265,08/11/2019,1911-00442,0.00,1095.00,R,Acme Facilities Group Ltd,No
Http://opendatacommunities.org/id/metropolitan-district-council/leeds,Leeds City Council,30/11/2019,Children and Families,Partnerships & Health,Third Party Payments,SEN Placements,566,29/11/2019,1911-00443,0.00,13021.25,R,Acorn Care & Education Ltd (Sales),No
Http://opendatacommunities.org/id/metropolitan-district-council/leeds,Leeds City Council,30/11/2019,Adults and Health,Services For Older People - 65 And Over,Third Party Payments,Residential Care Dementia,571,13/11/2019,1911-00444,0.00,5889.16,R,Acorn Nursing Home,No
Http://opendatacommunities.org/id/metropolitan-district-council/leeds,Leeds City Council,30/11/2019,Adults and Health,Services For Older People - 65 And Over,Third Party Payments,Nursing Care Dementia,574,13/11/2019,1911-00445,0.00,1646.24,R,Acorn Nursing Home,No
Http://opendatacommunities.org/id/metropolitan-district-council/leeds,Leeds City Council,30/11/2019,City Development,Libraries  Arts & Heritage,Supplies and Services,Other Hired And Contracted Services,265,06/11/2019,1911-00446,0.00,550.00,R,Acorn Scaffolding (Yorkshire) Ltd,No
Http://opendatacommunities.org/id/metropolitan-district-council/leeds,Leeds City Council,30/11/2019,City Development,Libraries  Arts & Heritage,Supplies and Services,Other Hired And Contracted Services,265,15/11/2019,1911-00447,0.00,770.00,R,Acorn Scaffolding (Yorkshire) Ltd,No
Http://opendatacommunities.org/id/metropolitan-district-council/leeds,Leeds City Council,30/11/2019,City Development,Libraries  Arts & Heritage,Supplies and Services,Other Hired And Contracted Services,265,15/11/2019,1911-00448,0.00,350.00,R,Acorn Scaffolding (Yorkshire) Ltd,No
Http://opendatacommunities.org/id/metropolitan-district-council/leeds,Leeds City Council,30/11/2019,Children and Families,Social Care,Third Party Payments,Services Rendered By Other Organisations,511,01/11/2019,1911-00449,0.00,3695.85,R,Acorns Nursery,No
Http://opendatacommunities.org/id/metropolitan-district-council/leeds,Leeds City Council,30/11/2019,Children and Families,Social Care,Third Party Payments,Services Rendered By Other Organisations,511,06/11/2019,1911-00450,0.00,546.00,R,Acorns Nursery,No
Http://opendatacommunities.org/id/metropolitan-district-council/leeds,Leeds City Council,30/11/2019,Children and Families,Social Care,Third Party Payments,Services Rendered By Other Organisations,511,22/11/2019,1911-00451,0.00,306.62,R,Acorns Nursery,No
Http://opendatacommunities.org/id/metropolitan-district-council/leeds,Leeds City Council,30/11/2019,Adults and Health,Services For Older People - 65 And Over,Third Party Payments,Nursing Home,570,13/11/2019,1911-00452,0.00,41487.69,R,Acre Green,No
Http://opendatacommunities.org/id/metropolitan-district-council/leeds,Leeds City Council,30/11/2019,Adults and Health,Services For Older People Under 65 P/Dis,Third Party Payments,Nursing Home,570,13/11/2019,1911-00453,0.00,2268.00,R,Acre Green,No
Http://opendatacommunities.org/id/metropolitan-district-council/leeds,Leeds City Council,30/11/2019,Adults and Health,Services For Older People - 65 And Over,Third Party Payments,Nursing Care Dementia,574,13/11/2019,1911-00454,0.00,1549.12,R,Acre Green,No
Http://opendatacommunities.org/id/metropolitan-district-council/leeds,Leeds City Council,30/11/2019,Adults and Health,Services For Older People - 65 And Over,Third Party Payments,Residential,580,13/11/2019,1911-00455,0.00,4535.90,R,Acre Green,No
Http://opendatacommunities.org/id/metropolitan-district-council/leeds,Leeds City Council,30/11/2019,Adults and Health,Services For Older People Under 65 P/Dis,Third Party Payments,Residential,580,13/11/2019,1911-00456,0.00,1574.20,R,Acre Green,No
Http://opendatacommunities.org/id/metropolitan-district-council/leeds,Leeds City Council,30/11/2019,Children and Families,Social Care,Third Party Payments,Services Rendered By Other Organisations,511,01/11/2019,1911-00457,0.00,10271.63,R,Acre Wood Day Nursery,No
Http://opendatacommunities.org/id/metropolitan-district-council/leeds,Leeds City Council,30/11/2019,Children and Families,Social Care,Third Party Payments,Services Rendered By Other Organisations,511,06/11/2019,1911-00458,0.00,2281.50,R,Acre Wood Day Nursery,No
Http://opendatacommunities.org/id/metropolitan-district-council/leeds,Leeds City Council,30/11/2019,Children and Families,Social Care,Third Party Payments,Services Rendered By Other Organisations,511,22/11/2019,1911-00459,0.00,2282.03,R,Acre Wood Day Nursery,No
Http://opendatacommunities.org/id/metropolitan-district-council/leeds,Leeds City Council,30/11/2019,Resources and Housing,Technology,Employees,Training & Development,70,18/11/2019,1911-00460,0.00,389.00,R,Act Now Training Ltd,No
Http://opendatacommunities.org/id/metropolitan-district-council/leeds,Leeds City Council,30/11/2019,Resources and Housing,Technology,Employees,Training & Development,70,29/11/2019,1911-00461,0.00,2150.00,R,Act Now Training Ltd,No
Http://opendatacommunities.org/id/metropolitan-district-council/leeds,Leeds City Council,30/11/2019,Resources and Housing,Leeds Building Services,Supplies and Services,Other Hired And Contracted Services,265,01/11/2019,1911-00462,0.00,171.00,R,Actavo (Leeds H & S),No
Http://opendatacommunities.org/id/metropolitan-district-council/leeds,Leeds City Council,30/11/2019,City Development,Highways,Supplies and Services,Operational Materials,205,13/11/2019,1911-00463,0.00,703.10,R,Actavo (Leeds H & S),No
Http://opendatacommunities.org/id/metropolitan-district-council/leeds,Leeds City Council,30/11/2019,City Development,Highways,Supplies and Services,Operational Materials,205,28/11/2019,1911-00464,0.00,191.00,R,Actavo (Leeds H & S),No
Http://opendatacommunities.org/id/metropolitan-district-council/leeds,Leeds City Council As Accountable Body,30/11/2019,Social Services Pooled Budgets,Jcs For People With Learning Disabilitie,Supplies and Services,Other Equipment,203,13/11/2019,1911-00465,0.00,495.00,R,Action Assist Ltd,No
Http://opendatacommunities.org/id/metropolitan-district-council/leeds,Leeds City Council As Accountable Body,30/11/2019,Social Services Pooled Budgets,Leeds Community Equip Store Pooled Budgt,Supplies and Services,Other Equipment,203,20/11/2019,1911-00466,0.00,95.00,R,Action Assist Ltd,No
Http://opendatacommunities.org/id/metropolitan-district-council/leeds,Leeds City Council As Accountable Body,30/11/2019,Social Services Pooled Budgets,Leeds Community Equip Store Pooled Budgt,Supplies and Services,Other Equipment,203,22/11/2019,1911-00467,0.00,390.00,R,Action Assist Ltd,No
Http://opendatacommunities.org/id/metropolitan-district-council/leeds,Leeds City Council,30/11/2019,Children and Families,Social Care,Third Party Payments,Independent Fostering Agencies,509,05/11/2019,1911-00468,0.00,4622.40,R,Action For Children,No
Http://opendatacommunities.org/id/metropolitan-district-council/leeds,Leeds City Council,30/11/2019,Children and Families,Social Care,Third Party Payments,Independent Fostering Agencies,509,05/11/2019,1911-00469,0.00,4622.40,R,Action For Children,No
Http://opendatacommunities.org/id/metropolitan-district-council/leeds,Leeds City Council,30/11/2019,Children and Families,Social Care,Third Party Payments,Independent Fostering Agencies,509,05/11/2019,1911-00470,0.00,4622.40,R,Action For Children,No
Http://opendatacommunities.org/id/metropolitan-district-council/leeds,Leeds City Council,30/11/2019,Children and Families,Social Care,Third Party Payments,Independent Fostering Agencies,509,05/11/2019,1911-00471,0.00,4622.40,R,Action For Children,No
Http://opendatacommunities.org/id/metropolitan-district-council/leeds,Leeds City Council,30/11/2019,Children and Families,Social Care,Third Party Payments,Independent Fostering Agencies,509,05/11/2019,1911-00472,0.00,4776.48,R,Action For Children,No
Http://opendatacommunities.org/id/metropolitan-district-council/leeds,Leeds City Council,30/11/2019,Children and Families,Social Care,Third Party Payments,Independent Fostering Agencies,509,05/11/2019,1911-00473,0.00,4776.48,R,Action For Children,No
Http://opendatacommunities.org/id/metropolitan-district-council/leeds,Leeds City Council,30/11/2019,Children and Families,Social Care,Third Party Payments,Independent Fostering Agencies,509,05/11/2019,1911-00474,0.00,666.28,R,Action For Children,No
Http://opendatacommunities.org/id/metropolitan-district-council/leeds,Leeds City Council,30/11/2019,Children and Families,Social Care,Third Party Payments,Independent Fostering Agencies,509,29/11/2019,1911-00475,0.00,4997.10,R,Action For Children Services Ltd,No
Http://opendatacommunities.org/id/metropolitan-district-council/leeds,Leeds City Council,30/11/2019,Children and Families,Social Care,Third Party Payments,Independent Fostering Agencies,509,29/11/2019,1911-00476,0.00,4997.10,R,Action For Children Services Ltd,No
Http://opendatacommunities.org/id/metropolitan-district-council/leeds,Leeds City Council,30/11/2019,Children and Families,Social Care,Third Party Payments,Independent Fostering Agencies,509,29/11/2019,1911-00477,0.00,5163.67,R,Action For Children Services Ltd,No
Http://opendatacommunities.org/id/metropolitan-district-council/leeds,Leeds City Council,30/11/2019,Children and Families,Social Care,Third Party Payments,Independent Fostering Agencies,509,29/11/2019,1911-00478,0.00,4997.10,R,Action For Children Services Ltd,No
Http://opendatacommunities.org/id/metropolitan-district-council/leeds,Leeds City Council,30/11/2019,Children and Families,Social Care,Third Party Payments,Independent Fostering Agencies,509,29/11/2019,1911-00479,0.00,4997.10,R,Action For Children Services Ltd,No
Http://opendatacommunities.org/id/metropolitan-district-council/leeds,Leeds City Council,30/11/2019,Children and Families,Social Care,Third Party Payments,Independent Fostering Agencies,509,29/11/2019,1911-00480,0.00,5163.67,R,Action For Children Services Ltd,No
Http://opendatacommunities.org/id/metropolitan-district-council/leeds,Leeds City Council,30/11/2019,Strategic Landlord,Housing Management,Supplies and Services,Grants To Voluntary Organisations,293,29/11/2019,1911-00481,0.00,1748.00,R,Action For Seacroft,No
Http://opendatacommunities.org/id/metropolitan-district-council/leeds,Leeds City Council,30/11/2019,Children and Families,Social Care,Third Party Payments,Services Rendered By Other Organisations,511,01/11/2019,1911-00482,0.00,4066.73,R,Active Kids Yeadon Llp,No
Http://opendatacommunities.org/id/metropolitan-district-council/leeds,Leeds City Council,30/11/2019,Children and Families,Social Care,Third Party Payments,Services Rendered By Other Organisations,511,06/11/2019,1911-00483,0.00,507.00,R,Active Kids Yeadon Llp,No
Http://opendatacommunities.org/id/metropolitan-district-council/leeds,Leeds City Council,30/11/2019,Children and Families,Social Care,Third Party Payments,Services Rendered By Other Organisations,511,22/11/2019,1911-00484,0.00,69.69,R,Active Kids Yeadon Llp,No
Http://opendatacommunities.org/id/metropolitan-district-council/leeds,Leeds City Council,30/11/2019,Communities and Environment,Waste Management,Supplies and Services,Recycling & Reuse Charges,234,01/11/2019,1911-00485,0.00,990.02,R,Acumen Waste Services Ltd,No
Http://opendatacommunities.org/id/metropolitan-district-council/leeds,Leeds City Council,30/11/2019,Communities and Environment,Waste Management,Supplies and Services,Recycling & Reuse Charges,234,06/11/2019,1911-00486,0.00,3011.96,R,Acumen Waste Services Ltd,No
Http://opendatacommunities.org/id/metropolitan-district-council/leeds,Leeds City Council,30/11/2019,Communities and Environment,Cleaner Neighbourhood Teams,Premises,Removal Of Workplace Waste,126,08/11/2019,1911-00487,0.00,116.60,R,Acumen Waste Services Ltd,No
Http://opendatacommunities.org/id/metropolitan-district-council/leeds,Leeds City Council,30/11/2019,Communities and Environment,Cleaner Neighbourhood Teams,Premises,Removal Of Workplace Waste,126,08/11/2019,1911-00488,0.00,116.60,R,Acumen Waste Services Ltd,No
Http://opendatacommunities.org/id/metropolitan-district-council/leeds,Leeds City Council,30/11/2019,Communities and Environment,Cleaner Neighbourhood Teams,Premises,Removal Of Workplace Waste,126,08/11/2019,1911-00489,0.00,116.60,R,Acumen Waste Services Ltd,No
Http://opendatacommunities.org/id/metropolitan-district-council/leeds,Leeds City Council,30/11/2019,Communities and Environment,Cleaner Neighbourhood Teams,Premises,Removal Of Workplace Waste,126,08/11/2019,1911-00490,0.00,116.60,R,Acumen Waste Services Ltd,No
Http://opendatacommunities.org/id/metropolitan-district-council/leeds,Leeds City Council,30/11/2019,Communities and Environment,Cleaner Neighbourhood Teams,Premises,Removal Of Workplace Waste,126,08/11/2019,1911-00491,0.00,116.60,R,Acumen Waste Services Ltd,No
Http://opendatacommunities.org/id/metropolitan-district-council/leeds,Leeds City Council,30/11/2019,Communities and Environment,Cleaner Neighbourhood Teams,Premises,Removal Of Workplace Waste,126,08/11/2019,1911-00492,0.00,116.60,R,Acumen Waste Services Ltd,No
Http://opendatacommunities.org/id/metropolitan-district-council/leeds,Leeds City Council,30/11/2019,Communities and Environment,Cleaner Neighbourhood Teams,Premises,Removal Of Workplace Waste,126,08/11/2019,1911-00493,0.00,116.60,R,Acumen Waste Services Ltd,No
Http://opendatacommunities.org/id/metropolitan-district-council/leeds,Leeds City Council,30/11/2019,Communities and Environment,Cleaner Neighbourhood Teams,Premises,Removal Of Workplace Waste,126,08/11/2019,1911-00494,0.00,116.60,R,Acumen Waste Services Ltd,No
Http://opendatacommunities.org/id/metropolitan-district-council/leeds,Leeds City Council,30/11/2019,Communities and Environment,Cleaner Neighbourhood Teams,Premises,Removal Of Workplace Waste,126,08/11/2019,1911-00495,0.00,116.60,R,Acumen Waste Services Ltd,No
Http://opendatacommunities.org/id/metropolitan-district-council/leeds,Leeds City Council,30/11/2019,Communities and Environment,Cleaner Neighbourhood Teams,Premises,Removal Of Workplace Waste,126,13/11/2019,1911-00496,0.00,116.60,R,Acumen Waste Services Ltd,No
Http://opendatacommunities.org/id/metropolitan-district-council/leeds,Leeds City Council,30/11/2019,Communities and Environment,Cleaner Neighbourhood Teams,Premises,Removal Of Workplace Waste,126,13/11/2019,1911-00497,0.00,116.60,R,Acumen Waste Services Ltd,No
Http://opendatacommunities.org/id/metropolitan-district-council/leeds,Leeds City Council,30/11/2019,Communities and Environment,Cleaner Neighbourhood Teams,Premises,Removal Of Workplace Waste,126,13/11/2019,1911-00498,0.00,116.60,R,Acumen Waste Services Ltd,No
Http://opendatacommunities.org/id/metropolitan-district-council/leeds,Leeds City Council,30/11/2019,Communities and Environment,Cleaner Neighbourhood Teams,Premises,Removal Of Workplace Waste,126,13/11/2019,1911-00499,0.00,116.60,R,Acumen Waste Services Ltd,No
Http://opendatacommunities.org/id/metropolitan-district-council/leeds,Leeds City Council,30/11/2019,Communities and Environment,Cleaner Neighbourhood Teams,Premises,Removal Of Workplace Waste,126,13/11/2019,1911-00500,0.00,116.60,R,Acumen Waste Services Ltd,No
Http://opendatacommunities.org/id/metropolitan-district-council/leeds,Leeds City Council,30/11/2019,Communities and Environment,Waste Management,Supplies and Services,Recycling & Reuse Charges,234,15/11/2019,1911-00501,0.00,6028.18,R,Acumen Waste Services Ltd,No
Http://opendatacommunities.org/id/metropolitan-district-council/leeds,Leeds City Council,30/11/2019,Communities and Environment,Cleaner Neighbourhood Teams,Premises,Removal Of Workplace Waste,126,15/11/2019,1911-00502,0.00,116.60,R,Acumen Waste Services Ltd,No
Http://opendatacommunities.org/id/metropolitan-district-council/leeds,Leeds City Council,30/11/2019,Communities and Environment,Cleaner Neighbourhood Teams,Premises,Removal Of Workplace Waste,126,15/11/2019,1911-00503,0.00,116.60,R,Acumen Waste Services Ltd,No
Http://opendatacommunities.org/id/metropolitan-district-council/leeds,Leeds City Council,30/11/2019,Communities and Environment,Cleaner Neighbourhood Teams,Premises,Removal Of Workplace Waste,126,15/11/2019,1911-00504,0.00,116.60,R,Acumen Waste Services Ltd,No
Http://opendatacommunities.org/id/metropolitan-district-council/leeds,Leeds City Council,30/11/2019,Communities and Environment,Cleaner Neighbourhood Teams,Premises,Removal Of Workplace Waste,126,20/11/2019,1911-00505,0.00,116.60,R,Acumen Waste Services Ltd,No
Http://opendatacommunities.org/id/metropolitan-district-council/leeds,Leeds City Council,30/11/2019,Communities and Environment,Cleaner Neighbourhood Teams,Premises,Removal Of Workplace Waste,126,20/11/2019,1911-00506,0.00,116.60,R,Acumen Waste Services Ltd,No
Http://opendatacommunities.org/id/metropolitan-district-council/leeds,Leeds City Council,30/11/2019,Communities and Environment,Cleaner Neighbourhood Teams,Premises,Removal Of Workplace Waste,126,20/11/2019,1911-00507,0.00,116.60,R,Acumen Waste Services Ltd,No
Http://opendatacommunities.org/id/metropolitan-district-council/leeds,Leeds City Council,30/11/2019,Communities and Environment,Cleaner Neighbourhood Teams,Premises,Removal Of Workplace Waste,126,20/11/2019,1911-00508,0.00,116.60,R,Acumen Waste Services Ltd,No
Http://opendatacommunities.org/id/metropolitan-district-council/leeds,Leeds City Council,30/11/2019,Communities and Environment,Cleaner Neighbourhood Teams,Premises,Removal Of Workplace Waste,126,20/11/2019,1911-00509,0.00,116.60,R,Acumen Waste Services Ltd,No
Http://opendatacommunities.org/id/metropolitan-district-council/leeds,Leeds City Council,30/11/2019,Communities and Environment,Cleaner Neighbourhood Teams,Premises,Removal Of Workplace Waste,126,20/11/2019,1911-00510,0.00,116.60,R,Acumen Waste Services Ltd,No
Http://opendatacommunities.org/id/metropolitan-district-council/leeds,Leeds City Council,30/11/2019,Communities and Environment,Waste Management,Supplies and Services,Recycling & Reuse Charges,234,20/11/2019,1911-00511,0.00,5050.23,R,Acumen Waste Services Ltd,No
Http://opendatacommunities.org/id/metropolitan-district-council/leeds,Leeds City Council,30/11/2019,Communities and Environment,Cleaner Neighbourhood Teams,Premises,Removal Of Workplace Waste,126,20/11/2019,1911-00512,0.00,116.60,R,Acumen Waste Services Ltd,No
Http://opendatacommunities.org/id/metropolitan-district-council/leeds,Leeds City Council,30/11/2019,Communities and Environment,Cleaner Neighbourhood Teams,Premises,Removal Of Workplace Waste,126,20/11/2019,1911-00513,0.00,116.60,R,Acumen Waste Services Ltd,No
Http://opendatacommunities.org/id/metropolitan-district-council/leeds,Leeds City Council,30/11/2019,Communities and Environment,Cleaner Neighbourhood Teams,Premises,Removal Of Workplace Waste,126,20/11/2019,1911-00514,0.00,116.60,R,Acumen Waste Services Ltd,No
Http://opendatacommunities.org/id/metropolitan-district-council/leeds,Leeds City Council,30/11/2019,Communities and Environment,Cleaner Neighbourhood Teams,Premises,Removal Of Workplace Waste,126,20/11/2019,1911-00515,0.00,116.60,R,Acumen Waste Services Ltd,No
Http://opendatacommunities.org/id/metropolitan-district-council/leeds,Leeds City Council,30/11/2019,Communities and Environment,Cleaner Neighbourhood Teams,Premises,Removal Of Workplace Waste,126,27/11/2019,1911-00516,0.00,116.60,R,Acumen Waste Services Ltd,No
Http://opendatacommunities.org/id/metropolitan-district-council/leeds,Leeds City Council,30/11/2019,Communities and Environment,Cleaner Neighbourhood Teams,Premises,Removal Of Workplace Waste,126,27/11/2019,1911-00517,0.00,116.60,R,Acumen Waste Services Ltd,No
Http://opendatacommunities.org/id/metropolitan-district-council/leeds,Leeds City Council,30/11/2019,Communities and Environment,Cleaner Neighbourhood Teams,Premises,Removal Of Workplace Waste,126,27/11/2019,1911-00518,0.00,116.60,R,Acumen Waste Services Ltd,No
Http://opendatacommunities.org/id/metropolitan-district-council/leeds,Leeds City Council,30/11/2019,Communities and Environment,Waste Management,Supplies and Services,Recycling & Reuse Charges,234,27/11/2019,1911-00519,0.00,5249.09,R,Acumen Waste Services Ltd,No
Http://opendatacommunities.org/id/metropolitan-district-council/leeds,Leeds City Council,30/11/2019,Communities and Environment,Cleaner Neighbourhood Teams,Premises,Removal Of Workplace Waste,126,27/11/2019,1911-00520,0.00,116.60,R,Acumen Waste Services Ltd,No
Http://opendatacommunities.org/id/metropolitan-district-council/leeds,Leeds City Council,30/11/2019,Communities and Environment,Cleaner Neighbourhood Teams,Premises,Removal Of Workplace Waste,126,27/11/2019,1911-00521,0.00,116.60,R,Acumen Waste Services Ltd,No
Http://opendatacommunities.org/id/metropolitan-district-council/leeds,Leeds City Council,30/11/2019,Communities and Environment,Cleaner Neighbourhood Teams,Premises,Removal Of Workplace Waste,126,27/11/2019,1911-00522,0.00,116.60,R,Acumen Waste Services Ltd,No
Http://opendatacommunities.org/id/metropolitan-district-council/leeds,Leeds City Council,30/11/2019,Communities and Environment,Cleaner Neighbourhood Teams,Premises,Removal Of Workplace Waste,126,27/11/2019,1911-00523,0.00,116.60,R,Acumen Waste Services Ltd,No
Http://opendatacommunities.org/id/metropolitan-district-council/leeds,Leeds City Council,30/11/2019,Communities and Environment,Cleaner Neighbourhood Teams,Premises,Removal Of Workplace Waste,126,27/11/2019,1911-00524,0.00,116.60,R,Acumen Waste Services Ltd,No
Http://opendatacommunities.org/id/metropolitan-district-council/leeds,Leeds City Council,30/11/2019,Communities and Environment,Cleaner Neighbourhood Teams,Premises,Removal Of Workplace Waste,126,27/11/2019,1911-00525,0.00,116.60,R,Acumen Waste Services Ltd,No
Http://opendatacommunities.org/id/metropolitan-district-council/leeds,Leeds City Council,30/11/2019,Communities and Environment,Cleaner Neighbourhood Teams,Premises,Removal Of Workplace Waste,126,29/11/2019,1911-00526,0.00,116.60,R,Acumen Waste Services Ltd,No
Http://opendatacommunities.org/id/metropolitan-district-council/leeds,Leeds City Council,30/11/2019,Communities and Environment,Waste Management,Supplies and Services,Recycling & Reuse Charges,234,29/11/2019,1911-00527,0.00,2752.03,R,Acumen Waste Services Ltd,No
Http://opendatacommunities.org/id/metropolitan-district-council/leeds,Leeds City Council,30/11/2019,Communities and Environment,Parks and Countryside,Supplies and Services,Resaleable Materials,204,04/11/2019,1911-00528,0.00,250.00,R,Acushnet Europe Limited,No
Http://opendatacommunities.org/id/metropolitan-district-council/leeds,Leeds City Council,30/11/2019,Adults and Health,Social Services Support Services,Employees,Training & Development,70,13/11/2019,1911-00529,0.00,595.00,R,Acute Training Solutions Limited,No
Http://opendatacommunities.org/id/metropolitan-district-council/leeds,Leeds City Council,30/11/2019,Resources and Housing,Shared Services,Supplies and Services,Other Hired And Contracted Services,265,08/11/2019,1911-00530,0.00,366.60,R,Ad3 Envelope Printers Limited,No
Http://opendatacommunities.org/id/metropolitan-district-council/leeds,Leeds City Council,30/11/2019,Resources and Housing,Shared Services,Supplies and Services,Operational Materials,205,15/11/2019,1911-00531,0.00,1131.75,R,Ad3 Envelope Printers Limited,No
Http://opendatacommunities.org/id/metropolitan-district-council/leeds,Leeds City Council,30/11/2019,Resources and Housing,Shared Services,Supplies and Services,Other Hired And Contracted Services,265,29/11/2019,1911-00532,0.00,366.60,R,Ad3 Envelope Printers Limited,No
Http://opendatacommunities.org/id/metropolitan-district-council/leeds,Leeds City Council,30/11/2019,Resources and Housing,Shared Services,Supplies and Services,Other Hired And Contracted Services,265,29/11/2019,1911-00533,0.00,394.00,R,Ad3 Envelope Printers Limited,No
Http://opendatacommunities.org/id/metropolitan-district-council/leeds,Leeds City Council,30/11/2019,Resources and Housing,Shared Services,Supplies and Services,Other Hired And Contracted Services,265,29/11/2019,1911-00534,0.00,70.40,R,Ad3 Envelope Printers Limited,No
Http://opendatacommunities.org/id/metropolitan-district-council/leeds,Leeds City Council,30/11/2019,City Development,Libraries  Arts & Heritage,Supplies and Services,Bought In Professional Services,277,21/11/2019,1911-00535,0.00,250.00,R,Adam Clarke,No
Http://opendatacommunities.org/id/metropolitan-district-council/leeds,Leeds City Council,30/11/2019,City Development,Libraries  Arts & Heritage,Supplies and Services,Books & Audio-Visual Materials,206,29/11/2019,1911-00536,0.00,80.00,R,REDACTED PERSONAL DATA,No
Http://opendatacommunities.org/id/metropolitan-district-council/leeds,Leeds City Council,30/11/2019,Adults and Health,Services For Older People - 65 And Over,Third Party Payments,Nursing Home,570,13/11/2019,1911-00537,0.00,2480.00,R,Adbolton Hall,No
Http://opendatacommunities.org/id/metropolitan-district-council/leeds,Leeds City Council,30/11/2019,Resources and Housing,Commercial Services,Transport,Road Fund Licences,323,04/11/2019,1911-00538,0.00,55.00,R,Addison Motors Limited,No
Http://opendatacommunities.org/id/metropolitan-district-council/leeds,Leeds City Council,30/11/2019,Resources and Housing,Civic Enterprise Leeds,Capital,Transport,4,08/11/2019,1911-00539,0.00,21629.80,C,Addison Motors Limited,No
Http://opendatacommunities.org/id/metropolitan-district-council/leeds,Leeds City Council,30/11/2019,Resources and Housing,Civic Enterprise Leeds,Capital,Transport,4,08/11/2019,1911-00540,0.00,21629.80,C,Addison Motors Limited,No
Http://opendatacommunities.org/id/metropolitan-district-council/leeds,Leeds City Council,30/11/2019,Resources and Housing,Civic Enterprise Leeds,Capital,Transport,4,08/11/2019,1911-00541,0.00,21629.80,C,Addison Motors Limited,No
Http://opendatacommunities.org/id/metropolitan-district-council/leeds,Leeds City Council,30/11/2019,Resources and Housing,Commercial Services,Supplies and Services,Other Hired And Contracted Services,265,08/11/2019,1911-00542,0.00,150.00,R,Addison Motors Limited,No
Http://opendatacommunities.org/id/metropolitan-district-council/leeds,Leeds City Council,30/11/2019,Resources and Housing,Commercial Services,Transport,Road Fund Licences,323,12/11/2019,1911-00543,0.00,55.00,R,Addison Motors Limited,No
Http://opendatacommunities.org/id/metropolitan-district-council/leeds,Leeds City Council,30/11/2019,Resources and Housing,Civic Enterprise Leeds,Capital,Transport,4,14/11/2019,1911-00544,0.00,21629.80,C,Addison Motors Limited,No
Http://opendatacommunities.org/id/metropolitan-district-council/leeds,Leeds City Council,30/11/2019,Resources and Housing,Civic Enterprise Leeds,Capital,Transport,4,14/11/2019,1911-00545,0.00,21629.80,C,Addison Motors Limited,No
Http://opendatacommunities.org/id/metropolitan-district-council/leeds,Leeds City Council,30/11/2019,Resources and Housing,Civic Enterprise Leeds,Capital,Transport,4,14/11/2019,1911-00546,0.00,21629.80,C,Addison Motors Limited,No
Http://opendatacommunities.org/id/metropolitan-district-council/leeds,Leeds City Council,30/11/2019,Resources and Housing,Civic Enterprise Leeds,Capital,Transport,4,14/11/2019,1911-00547,0.00,21629.80,C,Addison Motors Limited,No
Http://opendatacommunities.org/id/metropolitan-district-council/leeds,Leeds City Council,30/11/2019,Resources and Housing,Civic Enterprise Leeds,Capital,Transport,4,14/11/2019,1911-00548,0.00,21629.80,C,Addison Motors Limited,No
Http://opendatacommunities.org/id/metropolitan-district-council/leeds,Leeds City Council,30/11/2019,Resources and Housing,Commercial Services,Transport,Road Fund Licences,323,15/11/2019,1911-00549,0.00,55.00,R,Addison Motors Limited,No
Http://opendatacommunities.org/id/metropolitan-district-council/leeds,Leeds City Council,30/11/2019,Resources and Housing,Commercial Services,Transport,Road Fund Licences,323,15/11/2019,1911-00550,0.00,55.00,R,Addison Motors Limited,No
Http://opendatacommunities.org/id/metropolitan-district-council/leeds,Leeds City Council,30/11/2019,Resources and Housing,Commercial Services,Transport,Road Fund Licences,323,15/11/2019,1911-00551,0.00,55.00,R,Addison Motors Limited,No
Http://opendatacommunities.org/id/metropolitan-district-council/leeds,Leeds City Council,30/11/2019,Resources and Housing,Commercial Services,Transport,Road Fund Licences,323,15/11/2019,1911-00552,0.00,55.00,R,Addison Motors Limited,No
Http://opendatacommunities.org/id/metropolitan-district-council/leeds,Leeds City Council,30/11/2019,Resources and Housing,Civic Enterprise Leeds,Capital,Transport,4,20/11/2019,1911-00553,0.00,21629.80,C,Addison Motors Limited,No
Http://opendatacommunities.org/id/metropolitan-district-council/leeds,Leeds City Council,30/11/2019,Resources and Housing,Civic Enterprise Leeds,Capital,Transport,4,20/11/2019,1911-00554,0.00,21629.80,C,Addison Motors Limited,No
Http://opendatacommunities.org/id/metropolitan-district-council/leeds,Leeds City Council,30/11/2019,Resources and Housing,Civic Enterprise Leeds,Capital,Transport,4,20/11/2019,1911-00555,0.00,21629.80,C,Addison Motors Limited,No
Http://opendatacommunities.org/id/metropolitan-district-council/leeds,Leeds City Council,30/11/2019,Resources and Housing,Civic Enterprise Leeds,Capital,Transport,4,20/11/2019,1911-00556,0.00,21629.80,C,Addison Motors Limited,No
Http://opendatacommunities.org/id/metropolitan-district-council/leeds,Leeds City Council,30/11/2019,Resources and Housing,Commercial Services,Transport,Road Fund Licences,323,20/11/2019,1911-00557,0.00,55.00,R,Addison Motors Limited,No
Http://opendatacommunities.org/id/metropolitan-district-council/leeds,Leeds City Council,30/11/2019,Resources and Housing,Commercial Services,Transport,Road Fund Licences,323,20/11/2019,1911-00558,0.00,55.00,R,Addison Motors Limited,No
Http://opendatacommunities.org/id/metropolitan-district-council/leeds,Leeds City Council,30/11/2019,Resources and Housing,Commercial Services,Transport,Road Fund Licences,323,20/11/2019,1911-00559,0.00,55.00,R,Addison Motors Limited,No
Http://opendatacommunities.org/id/metropolitan-district-council/leeds,Leeds City Council,30/11/2019,Resources and Housing,Commercial Services,Transport,Road Fund Licences,323,20/11/2019,1911-00560,0.00,55.00,R,Addison Motors Limited,No
Http://opendatacommunities.org/id/metropolitan-district-council/leeds,Leeds City Council,30/11/2019,Resources and Housing,Civic Enterprise Leeds,Capital,Transport,4,22/11/2019,1911-00561,0.00,21629.80,C,Addison Motors Limited,No
Http://opendatacommunities.org/id/metropolitan-district-council/leeds,Leeds City Council,30/11/2019,Resources and Housing,Civic Enterprise Leeds,Capital,Transport,4,22/11/2019,1911-00562,0.00,21629.80,C,Addison Motors Limited,No
Http://opendatacommunities.org/id/metropolitan-district-council/leeds,Leeds City Council,30/11/2019,Resources and Housing,Civic Enterprise Leeds,Capital,Transport,4,22/11/2019,1911-00563,0.00,21629.80,C,Addison Motors Limited,No
Http://opendatacommunities.org/id/metropolitan-district-council/leeds,Leeds City Council,30/11/2019,Resources and Housing,Civic Enterprise Leeds,Capital,Transport,4,22/11/2019,1911-00564,0.00,21629.80,C,Addison Motors Limited,No
Http://opendatacommunities.org/id/metropolitan-district-council/leeds,Leeds City Council,30/11/2019,Resources and Housing,Civic Enterprise Leeds,Capital,Transport,4,22/11/2019,1911-00565,0.00,21629.80,C,Addison Motors Limited,No
Http://opendatacommunities.org/id/metropolitan-district-council/leeds,Leeds City Council,30/11/2019,Resources and Housing,Civic Enterprise Leeds,Capital,Transport,4,22/11/2019,1911-00566,0.00,21629.80,C,Addison Motors Limited,No
Http://opendatacommunities.org/id/metropolitan-district-council/leeds,Leeds City Council,30/11/2019,Resources and Housing,Commercial Services,Transport,Road Fund Licences,323,22/11/2019,1911-00567,0.00,55.00,R,Addison Motors Limited,No
Http://opendatacommunities.org/id/metropolitan-district-council/leeds,Leeds City Council,30/11/2019,Resources and Housing,Commercial Services,Transport,Road Fund Licences,323,22/11/2019,1911-00568,0.00,55.00,R,Addison Motors Limited,No
Http://opendatacommunities.org/id/metropolitan-district-council/leeds,Leeds City Council,30/11/2019,Resources and Housing,Commercial Services,Transport,Road Fund Licences,323,27/11/2019,1911-00569,0.00,55.00,R,Addison Motors Limited,No
Http://opendatacommunities.org/id/metropolitan-district-council/leeds,Leeds City Council,30/11/2019,Resources and Housing,Commercial Services,Transport,Road Fund Licences,323,27/11/2019,1911-00570,0.00,55.00,R,Addison Motors Limited,No
Http://opendatacommunities.org/id/metropolitan-district-council/leeds,Leeds City Council,30/11/2019,Resources and Housing,Commercial Services,Transport,Road Fund Licences,323,27/11/2019,1911-00571,0.00,55.00,R,Addison Motors Limited,No
Http://opendatacommunities.org/id/metropolitan-district-council/leeds,Leeds City Council,30/11/2019,Resources and Housing,Commercial Services,Transport,Road Fund Licences,323,27/11/2019,1911-00572,0.00,55.00,R,Addison Motors Limited,No
Http://opendatacommunities.org/id/metropolitan-district-council/leeds,Leeds City Council,30/11/2019,Resources and Housing,Commercial Services,Transport,Road Fund Licences,323,27/11/2019,1911-00573,0.00,55.00,R,Addison Motors Limited,No
Http://opendatacommunities.org/id/metropolitan-district-council/leeds,Leeds City Council,30/11/2019,Resources and Housing,Commercial Services,Transport,Road Fund Licences,323,27/11/2019,1911-00574,0.00,55.00,R,Addison Motors Limited,No
Http://opendatacommunities.org/id/metropolitan-district-council/leeds,Leeds City Council,30/11/2019,City Development,Asset Management Services,Support Services,Legal Disbursements,411,27/11/2019,1911-00575,0.00,2750.00,R,Addleshaw Goddard Llp,No
Http://opendatacommunities.org/id/metropolitan-district-council/leeds,Leeds City Council,30/11/2019,Resources and Housing,Technology  ,Employees,Agency Staff,8,02/10/2019,1911-00576,0.00,5986.05,R,Adecco Alfred Marks,Yes
Http://opendatacommunities.org/id/metropolitan-district-council/leeds,Leeds City Council,30/11/2019,Resources and Housing,Technology  ,Employees,Agency Staff,8,08/10/2019,1911-00577,0.00,21022.76,R,Adecco Alfred Marks,Yes
Http://opendatacommunities.org/id/metropolitan-district-council/leeds,Leeds City Council,30/11/2019,Resources and Housing,Technology  ,Employees,Agency Staff,8,18/10/2019,1911-00578,0.00,36080.36,R,Adecco Alfred Marks,Yes
Http://opendatacommunities.org/id/metropolitan-district-council/leeds,Leeds City Council,30/11/2019,Resources and Housing,Technology  ,Employees,Agency Staff,8,22/10/2019,1911-00579,0.00,46953.23,R,Adecco Alfred Marks,Yes
Http://opendatacommunities.org/id/metropolitan-district-council/leeds,Leeds City Council,30/11/2019,Children and Families,Social Care,Third Party Payments,Services Rendered By Voluntary Sector,505,01/11/2019,1911-00580,0.00,6224.25,R,Adel Pre School,No
Http://opendatacommunities.org/id/metropolitan-district-council/leeds,Leeds City Council,30/11/2019,Children and Families,Social Care,Third Party Payments,Services Rendered By Voluntary Sector,505,22/11/2019,1911-00581,0.00,1912.22,R,Adel Pre School,No
Http://opendatacommunities.org/id/metropolitan-district-council/leeds,Leeds City Council,30/11/2019,Children and Families,Social Care,Third Party Payments,Services Rendered By Voluntary Sector,505,29/11/2019,1911-00582,0.00,2463.16,R,Adel Pre School,No
Http://opendatacommunities.org/id/metropolitan-district-council/leeds,Leeds City Council,30/11/2019,Children and Families,Social Care,Third Party Payments,Services Rendered By Other Organisations,511,01/11/2019,1911-00583,0.00,225.75,R,REDACTED PERSONAL DATA,No
Http://opendatacommunities.org/id/metropolitan-district-council/leeds,Leeds City Council,30/11/2019,Children and Families,Social Care,Third Party Payments,Services Rendered By Other Organisations,511,06/11/2019,1911-00584,0.00,273.00,R,REDACTED PERSONAL DATA,No
Http://opendatacommunities.org/id/metropolitan-district-council/leeds,Leeds City Council,30/11/2019,Children and Families,Social Care,Third Party Payments,Services Rendered By Other Organisations,511,22/11/2019,1911-00585,0.00,418.12,R,REDACTED PERSONAL DATA,No
Http://opendatacommunities.org/id/metropolitan-district-council/leeds,Leeds City Council,30/11/2019,Children and Families,Social Care,Third Party Payments,Services Rendered By Other Organisations,511,01/11/2019,1911-00586,0.00,600.93,R,REDACTED PERSONAL DATA,No
Http://opendatacommunities.org/id/metropolitan-district-council/leeds,Leeds City Council,30/11/2019,Resources and Housing,Commercial Services,Supplies and Services,Food & Drink,231,08/11/2019,1911-00587,0.00,194.25,R,Adelie Foods Ltd,No
Http://opendatacommunities.org/id/metropolitan-district-council/leeds,Leeds City Council,30/11/2019,Resources and Housing,Commercial Services,Supplies and Services,Operational Furniture And Equipment,203,14/11/2019,1911-00588,0.00,346.70,R,Adelie Foods Ltd,No
Http://opendatacommunities.org/id/metropolitan-district-council/leeds,Leeds City Council,30/11/2019,Resources and Housing,Commercial Services,Supplies and Services,Food & Drink,231,21/11/2019,1911-00589,0.00,487.32,R,Adelie Foods Ltd,No
Http://opendatacommunities.org/id/metropolitan-district-council/leeds,Leeds City Council,30/11/2019,Resources and Housing,Commercial Services,Supplies and Services,Food & Drink,231,21/11/2019,1911-00590,0.00,210.10,R,Adelie Foods Ltd,No
Http://opendatacommunities.org/id/metropolitan-district-council/leeds,Leeds City Council,30/11/2019,Resources and Housing,Commercial Services,Supplies and Services,Food & Drink,231,21/11/2019,1911-00591,0.00,-27.31,R,Adelie Foods Ltd,No
Http://opendatacommunities.org/id/metropolitan-district-council/leeds,Leeds City Council,30/11/2019,Resources and Housing,Commercial Services,Supplies and Services,Food & Drink,231,22/11/2019,1911-00592,0.00,192.98,R,Adelie Foods Ltd,No
Http://opendatacommunities.org/id/metropolitan-district-council/leeds,Leeds City Council,30/11/2019,Resources and Housing,Commercial Services,Supplies and Services,Food & Drink,231,22/11/2019,1911-00593,0.00,289.35,R,Adelie Foods Ltd,No
Http://opendatacommunities.org/id/metropolitan-district-council/leeds,Leeds City Council,30/11/2019,Resources and Housing,Commercial Services,Supplies and Services,Food & Drink,231,29/11/2019,1911-00594,0.00,113.43,R,Adelie Foods Ltd,No
Http://opendatacommunities.org/id/metropolitan-district-council/leeds,Leeds City Council,30/11/2019,Resources and Housing,Commercial Services,Supplies and Services,Operational Furniture And Equipment,203,29/11/2019,1911-00595,0.00,271.15,R,Adelie Foods Ltd,No
Http://opendatacommunities.org/id/metropolitan-district-council/leeds,Leeds City Council,30/11/2019,Resources and Housing,Commercial Services,Supplies and Services,Food & Drink,231,29/11/2019,1911-00596,0.00,144.20,R,Adelie Foods Ltd,No
Http://opendatacommunities.org/id/metropolitan-district-council/leeds,Leeds City Council,30/11/2019,Resources and Housing,Commercial Services,Supplies and Services,Food & Drink,231,29/11/2019,1911-00597,0.00,283.69,R,Adelie Foods Ltd,No
Http://opendatacommunities.org/id/metropolitan-district-council/leeds,Leeds City Council,30/11/2019,Resources and Housing,Leeds Building Services,Supplies and Services,Operational Materials,205,08/11/2019,1911-00598,0.00,49.20,R,Adi Global,No
Http://opendatacommunities.org/id/metropolitan-district-council/leeds,Leeds City Council,30/11/2019,Resources and Housing,Leeds Building Services,Supplies and Services,Operational Materials,205,08/11/2019,1911-00599,0.00,102.26,R,Adi Global,No
Http://opendatacommunities.org/id/metropolitan-district-council/leeds,Leeds City Council,30/11/2019,Resources and Housing,Leeds Building Services,Supplies and Services,Operational Materials,205,08/11/2019,1911-00600,0.00,79.60,R,Adi Global,No
Http://opendatacommunities.org/id/metropolitan-district-council/leeds,Leeds City Council,30/11/2019,Resources and Housing,Leeds Building Services,Supplies and Services,Operational Materials,205,08/11/2019,1911-00601,0.00,142.29,R,Adi Global,No
Http://opendatacommunities.org/id/metropolitan-district-council/leeds,Leeds City Council,30/11/2019,Resources and Housing,Leeds Building Services,Supplies and Services,Operational Materials,205,08/11/2019,1911-00602,0.00,-1534.60,R,Adi Global,No
Http://opendatacommunities.org/id/metropolitan-district-council/leeds,Leeds City Council,30/11/2019,Resources and Housing,Leeds Building Services,Supplies and Services,Operational Materials,205,08/11/2019,1911-00603,0.00,57.99,R,Adi Global,No
Http://opendatacommunities.org/id/metropolitan-district-council/leeds,Leeds City Council,30/11/2019,Resources and Housing,Leeds Building Services,Supplies and Services,Operational Materials,205,08/11/2019,1911-00604,0.00,2261.22,R,Adi Global,No
Http://opendatacommunities.org/id/metropolitan-district-council/leeds,Leeds City Council,30/11/2019,Resources and Housing,Leeds Building Services,Supplies and Services,Operational Materials,205,08/11/2019,1911-00605,0.00,202.02,R,Adi Global,No
Http://opendatacommunities.org/id/metropolitan-district-council/leeds,Leeds City Council,30/11/2019,Resources and Housing,Leeds Building Services,Supplies and Services,Operational Materials,205,08/11/2019,1911-00606,0.00,18.65,R,Adi Global,No
Http://opendatacommunities.org/id/metropolitan-district-council/leeds,Leeds City Council,30/11/2019,Resources and Housing,Leeds Building Services,Supplies and Services,Operational Materials,205,08/11/2019,1911-00607,0.00,22.89,R,Adi Global,No
Http://opendatacommunities.org/id/metropolitan-district-council/leeds,Leeds City Council,30/11/2019,Resources and Housing,Leeds Building Services,Supplies and Services,Operational Materials,205,08/11/2019,1911-00608,0.00,175.72,R,Adi Global,No
Http://opendatacommunities.org/id/metropolitan-district-council/leeds,Leeds City Council,30/11/2019,Resources and Housing,Leeds Building Services,Supplies and Services,Operational Materials,205,08/11/2019,1911-00609,0.00,49.20,R,Adi Global,No
Http://opendatacommunities.org/id/metropolitan-district-council/leeds,Leeds City Council,30/11/2019,Resources and Housing,Leeds Building Services,Supplies and Services,Operational Materials,205,14/11/2019,1911-00610,0.00,65.59,R,Adi Global,No
Http://opendatacommunities.org/id/metropolitan-district-council/leeds,Leeds City Council,30/11/2019,Resources and Housing,Leeds Building Services,Supplies and Services,Operational Materials,205,15/11/2019,1911-00611,0.00,117.00,R,Adi Global,No
Http://opendatacommunities.org/id/metropolitan-district-council/leeds,Leeds City Council,30/11/2019,Resources and Housing,Leeds Building Services,Supplies and Services,Operational Materials,205,19/11/2019,1911-00612,0.00,202.02,R,Adi Global,No
Http://opendatacommunities.org/id/metropolitan-district-council/leeds,Leeds City Council,30/11/2019,Resources and Housing,Leeds Building Services,Supplies and Services,Operational Materials,205,19/11/2019,1911-00613,0.00,138.84,R,Adi Global,No
Http://opendatacommunities.org/id/metropolitan-district-council/leeds,Leeds City Council,30/11/2019,Resources and Housing,Leeds Building Services,Supplies and Services,Operational Materials,205,20/11/2019,1911-00614,0.00,117.00,R,Adi Global,No
Http://opendatacommunities.org/id/metropolitan-district-council/leeds,Leeds City Council,30/11/2019,Resources and Housing,Leeds Building Services,Supplies and Services,Stores - Central And Other Depots,5,25/11/2019,1911-00615,0.00,4.75,R,Adi Global,No
Http://opendatacommunities.org/id/metropolitan-district-council/leeds,Leeds City Council,30/11/2019,Resources and Housing,Leeds Building Services,Supplies and Services,Operational Materials,205,28/11/2019,1911-00616,0.00,87.86,R,Adi Global,No
Http://opendatacommunities.org/id/metropolitan-district-council/leeds,Leeds City Council,30/11/2019,Resources and Housing,Leeds Building Services,Supplies and Services,Operational Materials,205,29/11/2019,1911-00617,0.00,226.62,R,Adi Global,No
Http://opendatacommunities.org/id/metropolitan-district-council/leeds,Leeds City Council,30/11/2019,Communities and Environment,Community Safety  ,Supplies and Services,Other Hired And Contracted Services,265,15/10/2019,1911-00618,0.00,30.00,R,Adi-Gardiner Ltd,Yes
Http://opendatacommunities.org/id/metropolitan-district-council/leeds,Leeds City Council,30/11/2019,Adults and Health,Services For Adults Under 65 Mental/Dis,Third Party Payments,Home Care,568,20/11/2019,1911-00619,0.00,485.52,R,Adjuvo Care & Support Ltd,No
Http://opendatacommunities.org/id/metropolitan-district-council/leeds,Leeds City Council,30/11/2019,Adults and Health,Services For Older People - 65 And Over,Third Party Payments,Home Care,568,20/11/2019,1911-00620,0.00,12172.68,R,Adjuvo Care & Support Ltd,No
Http://opendatacommunities.org/id/metropolitan-district-council/leeds,Leeds City Council,30/11/2019,Adults and Health,Services For Older People Under 65 P/Dis,Third Party Payments,Home Care,568,20/11/2019,1911-00621,0.00,5228.01,R,Adjuvo Care & Support Ltd,No
Http://opendatacommunities.org/id/metropolitan-district-council/leeds,Leeds City Council,30/11/2019,Resources and Housing,Sustainable Energy & Climate Change,Capital,Other Costs,7,22/11/2019,1911-00622,0.00,1500.00,C,REDACTED COMMERCIAL CONFIDENTIALITY,No
Http://opendatacommunities.org/id/metropolitan-district-council/leeds,Leeds City Council,30/11/2019,City Development,Libraries  Arts & Heritage  ,Supplies and Services,Computer Software & Equipment,214,02/10/2019,1911-00623,0.00,9.98,R,Adobe Photogphy Plan,Yes
Http://opendatacommunities.org/id/metropolitan-district-council/leeds,Leeds City Council,30/11/2019,Children and Families,Social Care,Third Party Payments,Placement Support,550,01/11/2019,1911-00624,0.00,350.00,R,Adolescent And Childrens Trust,No
Http://opendatacommunities.org/id/metropolitan-district-council/leeds,Leeds City Council,30/11/2019,Children and Families,Social Care,Third Party Payments,Independent Fostering Agencies,509,01/11/2019,1911-00625,0.00,3268.20,R,Adolescent And Childrens Trust,No
Http://opendatacommunities.org/id/metropolitan-district-council/leeds,Leeds City Council,30/11/2019,Children and Families,Social Care,Third Party Payments,Independent Fostering Agencies,509,01/11/2019,1911-00626,0.00,3268.20,R,Adolescent And Childrens Trust,No
Http://opendatacommunities.org/id/metropolitan-district-council/leeds,Leeds City Council,30/11/2019,Children and Families,Social Care,Third Party Payments,Independent Fostering Agencies,509,01/11/2019,1911-00627,0.00,3202.84,R,Adolescent And Childrens Trust,No
Http://opendatacommunities.org/id/metropolitan-district-council/leeds,Leeds City Council,30/11/2019,Children and Families,Social Care,Third Party Payments,Independent Fostering Agencies,509,01/11/2019,1911-00628,0.00,3202.84,R,Adolescent And Childrens Trust,No
Http://opendatacommunities.org/id/metropolitan-district-council/leeds,Leeds City Council,30/11/2019,Children and Families,Social Care,Third Party Payments,Independent Fostering Agencies,509,01/11/2019,1911-00629,0.00,3202.84,R,Adolescent And Childrens Trust,No
Http://opendatacommunities.org/id/metropolitan-district-council/leeds,Leeds City Council,30/11/2019,Children and Families,Social Care,Third Party Payments,Independent Fostering Agencies,509,01/11/2019,1911-00630,0.00,3202.84,R,Adolescent And Childrens Trust,No
Http://opendatacommunities.org/id/metropolitan-district-council/leeds,Leeds City Council,30/11/2019,Children and Families,Social Care,Third Party Payments,Independent Fostering Agencies,509,01/11/2019,1911-00631,0.00,3460.80,R,Adolescent And Childrens Trust,No
Http://opendatacommunities.org/id/metropolitan-district-council/leeds,Leeds City Council,30/11/2019,Children and Families,Social Care,Third Party Payments,Independent Fostering Agencies,509,01/11/2019,1911-00632,0.00,3460.80,R,Adolescent And Childrens Trust,No
Http://opendatacommunities.org/id/metropolitan-district-council/leeds,Leeds City Council,30/11/2019,Children and Families,Social Care,Third Party Payments,Independent Fostering Agencies,509,01/11/2019,1911-00633,0.00,3202.84,R,Adolescent And Childrens Trust,No
Http://opendatacommunities.org/id/metropolitan-district-council/leeds,Leeds City Council,30/11/2019,Children and Families,Social Care,Third Party Payments,Independent Fostering Agencies,509,01/11/2019,1911-00634,0.00,2969.40,R,Adolescent And Childrens Trust,No
Http://opendatacommunities.org/id/metropolitan-district-council/leeds,Leeds City Council,30/11/2019,Children and Families,Social Care,Third Party Payments,Independent Fostering Agencies,509,01/11/2019,1911-00635,0.00,3202.84,R,Adolescent And Childrens Trust,No
Http://opendatacommunities.org/id/metropolitan-district-council/leeds,Leeds City Council,30/11/2019,Children and Families,Social Care,Third Party Payments,Independent Fostering Agencies,509,01/11/2019,1911-00636,0.00,3202.84,R,Adolescent And Childrens Trust,No
Http://opendatacommunities.org/id/metropolitan-district-council/leeds,Leeds City Council,30/11/2019,Children and Families,Social Care,Third Party Payments,Independent Fostering Agencies,509,01/11/2019,1911-00637,0.00,3202.84,R,Adolescent And Childrens Trust,No
Http://opendatacommunities.org/id/metropolitan-district-council/leeds,Leeds City Council,30/11/2019,Children and Families,Social Care,Third Party Payments,Independent Fostering Agencies,509,01/11/2019,1911-00638,0.00,2850.00,R,Adolescent And Childrens Trust,No
Http://opendatacommunities.org/id/metropolitan-district-council/leeds,Leeds City Council,30/11/2019,Children and Families,Social Care,Third Party Payments,Independent Fostering Agencies,509,15/11/2019,1911-00639,0.00,664.00,R,Adolescent And Childrens Trust,No
Http://opendatacommunities.org/id/metropolitan-district-council/leeds,Leeds City Council,30/11/2019,Children and Families,Social Care,Third Party Payments,Independent Fostering Agencies,509,15/11/2019,1911-00640,0.00,762.00,R,Adolescent And Childrens Trust,No
Http://opendatacommunities.org/id/metropolitan-district-council/leeds,Leeds City Council,30/11/2019,Children and Families,Social Care,Third Party Payments,Independent Fostering Agencies,509,15/11/2019,1911-00641,0.00,2945.00,R,Adolescent And Childrens Trust,No
Http://opendatacommunities.org/id/metropolitan-district-council/leeds,Leeds City Council,30/11/2019,Children and Families,Social Care,Third Party Payments,Independent Fostering Agencies,509,29/11/2019,1911-00642,0.00,3377.14,R,Adolescent And Childrens Trust,No
Http://opendatacommunities.org/id/metropolitan-district-council/leeds,Leeds City Council,30/11/2019,Children and Families,Social Care,Third Party Payments,Independent Fostering Agencies,509,29/11/2019,1911-00643,0.00,3309.60,R,Adolescent And Childrens Trust,No
Http://opendatacommunities.org/id/metropolitan-district-council/leeds,Leeds City Council,30/11/2019,Children and Families,Social Care,Third Party Payments,Independent Fostering Agencies,509,29/11/2019,1911-00644,0.00,3576.16,R,Adolescent And Childrens Trust,No
Http://opendatacommunities.org/id/metropolitan-district-council/leeds,Leeds City Council,30/11/2019,Children and Families,Social Care,Third Party Payments,Independent Fostering Agencies,509,29/11/2019,1911-00645,0.00,3576.16,R,Adolescent And Childrens Trust,No
Http://opendatacommunities.org/id/metropolitan-district-council/leeds,Leeds City Council,30/11/2019,Children and Families,Social Care,Third Party Payments,Independent Fostering Agencies,509,29/11/2019,1911-00646,0.00,3068.38,R,Adolescent And Childrens Trust,No
Http://opendatacommunities.org/id/metropolitan-district-council/leeds,Leeds City Council,30/11/2019,Children and Families,Social Care,Third Party Payments,Independent Fostering Agencies,509,29/11/2019,1911-00647,0.00,3309.60,R,Adolescent And Childrens Trust,No
Http://opendatacommunities.org/id/metropolitan-district-council/leeds,Leeds City Council,30/11/2019,Children and Families,Social Care,Third Party Payments,Independent Fostering Agencies,509,29/11/2019,1911-00648,0.00,3309.60,R,Adolescent And Childrens Trust,No
Http://opendatacommunities.org/id/metropolitan-district-council/leeds,Leeds City Council,30/11/2019,Children and Families,Social Care,Third Party Payments,Independent Fostering Agencies,509,29/11/2019,1911-00649,0.00,3937.00,R,Adolescent And Childrens Trust,No
Http://opendatacommunities.org/id/metropolitan-district-council/leeds,Leeds City Council,30/11/2019,Resources and Housing,Legal Services,Transport,Public Transport Expenses,310,07/11/2019,1911-00650,0.00,5.00,R,REDACTED PERSONAL DATA,No
Http://opendatacommunities.org/id/metropolitan-district-council/leeds,Leeds City Council,30/11/2019,Children and Families,Social Care,Third Party Payments,Placement Support,550,01/11/2019,1911-00651,0.00,100.00,R,REDACTED PERSONAL DATA,No
Http://opendatacommunities.org/id/metropolitan-district-council/leeds,Leeds City Council As Accountable Body,30/11/2019,Social Services Pooled Budgets,Jcs For People With Learning Disabilitie,Third Party Payments,Residential,580,01/11/2019,1911-00652,0.00,1332.20,R,Adult Placement Services,No
Http://opendatacommunities.org/id/metropolitan-district-council/leeds,Leeds City Council As Accountable Body,30/11/2019,Social Services Pooled Budgets,Jcs For People With Learning Disabilitie,Third Party Payments,Residential,580,06/11/2019,1911-00653,0.00,823.81,R,Adult Placement Services,No
Http://opendatacommunities.org/id/metropolitan-district-council/leeds,Leeds City Council As Accountable Body,30/11/2019,Social Services Pooled Budgets,Jcs For People With Learning Disabilitie,Third Party Payments,Residential,580,29/11/2019,1911-00654,0.00,1332.24,R,Adult Placement Services,No
Http://opendatacommunities.org/id/metropolitan-district-council/leeds,Leeds City Council,30/11/2019,City Development,Recreation,Supplies and Services,External Audit Fees,261,01/11/2019,1911-00655,0.00,135.00,R,Advance Stocks Ltd,No
Http://opendatacommunities.org/id/metropolitan-district-council/leeds,Leeds City Council,30/11/2019,City Development,Recreation,Supplies and Services,External Audit Fees,261,01/11/2019,1911-00656,0.00,85.00,R,Advance Stocks Ltd,No
Http://opendatacommunities.org/id/metropolitan-district-council/leeds,Leeds City Council,30/11/2019,City Development,Recreation,Supplies and Services,External Audit Fees,261,08/11/2019,1911-00657,0.00,135.00,R,Advance Stocks Ltd,No
Http://opendatacommunities.org/id/metropolitan-district-council/leeds,Leeds City Council,30/11/2019,City Development,Libraries  Arts & Heritage,Supplies and Services,Other Hired And Contracted Services,265,12/11/2019,1911-00658,0.00,85.00,R,Advance Stocks Ltd,No
Http://opendatacommunities.org/id/metropolitan-district-council/leeds,Leeds City Council,30/11/2019,City Development,Libraries  Arts & Heritage,Supplies and Services,External Audit Fees,261,22/11/2019,1911-00659,0.00,90.00,R,Advance Stocks Ltd,No
Http://opendatacommunities.org/id/metropolitan-district-council/leeds,Leeds City Council,30/11/2019,Children and Families,Social Care,Support Services,Legal Disbursements,411,01/11/2019,1911-00660,0.00,315.55,R,Advanced Child Care Assessments Ltd,No
Http://opendatacommunities.org/id/metropolitan-district-council/leeds,Leeds City Council,30/11/2019,Resources and Housing,Corporate Property Management,Premises,Plant and Machinery,102,25/11/2019,1911-00661,0.00,460.00,R,Advanced Diesel Engineering,No
Http://opendatacommunities.org/id/metropolitan-district-council/leeds,Leeds City Council,30/11/2019,Resources and Housing,Leeds Building Services,Supplies and Services,Operational Materials,205,26/11/2019,1911-00662,0.00,196.00,R,Advanced Labelling Limited,No
Http://opendatacommunities.org/id/metropolitan-district-council/leeds,Leeds City Council As Accountable Body,30/11/2019,Social Services Pooled Budgets,Jcs For People With Learning Disabilitie,Third Party Payments,Residential,580,13/11/2019,1911-00663,0.00,17213.56,R,Advitam Ltd,No
Http://opendatacommunities.org/id/metropolitan-district-council/leeds,Leeds City Council As Accountable Body,30/11/2019,Social Services Pooled Budgets,Jcs For People With Learning Disabilitie,Third Party Payments,Day Centre,564,29/11/2019,1911-00664,0.00,492.05,R,Advitam Ltd,No
Http://opendatacommunities.org/id/metropolitan-district-council/leeds,Leeds City Council,30/11/2019,Children and Families,Social Care,Third Party Payments,Placement Support,550,01/11/2019,1911-00665,0.00,255.00,R,Advonet,No
Http://opendatacommunities.org/id/metropolitan-district-council/leeds,Leeds City Council,30/11/2019,Adults and Health,Services For Older People - 65 And Over,Third Party Payments,Payments To Voluntary Organisations,561,14/11/2019,1911-00666,0.00,103916.67,R,Advonet,No
Http://opendatacommunities.org/id/metropolitan-district-council/leeds,Leeds City Council As Accountable Body,30/11/2019,Social Services Pooled Budgets,Jcs For People With Learning Disabilitie,Third Party Payments,Other Agency Services,561,14/11/2019,1911-00667,0.00,7.50,R,Advonet,No
Http://opendatacommunities.org/id/metropolitan-district-council/leeds,Leeds City Council As Accountable Body,30/11/2019,Social Services Pooled Budgets,Jcs For People With Learning Disabilitie,Third Party Payments,Other Agency Services,561,14/11/2019,1911-00668,0.00,162.60,R,Advonet,No
Http://opendatacommunities.org/id/metropolitan-district-council/leeds,Leeds City Council,30/11/2019,Adults and Health,Services For Adults Under 65 Mental/Dis,Third Party Payments,Fees - Level 4,520,14/11/2019,1911-00669,0.00,244.83,R,Ae Bia Assessments Limited,No
Http://opendatacommunities.org/id/metropolitan-district-council/leeds,Leeds City Council,30/11/2019,Adults and Health,Services For Adults Under 65 Mental/Dis,Third Party Payments,Fees - Level 4,520,14/11/2019,1911-00670,0.00,198.00,R,Ae Bia Assessments Limited,No
Http://opendatacommunities.org/id/metropolitan-district-council/leeds,Leeds City Council,30/11/2019,Adults and Health,Services For Adults Under 65 Mental/Dis,Third Party Payments,Fees - Level 4,520,14/11/2019,1911-00671,0.00,198.00,R,Ae Bia Assessments Limited,No
Http://opendatacommunities.org/id/metropolitan-district-council/leeds,Leeds City Council,30/11/2019,Adults and Health,Services For Adults Under 65 Mental/Dis,Third Party Payments,Fees - Level 4,520,18/11/2019,1911-00672,0.00,244.96,R,Ae Bia Assessments Limited,No
Http://opendatacommunities.org/id/metropolitan-district-council/leeds,Leeds City Council,30/11/2019,Adults and Health,Services For Adults Under 65 Mental/Dis,Third Party Payments,Fees - Level 4,520,18/11/2019,1911-00673,0.00,212.48,R,Ae Bia Assessments Limited,No
Http://opendatacommunities.org/id/metropolitan-district-council/leeds,Leeds City Council,30/11/2019,Adults and Health,Services For Adults Under 65 Mental/Dis,Third Party Payments,Fees - Level 4,520,18/11/2019,1911-00674,0.00,198.00,R,Ae Bia Assessments Limited,No
Http://opendatacommunities.org/id/metropolitan-district-council/leeds,Leeds City Council,30/11/2019,Adults and Health,Services For Adults Under 65 Mental/Dis,Third Party Payments,Fees - Level 4,520,18/11/2019,1911-00675,0.00,198.00,R,Ae Bia Assessments Limited,No
Http://opendatacommunities.org/id/metropolitan-district-council/leeds,Leeds City Council,30/11/2019,Adults and Health,Services For Adults Under 65 Mental/Dis,Third Party Payments,Fees - Level 4,520,21/11/2019,1911-00676,0.00,245.26,R,Ae Bia Assessments Limited,No
Http://opendatacommunities.org/id/metropolitan-district-council/leeds,Leeds City Council,30/11/2019,Adults and Health,Services For Adults Under 65 Mental/Dis,Third Party Payments,Fees - Level 4,520,21/11/2019,1911-00677,0.00,198.00,R,Ae Bia Assessments Limited,No
Http://opendatacommunities.org/id/metropolitan-district-council/leeds,Leeds City Council,30/11/2019,Adults and Health,Services For Adults Under 65 Mental/Dis,Third Party Payments,Fees - Level 4,520,29/11/2019,1911-00678,0.00,242.28,R,Ae Bia Assessments Limited,No
Http://opendatacommunities.org/id/metropolitan-district-council/leeds,Leeds City Council,30/11/2019,Adults and Health,Services For Adults Under 65 Mental/Dis,Third Party Payments,Fees - Level 4,520,29/11/2019,1911-00679,0.00,198.00,R,Ae Bia Assessments Limited,No
Http://opendatacommunities.org/id/metropolitan-district-council/leeds,Leeds City Council,30/11/2019,Adults and Health,Services For Adults Under 65 Mental/Dis,Third Party Payments,Fees - Level 4,520,29/11/2019,1911-00680,0.00,198.00,R,Ae Bia Assessments Limited,No
Http://opendatacommunities.org/id/metropolitan-district-council/leeds,Leeds City Council,30/11/2019,Adults and Health,Services For Adults Under 65 Mental/Dis,Third Party Payments,Fees - Level 4,520,29/11/2019,1911-00681,0.00,198.00,R,Ae Bia Assessments Limited,No
Http://opendatacommunities.org/id/metropolitan-district-council/leeds,Leeds City Council,30/11/2019,City Development,Highways,Capital,Other Costs,7,25/11/2019,1911-00682,0.00,24515.90,C,Aecom Limited,No
Http://opendatacommunities.org/id/metropolitan-district-council/leeds,Leeds City Council,30/11/2019,Adults and Health,Services For Adults Under 65 Mental/Dis,Third Party Payments,Home Care,568,08/11/2019,1911-00683,0.00,403.20,R,Aegis Care Solutions Ltd,No
Http://opendatacommunities.org/id/metropolitan-district-council/leeds,Leeds City Council,30/11/2019,Adults and Health,Services For Adults Under 65 Mental/Dis,Third Party Payments,Home Care,568,08/11/2019,1911-00684,0.00,745.80,R,Aegis Care Solutions Ltd,No
Http://opendatacommunities.org/id/metropolitan-district-council/leeds,Leeds City Council,30/11/2019,City Development,Employment & Skills,Employees,Training & Development,70,20/11/2019,1911-00685,0.00,359.00,R,Aelp Association Of Employment,No
Http://opendatacommunities.org/id/metropolitan-district-council/leeds,Leeds City Council,30/11/2019,Communities and Environment,Communities,Capital,Furniture And Equipment,5,29/11/2019,1911-00686,0.00,520.84,C,Aero Healthcare,No
Http://opendatacommunities.org/id/metropolitan-district-council/leeds,Leeds City Council,30/11/2019,City Development,Libraries  Arts & Heritage,Supplies and Services,Operational Furniture And Equipment,203,22/11/2019,1911-00687,0.00,1725.00,R,Aesg Ltd,No
Http://opendatacommunities.org/id/metropolitan-district-council/leeds,Leeds City Council,30/11/2019,City Development,Libraries  Arts & Heritage,Supplies and Services,Other Hired And Contracted Services,265,29/11/2019,1911-00688,0.00,175.00,R,Aesg Ltd,No
Http://opendatacommunities.org/id/metropolitan-district-council/leeds,Leeds City Council,30/11/2019,City Development,Libraries  Arts & Heritage,Supplies and Services,Other Hired And Contracted Services,265,29/11/2019,1911-00689,0.00,175.00,R,Aesg Ltd,No
Http://opendatacommunities.org/id/metropolitan-district-council/leeds,Leeds City Council,30/11/2019,City Development,Libraries  Arts & Heritage,Supplies and Services,Other Hired And Contracted Services,265,29/11/2019,1911-00690,0.00,175.00,R,Aesg Ltd,No
Http://opendatacommunities.org/id/metropolitan-district-council/leeds,Leeds City Council,30/11/2019,City Development,Libraries  Arts & Heritage,Supplies and Services,Other Hired And Contracted Services,265,29/11/2019,1911-00691,0.00,175.00,R,Aesg Ltd,No
Http://opendatacommunities.org/id/metropolitan-district-council/leeds,Leeds City Council As Accountable Body,30/11/2019,Social Services Pooled Budgets,Jcs For People With Learning Disabilitie,Third Party Payments,Home Care,568,01/11/2019,1911-00692,0.00,639.20,R,Affinity Trust,No
Http://opendatacommunities.org/id/metropolitan-district-council/leeds,Leeds City Council As Accountable Body,30/11/2019,Social Services Pooled Budgets,Jcs For People With Learning Disabilitie,Third Party Payments,Home Care,568,01/11/2019,1911-00693,0.00,559.30,R,Affinity Trust,No
Http://opendatacommunities.org/id/metropolitan-district-council/leeds,Leeds City Council As Accountable Body,30/11/2019,Social Services Pooled Budgets,Jcs For People With Learning Disabilitie,Third Party Payments,Home Care,568,01/11/2019,1911-00694,0.00,408.00,R,Affinity Trust,No
Http://opendatacommunities.org/id/metropolitan-district-council/leeds,Leeds City Council As Accountable Body,30/11/2019,Social Services Pooled Budgets,Jcs For People With Learning Disabilitie,Third Party Payments,Home Care,568,01/11/2019,1911-00695,0.00,1086.64,R,Affinity Trust,No
Http://opendatacommunities.org/id/metropolitan-district-council/leeds,Leeds City Council As Accountable Body,30/11/2019,Social Services Pooled Budgets,Jcs For People With Learning Disabilitie,Third Party Payments,Home Care,568,01/11/2019,1911-00696,0.00,3124.09,R,Affinity Trust,No
Http://opendatacommunities.org/id/metropolitan-district-council/leeds,Leeds City Council As Accountable Body,30/11/2019,Social Services Pooled Budgets,Jcs For People With Learning Disabilitie,Third Party Payments,Home Care,568,01/11/2019,1911-00697,0.00,204.32,R,Affinity Trust,No
Http://opendatacommunities.org/id/metropolitan-district-council/leeds,Leeds City Council As Accountable Body,30/11/2019,Social Services Pooled Budgets,Jcs For People With Learning Disabilitie,Third Party Payments,Home Care,568,01/11/2019,1911-00698,0.00,975.56,R,Affinity Trust,No
Http://opendatacommunities.org/id/metropolitan-district-council/leeds,Leeds City Council As Accountable Body,30/11/2019,Social Services Pooled Budgets,Jcs For People With Learning Disabilitie,Third Party Payments,Home Care,568,01/11/2019,1911-00699,0.00,878.90,R,Affinity Trust,No
Http://opendatacommunities.org/id/metropolitan-district-council/leeds,Leeds City Council As Accountable Body,30/11/2019,Social Services Pooled Budgets,Jcs For People With Learning Disabilitie,Third Party Payments,Home Care,568,01/11/2019,1911-00700,0.00,511.36,R,Affinity Trust,No
Http://opendatacommunities.org/id/metropolitan-district-council/leeds,Leeds City Council As Accountable Body,30/11/2019,Social Services Pooled Budgets,Jcs For People With Learning Disabilitie,Third Party Payments,Home Care,568,01/11/2019,1911-00701,0.00,191.76,R,Affinity Trust,No
Http://opendatacommunities.org/id/metropolitan-district-council/leeds,Leeds City Council As Accountable Body,30/11/2019,Social Services Pooled Budgets,Jcs For People With Learning Disabilitie,Third Party Payments,Home Care,568,01/11/2019,1911-00702,0.00,1406.24,R,Affinity Trust,No
Http://opendatacommunities.org/id/metropolitan-district-council/leeds,Leeds City Council As Accountable Body,30/11/2019,Social Services Pooled Budgets,Jcs For People With Learning Disabilitie,Third Party Payments,Home Care,568,01/11/2019,1911-00703,0.00,319.60,R,Affinity Trust,No
Http://opendatacommunities.org/id/metropolitan-district-council/leeds,Leeds City Council As Accountable Body,30/11/2019,Social Services Pooled Budgets,Jcs For People With Learning Disabilitie,Third Party Payments,Day Centre,564,06/11/2019,1911-00704,0.00,416.64,R,Affinity Trust,No
Http://opendatacommunities.org/id/metropolitan-district-council/leeds,Leeds City Council As Accountable Body,30/11/2019,Social Services Pooled Budgets,Jcs For People With Learning Disabilitie,Third Party Payments,Home Care,568,06/11/2019,1911-00705,0.00,1633.50,R,Affinity Trust,No
Http://opendatacommunities.org/id/metropolitan-district-council/leeds,Leeds City Council As Accountable Body,30/11/2019,Social Services Pooled Budgets,Jcs For People With Learning Disabilitie,Third Party Payments,Home Care,568,06/11/2019,1911-00706,0.00,1261.50,R,Affinity Trust,No
Http://opendatacommunities.org/id/metropolitan-district-council/leeds,Leeds City Council As Accountable Body,30/11/2019,Social Services Pooled Budgets,Jcs For People With Learning Disabilitie,Third Party Payments,Home Care,568,06/11/2019,1911-00707,0.00,319.60,R,Affinity Trust,No
Http://opendatacommunities.org/id/metropolitan-district-council/leeds,Leeds City Council As Accountable Body,30/11/2019,Social Services Pooled Budgets,Jcs For People With Learning Disabilitie,Third Party Payments,Home Care,568,06/11/2019,1911-00708,0.00,1126.94,R,Affinity Trust,No
Http://opendatacommunities.org/id/metropolitan-district-council/leeds,Leeds City Council,30/11/2019,Adults and Health,Services For Adults Under 65 Mental/Dis,Third Party Payments,Home Care,568,06/11/2019,1911-00709,0.00,463.42,R,Affinity Trust,No
Http://opendatacommunities.org/id/metropolitan-district-council/leeds,Leeds City Council,30/11/2019,Adults and Health,Services For Older People Under 65 P/Dis,Third Party Payments,Home Care,568,06/11/2019,1911-00710,0.00,908.28,R,Affinity Trust,No
Http://opendatacommunities.org/id/metropolitan-district-council/leeds,Leeds City Council As Accountable Body,30/11/2019,Social Services Pooled Budgets,Jcs For People With Learning Disabilitie,Third Party Payments,Home Care,568,06/11/2019,1911-00711,0.00,631.98,R,Affinity Trust,No
Http://opendatacommunities.org/id/metropolitan-district-council/leeds,Leeds City Council As Accountable Body,30/11/2019,Social Services Pooled Budgets,Jcs For People With Learning Disabilitie,Third Party Payments,Home Care,568,06/11/2019,1911-00712,0.00,1170.00,R,Affinity Trust,No
Http://opendatacommunities.org/id/metropolitan-district-council/leeds,Leeds City Council As Accountable Body,30/11/2019,Social Services Pooled Budgets,Jcs For People With Learning Disabilitie,Third Party Payments,Home Care,568,06/11/2019,1911-00713,0.00,1951.35,R,Affinity Trust,No
Http://opendatacommunities.org/id/metropolitan-district-council/leeds,Leeds City Council As Accountable Body,30/11/2019,Social Services Pooled Budgets,Jcs For People With Learning Disabilitie,Third Party Payments,Home Care,568,06/11/2019,1911-00714,0.00,991.98,R,Affinity Trust,No
Http://opendatacommunities.org/id/metropolitan-district-council/leeds,Leeds City Council As Accountable Body,30/11/2019,Social Services Pooled Budgets,Jcs For People With Learning Disabilitie,Third Party Payments,Home Care,568,06/11/2019,1911-00715,0.00,3116.68,R,Affinity Trust,No
Http://opendatacommunities.org/id/metropolitan-district-council/leeds,Leeds City Council As Accountable Body,30/11/2019,Social Services Pooled Budgets,Jcs For People With Learning Disabilitie,Third Party Payments,Day Centre,564,06/11/2019,1911-00716,0.00,402.24,R,Affinity Trust,No
Http://opendatacommunities.org/id/metropolitan-district-council/leeds,Leeds City Council As Accountable Body,30/11/2019,Social Services Pooled Budgets,Jcs For People With Learning Disabilitie,Third Party Payments,Home Care,568,06/11/2019,1911-00717,0.00,525.72,R,Affinity Trust,No
Http://opendatacommunities.org/id/metropolitan-district-council/leeds,Leeds City Council As Accountable Body,30/11/2019,Social Services Pooled Budgets,Jcs For People With Learning Disabilitie,Third Party Payments,Day Centre,564,06/11/2019,1911-00718,0.00,1914.12,R,Affinity Trust,No
Http://opendatacommunities.org/id/metropolitan-district-council/leeds,Leeds City Council As Accountable Body,30/11/2019,Social Services Pooled Budgets,Jcs For People With Learning Disabilitie,Third Party Payments,Home Care,568,06/11/2019,1911-00719,0.00,804.48,R,Affinity Trust,No
Http://opendatacommunities.org/id/metropolitan-district-council/leeds,Leeds City Council As Accountable Body,30/11/2019,Social Services Pooled Budgets,Jcs For People With Learning Disabilitie,Third Party Payments,Home Care,568,06/11/2019,1911-00720,0.00,1458.17,R,Affinity Trust,No
Http://opendatacommunities.org/id/metropolitan-district-council/leeds,Leeds City Council As Accountable Body,30/11/2019,Social Services Pooled Budgets,Jcs For People With Learning Disabilitie,Third Party Payments,Home Care,568,06/11/2019,1911-00721,0.00,1770.66,R,Affinity Trust,No
Http://opendatacommunities.org/id/metropolitan-district-council/leeds,Leeds City Council As Accountable Body,30/11/2019,Social Services Pooled Budgets,Jcs For People With Learning Disabilitie,Third Party Payments,Home Care,568,06/11/2019,1911-00722,0.00,1005.60,R,Affinity Trust,No
Http://opendatacommunities.org/id/metropolitan-district-council/leeds,Leeds City Council As Accountable Body,30/11/2019,Social Services Pooled Budgets,Jcs For People With Learning Disabilitie,Third Party Payments,Home Care,568,06/11/2019,1911-00723,0.00,360.00,R,Affinity Trust,No
Http://opendatacommunities.org/id/metropolitan-district-council/leeds,Leeds City Council As Accountable Body,30/11/2019,Social Services Pooled Budgets,Jcs For People With Learning Disabilitie,Third Party Payments,Day Centre,564,06/11/2019,1911-00724,0.00,648.95,R,Affinity Trust,No
Http://opendatacommunities.org/id/metropolitan-district-council/leeds,Leeds City Council As Accountable Body,30/11/2019,Social Services Pooled Budgets,Jcs For People With Learning Disabilitie,Third Party Payments,Day Centre,564,06/11/2019,1911-00725,0.00,2346.40,R,Affinity Trust,No
Http://opendatacommunities.org/id/metropolitan-district-council/leeds,Leeds City Council As Accountable Body,30/11/2019,Social Services Pooled Budgets,Jcs For People With Learning Disabilitie,Third Party Payments,Home Care,568,06/11/2019,1911-00726,0.00,1583.49,R,Affinity Trust,No
Http://opendatacommunities.org/id/metropolitan-district-council/leeds,Leeds City Council As Accountable Body,30/11/2019,Social Services Pooled Budgets,Jcs For People With Learning Disabilitie,Transfer Payments,Personal Budgets,627,06/11/2019,1911-00727,0.00,677.86,R,Affinity Trust,No
Http://opendatacommunities.org/id/metropolitan-district-council/leeds,Leeds City Council As Accountable Body,30/11/2019,Social Services Pooled Budgets,Jcs For People With Learning Disabilitie,Third Party Payments,Home Care,568,06/11/2019,1911-00728,0.00,112.80,R,Affinity Trust,No
Http://opendatacommunities.org/id/metropolitan-district-council/leeds,Leeds City Council As Accountable Body,30/11/2019,Social Services Pooled Budgets,Jcs For People With Learning Disabilitie,Third Party Payments,Day Centre,564,08/11/2019,1911-00729,0.00,1440.00,R,Affinity Trust,No
Http://opendatacommunities.org/id/metropolitan-district-council/leeds,Leeds City Council,30/11/2019,Adults and Health,Services For Older People Under 65 P/Dis,Third Party Payments,Home Care,568,08/11/2019,1911-00730,0.00,526.68,R,Affinity Trust,No
Http://opendatacommunities.org/id/metropolitan-district-council/leeds,Leeds City Council,30/11/2019,Adults and Health,Services For Older People Under 65 P/Dis,Third Party Payments,Home Care,568,19/11/2019,1911-00731,0.00,71.91,R,Affinity Trust,No
Http://opendatacommunities.org/id/metropolitan-district-council/leeds,Leeds City Council,30/11/2019,Adults and Health,Services For Older People - 65 And Over,Third Party Payments,HCAIT Community Support,575,19/11/2019,1911-00732,0.00,527.34,R,Affinity Trust,No
Http://opendatacommunities.org/id/metropolitan-district-council/leeds,Leeds City Council As Accountable Body,30/11/2019,Social Services Pooled Budgets,Jcs For People With Learning Disabilitie,Third Party Payments,Home Care,568,20/11/2019,1911-00733,0.00,319.60,R,Affinity Trust,No
Http://opendatacommunities.org/id/metropolitan-district-council/leeds,Leeds City Council,30/11/2019,Adults and Health,Services For Older People - 65 And Over,Third Party Payments,Home Care,568,20/11/2019,1911-00734,0.00,-0.02,R,Affinity Trust,No
Http://opendatacommunities.org/id/metropolitan-district-council/leeds,Leeds City Council As Accountable Body,30/11/2019,Social Services Pooled Budgets,Jcs For People With Learning Disabilitie,Third Party Payments,Home Care,568,20/11/2019,1911-00735,0.00,239.72,R,Affinity Trust,No
Http://opendatacommunities.org/id/metropolitan-district-council/leeds,Leeds City Council As Accountable Body,30/11/2019,Social Services Pooled Budgets,Jcs For People With Learning Disabilitie,Third Party Payments,Sheltered Accommodation,569,13/11/2019,1911-00736,0.00,105757.32,R,Affinity Trust North Divisional Office,No
Http://opendatacommunities.org/id/metropolitan-district-council/leeds,Leeds City Council,30/11/2019,Communities and Environment,Parks And Countryside  ,Transport,External Hire -Occasional,304,21/10/2019,1911-00737,0.00,950.00,R,Afi Uplift,Yes
Http://opendatacommunities.org/id/metropolitan-district-council/leeds,Leeds City Council,30/11/2019,Communities and Environment,Parks And Countryside  ,Transport,External Hire -Occasional,304,21/10/2019,1911-00738,0.00,950.00,R,Afi Uplift,Yes
Http://opendatacommunities.org/id/metropolitan-district-council/leeds,Leeds City Council,30/11/2019,Communities and Environment,Parks And Countryside  ,Transport,External Hire -Occasional,304,21/10/2019,1911-00739,0.00,950.00,R,Afi Uplift,Yes
Http://opendatacommunities.org/id/metropolitan-district-council/leeds,Leeds City Council,30/11/2019,Communities and Environment,Parks And Countryside  ,Transport,External Hire -Occasional,304,21/10/2019,1911-00740,0.00,950.00,R,Afi Uplift,Yes
Http://opendatacommunities.org/id/metropolitan-district-council/leeds,Leeds City Council,30/11/2019,Communities and Environment,Environmental Health  ,Supplies and Services,Operational Furniture And Equipment,203,08/10/2019,1911-00741,0.00,39.75,R,Afs Animal Care Limited,Yes
Http://opendatacommunities.org/id/metropolitan-district-council/leeds,Leeds City Council,30/11/2019,City Development,Employment & Skills,Supplies and Services,College Contracts,276,22/11/2019,1911-00742,0.00,4875.00,R,Age Uk Leeds,No
Http://opendatacommunities.org/id/metropolitan-district-council/leeds,Leeds City Council,30/11/2019,Adults and Health,Public Health,Third Party Payments,Services Rendered By Voluntary Sector,505,28/11/2019,1911-00743,0.00,30000.00,R,Age Uk Leeds,No
Http://opendatacommunities.org/id/metropolitan-district-council/leeds,Leeds City Council,30/11/2019,City Development,Highways,Supplies and Services,Operational Materials,205,29/11/2019,1911-00744,0.00,7158.00,R,Aggregate Industries Uk Ltd,No
Http://opendatacommunities.org/id/metropolitan-district-council/leeds,Leeds City Council,30/11/2019,Children and Families,Social Care  ,Transfer Payments,Leaving Care Allowances,634,15/10/2019,1911-00745,0.00,6.25,R,Agh Solutions Ltd,Yes
Http://opendatacommunities.org/id/metropolitan-district-council/leeds,Leeds City Council As Accountable Body,30/11/2019,Social Services Pooled Budgets,Jcs For People With Learning Disabilitie,Third Party Payments,Home Care,568,27/11/2019,1911-00746,0.00,101.53,R,Agh Solutions Ltd,No
Http://opendatacommunities.org/id/metropolitan-district-council/leeds,Leeds City Council,30/11/2019,Communities and Environment,Parks And Countryside  ,Transport,Plant Spares,346,02/10/2019,1911-00747,0.00,85.50,R,Agri Linc Limited,Yes
Http://opendatacommunities.org/id/metropolitan-district-council/leeds,Leeds City Council,30/11/2019,Resources and Housing,Sustainable Energy & Climate Change,Capital,Other Costs,7,22/11/2019,1911-00748,0.00,1500.00,C,REDACTED COMMERCIAL CONFIDENTIALITY,No
Http://opendatacommunities.org/id/metropolitan-district-council/leeds,Leeds City Council,30/11/2019,Communities and Environment,Customer Access,Supplies and Services,Bought In Professional Services,277,01/11/2019,1911-00749,0.00,18.00,R,Ahmed Moustafa Moustafa Mousa,No
Http://opendatacommunities.org/id/metropolitan-district-council/leeds,Leeds City Council,30/11/2019,Communities and Environment,Customer Access,Supplies and Services,Bought In Professional Services,277,01/11/2019,1911-00750,0.00,18.00,R,Ahmed Moustafa Moustafa Mousa,No
Http://opendatacommunities.org/id/metropolitan-district-council/leeds,Leeds City Council,30/11/2019,Communities and Environment,Customer Access,Supplies and Services,Bought In Professional Services,277,01/11/2019,1911-00751,0.00,18.00,R,Ahmed Moustafa Moustafa Mousa,No
Http://opendatacommunities.org/id/metropolitan-district-council/leeds,Leeds City Council,30/11/2019,Communities and Environment,Customer Access,Supplies and Services,Bought In Professional Services,277,08/11/2019,1911-00752,0.00,18.00,R,Ahmed Moustafa Moustafa Mousa,No
Http://opendatacommunities.org/id/metropolitan-district-council/leeds,Leeds City Council,30/11/2019,Communities and Environment,Customer Access,Supplies and Services,Bought In Professional Services,277,08/11/2019,1911-00753,0.00,22.50,R,Ahmed Moustafa Moustafa Mousa,No
Http://opendatacommunities.org/id/metropolitan-district-council/leeds,Leeds City Council,30/11/2019,Communities and Environment,Customer Access,Supplies and Services,Bought In Professional Services,277,15/11/2019,1911-00754,0.00,18.00,R,Ahmed Moustafa Moustafa Mousa,No
Http://opendatacommunities.org/id/metropolitan-district-council/leeds,Leeds City Council,30/11/2019,Communities and Environment,Customer Access,Supplies and Services,Bought In Professional Services,277,15/11/2019,1911-00755,0.00,18.00,R,Ahmed Moustafa Moustafa Mousa,No
Http://opendatacommunities.org/id/metropolitan-district-council/leeds,Leeds City Council,30/11/2019,Communities and Environment,Customer Access,Supplies and Services,Bought In Professional Services,277,15/11/2019,1911-00756,0.00,18.00,R,Ahmed Moustafa Moustafa Mousa,No
Http://opendatacommunities.org/id/metropolitan-district-council/leeds,Leeds City Council,30/11/2019,Communities and Environment,Customer Access,Supplies and Services,Bought In Professional Services,277,21/11/2019,1911-00757,0.00,31.50,R,Ahmed Moustafa Moustafa Mousa,No
Http://opendatacommunities.org/id/metropolitan-district-council/leeds,Leeds City Council,30/11/2019,Communities and Environment,Customer Access,Supplies and Services,Bought In Professional Services,277,21/11/2019,1911-00758,0.00,18.00,R,Ahmed Moustafa Moustafa Mousa,No
Http://opendatacommunities.org/id/metropolitan-district-council/leeds,Leeds City Council,30/11/2019,Communities and Environment,Customer Access,Supplies and Services,Bought In Professional Services,277,21/11/2019,1911-00759,0.00,18.00,R,Ahmed Moustafa Moustafa Mousa,No
Http://opendatacommunities.org/id/metropolitan-district-council/leeds,Leeds City Council,30/11/2019,Communities and Environment,Customer Access,Supplies and Services,Bought In Professional Services,277,21/11/2019,1911-00760,0.00,18.00,R,Ahmed Moustafa Moustafa Mousa,No
Http://opendatacommunities.org/id/metropolitan-district-council/leeds,Leeds City Council,30/11/2019,Communities and Environment,Customer Access,Supplies and Services,Bought In Professional Services,277,29/11/2019,1911-00761,0.00,28.50,R,Ahmed Moustafa Moustafa Mousa,No
Http://opendatacommunities.org/id/metropolitan-district-council/leeds,Leeds City Council,30/11/2019,Communities and Environment,Customer Access,Supplies and Services,Bought In Professional Services,277,29/11/2019,1911-00762,0.00,18.00,R,Ahmed Moustafa Moustafa Mousa,No
Http://opendatacommunities.org/id/metropolitan-district-council/leeds,Leeds City Council,30/11/2019,Communities and Environment,Customer Access,Supplies and Services,Bought In Professional Services,277,29/11/2019,1911-00763,0.00,49.50,R,Ahmed Moustafa Moustafa Mousa,No
Http://opendatacommunities.org/id/metropolitan-district-council/leeds,Leeds City Council,30/11/2019,Children and Families,Learning,Supplies and Services,Teaching Materials,202,15/11/2019,1911-00764,0.00,2.50,R,Aid Training & Operations Ltd,No
Http://opendatacommunities.org/id/metropolitan-district-council/leeds,Leeds City Council,30/11/2019,Children and Families,Learning,Supplies and Services,Teaching Materials,202,20/11/2019,1911-00765,0.00,53.53,R,Aid Training & Operations Ltd,No
Http://opendatacommunities.org/id/metropolitan-district-council/leeds,Leeds City Council,30/11/2019,Children and Families,Learning,Supplies and Services,Teaching Materials,202,22/11/2019,1911-00766,0.00,33.53,R,Aid Training & Operations Ltd,No
Http://opendatacommunities.org/id/metropolitan-district-council/leeds,Leeds City Council As Accountable Body,30/11/2019,Social Services Pooled Budgets,Leeds Community Equip Store Pooled Budgt,Supplies and Services,Other Equipment,203,01/11/2019,1911-00767,0.00,1430.00,R,Aidapt Bathrooms Ltd,No
Http://opendatacommunities.org/id/metropolitan-district-council/leeds,Leeds City Council As Accountable Body,30/11/2019,Social Services Pooled Budgets,Leeds Community Equip Store Pooled Budgt,Supplies and Services,Other Equipment,203,14/11/2019,1911-00768,0.00,1019.60,R,Aidapt Bathrooms Ltd,No
Http://opendatacommunities.org/id/metropolitan-district-council/leeds,Leeds City Council As Accountable Body,30/11/2019,Social Services Pooled Budgets,Leeds Community Equip Store Pooled Budgt,Supplies and Services,Other Equipment,203,22/11/2019,1911-00769,0.00,143.00,R,Aidapt Bathrooms Ltd,No
Http://opendatacommunities.org/id/metropolitan-district-council/leeds,Leeds City Council As Accountable Body,30/11/2019,Social Services Pooled Budgets,Leeds Community Equip Store Pooled Budgt,Supplies and Services,Other Equipment,203,29/11/2019,1911-00770,0.00,1430.00,R,Aidapt Bathrooms Ltd,No
Http://opendatacommunities.org/id/metropolitan-district-council/leeds,Leeds City Council As Accountable Body,30/11/2019,Social Services Pooled Budgets,Leeds Community Equip Store Pooled Budgt,Supplies and Services,Other Equipment,203,29/11/2019,1911-00771,0.00,1430.00,R,Aidapt Bathrooms Ltd,No
Http://opendatacommunities.org/id/metropolitan-district-council/leeds,Leeds City Council As Accountable Body,30/11/2019,Social Services Pooled Budgets,Leeds Community Equip Store Pooled Budgt,Supplies and Services,Other Equipment,203,29/11/2019,1911-00772,0.00,1546.00,R,Aidapt Bathrooms Ltd,No
Http://opendatacommunities.org/id/metropolitan-district-council/leeds,Leeds City Council As Accountable Body,30/11/2019,Social Services Pooled Budgets,Leeds Community Equip Store Pooled Budgt,Supplies and Services,Other Equipment,203,29/11/2019,1911-00773,0.00,254.40,R,Aidapt Bathrooms Ltd,No
